{"text_format":"1","workbook":"xlsx","n_sheets":8,"sheets":["MENU","Lista_alunos","1ºPeríodo","Planilha1","2ºPeríodo","Planilha2","3ºPeríodo","Planilha3"],"not_rendered":{"charts":3,"images":1,"macros":1,"external_links":0,"defined_names":0,"comments":0,"pivot_tables":0},"unopened":[],"bounds":{"document_bytes":16777216,"sheet_cells":100000,"rows_first":2000,"rows_last":500,"rows_between":2000,"halvings":0,"cell_chars":16384,"cell_head_chars":4096},"cells_cut":0,"cells_raw":0,"read":"whole","date_system":"1900"}

{"sheet":"MENU","index":0,"n_rows":58,"n_cols":24,"rows_kept":58,"cut":false,"hidden":false,"merged":[[15,19,16,22],[18,5,19,7],[18,8,19,10],[18,11,19,14],[24,13,24,14],[24,15,24,16],[25,15,25,16],[26,15,26,16],[27,15,27,16],[24,19,24,20],[25,19,25,20],[26,19,26,20],[27,19,27,20],[21,9,21,20],[23,15,23,16],[23,11,23,12],[23,19,23,20],[22,9,22,12],[22,13,22,16],[22,17,22,20],[27,17,27,18],[28,19,28,20],[29,19,29,20],[30,19,30,20],[31,19,31,20],[32,19,32,20],[41,17,41,18],[39,17,39,18],[37,17,37,18],[34,15,34,16],[29,17,29,18],[39,19,39,20],[40,19,40,20],[41,19,41,20],[42,19,42,20],[33,19,33,20],[34,19,34,20],[35,19,35,20],[36,19,36,20],[37,19,37,20],[38,19,38,20],[45,13,45,14],[43,19,43,20],[44,19,44,20],[45,17,45,18],[45,19,45,20],[43,13,43,14],[43,17,43,18],[44,5,44,8],[44,9,44,10],[44,13,44,14],[44,17,44,18],[43,11,43,12],[44,11,44,12],[43,15,43,16],[44,15,44,16],[46,19,46,20],[49,19,49,20],[48,15,48,16],[49,15,49,16],[50,15,50,16],[45,15,45,16],[53,3,53,8],[46,5,46,8],[46,9,46,10],[46,13,46,14],[46,17,46,18],[45,11,45,12],[46,11,46,12],[46,15,46,16],[54,3,54,4],[54,5,54,7],[54,9,54,10],[54,18,54,19],[54,20,54,22],[47,9,47,10],[47,13,47,14],[47,17,47,18],[48,5,48,8],[48,9,48,10],[48,13,48,14],[48,17,48,18],[47,11,47,12],[48,11,48,12],[47,15,47,16],[53,9,53,17],[53,18,53,23],[50,5,50,8],[50,9,50,10],[50,13,50,14],[50,17,50,18],[50,19,50,20],[47,19,47,20],[48,19,48,20],[42,5,42,8],[42,9,42,10],[42,13,42,14],[42,17,42,18],[41,11,41,12],[42,11,42,12],[41,15,41,16],[42,15,42,16],[41,13,41,14],[40,5,40,8],[40,9,40,10],[40,13,40,14],[40,17,40,18],[39,11,39,12],[40,11,40,12],[39,15,39,16],[40,15,40,16],[39,13,39,14],[38,5,38,8],[38,9,38,10],[38,13,38,14],[38,17,38,18],[37,11,37,12],[38,11,38,12],[37,15,37,16],[38,15,38,16],[37,13,37,14],[33,5,33,8],[35,17,35,18],[36,5,36,8],[36,9,36,10],[36,13,36,14],[36,17,36,18],[35,11,35,12],[36,11,36,12],[35,15,35,16],[36,15,36,16],[35,13,35,14],[30,5,30,8],[30,9,30,10],[30,13,30,14],[30,17,30,18],[31,5,31,8],[31,9,31,10],[29,5,29,8],[29,9,29,10],[29,11,29,12],[30,11,30,12],[31,13,31,14],[31,17,31,18],[31,15,31,16],[29,15,29,16],[30,15,30,16],[29,13,29,14],[28,5,28,8],[28,9,28,10],[28,13,28,14],[28,17,28,18],[25,5,25,8],[25,9,25,10],[25,13,25,14],[25,17,25,18],[26,5,26,8],[26,9,26,10],[26,13,26,14],[26,17,26,18],[27,5,27,8],[27,9,27,10],[27,13,27,14],[28,15,28,16],[32,13,32,14],[32,17,32,18],[31,11,31,12],[32,11,32,12],[32,15,32,16],[43,9,43,10],[41,5,41,8],[41,9,41,10],[39,5,39,8],[39,9,39,10],[37,5,37,8],[37,9,37,10],[35,5,35,8],[35,9,35,10],[33,17,33,18],[34,5,34,8],[34,9,34,10],[34,13,34,14],[34,17,34,18],[33,11,33,12],[34,11,34,12],[33,15,33,16],[33,9,33,10],[33,13,33,14],[9,3,13,23],[55,3,55,4],[56,3,56,4],[57,3,57,4],[57,5,57,7],[56,5,56,7],[55,5,55,7],[50,11,50,12],[49,11,49,12],[28,11,28,12],[27,11,27,12],[26,11,26,12],[25,11,25,12],[24,11,24,12],[54,11,54,16],[55,11,55,16],[56,11,56,16],[57,11,57,16],[55,9,55,10],[56,9,56,10],[57,9,57,10],[55,18,55,19],[56,18,56,19],[23,5,23,8],[57,18,57,19],[55,20,55,22],[56,20,56,22],[57,20,57,22],[15,5,16,7],[15,8,16,10],[15,11,16,14],[15,15,16,18],[24,17,24,18],[23,9,23,10],[23,13,23,14],[23,17,23,18],[24,5,24,8],[24,9,24,10],[49,5,49,8],[49,9,49,10],[49,13,49,14],[49,17,49,18],[47,5,47,8],[45,5,45,8],[45,9,45,10],[43,5,43,8],[32,5,32,8],[32,9,32,10]]}
[]
[]
[]
[]
[]
[]
[]
[]
[]
[null,null,null,"Avaliação da leitura-2021/22"]
[]
[]
[]
[]
[]
[]
[]
[]
[]
[]
[]
[null,null,null,null,null,null,null,null,null,"Classificações:"]
[null,null,null,null,null,null,null,null,null,"1ºPERÍODO",null,null,null,"2ºPERÍODO",null,null,null,"3ºPERÍODO"]
[null,null,null,null,"N.º","Nome Aluno(a)",null,null,null,"POSITIVAS",null,"NEGATIVOS",null,"POSITIVAS",null,"NEGATIVOS",null,"POSITIVOS",null,"NEGATIVOS"]
[null,null,null,null,1,{"$f":"Lista_alunos!H16","v":"Is"},null,null,null,{"$f":"'1ºPeríodo'!AR11","v":"Muito Bom"},null,{"$f":"'1ºPeríodo'!AS11","v":"sem erros"},null,{"$f":"'2ºPeríodo'!AR11","v":"Muito Bom"},null,{"$f":"'2ºPeríodo'!AS11","v":"sem erros"},null,{"$f":"'3ºPeríodo'!AR11","v":"Bom"},null,{"$f":"'3ºPeríodo'!AS11","v":"ALGUNS ERROS"}]
[null,null,null,null,2,{"$f":"Lista_alunos!H17","v":"Ca"},null,null,null,{"$f":"'1ºPeríodo'!AR12","v":"Suficiente"},null,{"$f":"'1ºPeríodo'!AS12","v":"PERTO POSITIVA"},null,{"$f":"'2ºPeríodo'!AR12","v":"Insuficiente"},null,{"$f":"'2ºPeríodo'!AS12","v":"ERRO TOTAL"},null,{"$f":"'3ºPeríodo'!AR12","v":"Insuficiente"},null,{"$f":"'3ºPeríodo'!AS12","v":"ERRO TOTAL"}]
[null,null,null,null,3,{"$f":"Lista_alunos!H18","v":"f"},null,null,null,{"$f":"'1ºPeríodo'!AR13","v":"Bom"},null,{"$f":"'1ºPeríodo'!AS13","v":"PERTO POSITIVA"},null,{"$f":"'2ºPeríodo'!AR13","v":"Muito Bom"},null,{"$f":"'2ºPeríodo'!AS13","v":"sem erros"},null,{"$f":"'3ºPeríodo'!AR13","v":"Muito Bom"},null,{"$f":"'3ºPeríodo'!AS13","v":"sem erros"}]
[null,null,null,null,4,{"$f":"Lista_alunos!H19","v":"g"},null,null,null,{"$f":"'1ºPeríodo'!AR14","v":"Insuficiente"},null,{"$f":"'1ºPeríodo'!AS14","v":"MUITOS ERROS"},null,{"$f":"'2ºPeríodo'!AR14","v":"Insuficiente"},null,{"$f":"'2ºPeríodo'!AS14","v":"sem erros"},null,{"$f":"'3ºPeríodo'!AR14","v":"Insuficiente"},null,{"$f":"'3ºPeríodo'!AS14","v":"sem erros"}]
[null,null,null,null,5,{"$f":"Lista_alunos!H20","v":"Fe"},null,null,null,{"$f":"'1ºPeríodo'!AR15","v":"Suficiente"},null,{"$f":"'1ºPeríodo'!AS15","v":"ALGUNS ERROS"},null,{"$f":"'2ºPeríodo'!AR15","v":"Insuficiente"},null,{"$f":"'2ºPeríodo'!AS15","v":"sem erros"},null,{"$f":"'3ºPeríodo'!AR15","v":"Insuficiente"},null,{"$f":"'3ºPeríodo'!AS15","v":"sem erros"}]
[null,null,null,null,6,{"$f":"Lista_alunos!H21","v":"F3"},null,null,null,{"$f":"'1ºPeríodo'!AR16","v":"Muito Bom"},null,{"$f":"'1ºPeríodo'!AS16","v":"sem erros"},null,{"$f":"'2ºPeríodo'!AR16","v":"Insuficiente"},null,{"$f":"'2ºPeríodo'!AS16","v":"sem erros"},null,{"$f":"'3ºPeríodo'!AR16","v":"Insuficiente"},null,{"$f":"'3ºPeríodo'!AS16","v":"sem erros"}]
[null,null,null,null,7,{"$f":"Lista_alunos!H22","v":"Je"},null,null,null,{"$f":"'1ºPeríodo'!AR17","v":"Muito Bom"},null,{"$f":"'1ºPeríodo'!AS17","v":"sem erros"},null,{"$f":"'2ºPeríodo'!AR17","v":"Insuficiente"},null,{"$f":"'2ºPeríodo'!AS17","v":"sem erros"},null,{"$f":"'3ºPeríodo'!AR17","v":"Insuficiente"},null,{"$f":"'3ºPeríodo'!AS17","v":"sem erros"}]
[null,null,null,null,8,{"$f":"Lista_alunos!H23","v":"M11"},null,null,null,{"$f":"'1ºPeríodo'!AR18","v":"Suficiente"},null,{"$f":"'1ºPeríodo'!AS18","v":"PERTO POSITIVA"},null,{"$f":"'2ºPeríodo'!AR18","v":"Insuficiente"},null,{"$f":"'2ºPeríodo'!AS18","v":"sem erros"},null,{"$f":"'3ºPeríodo'!AR18","v":"Insuficiente"},null,{"$f":"'3ºPeríodo'!AS18","v":"sem erros"}]
[null,null,null,null,9,{"$f":"Lista_alunos!H24","v":"M"},null,null,null,{"$f":"'1ºPeríodo'!AR19","v":"Muito Bom"},null,{"$f":"'1ºPeríodo'!AS19","v":"sem erros"},null,{"$f":"'2ºPeríodo'!AR19","v":"Insuficiente"},null,{"$f":"'2ºPeríodo'!AS19","v":"sem erros"},null,{"$f":"'3ºPeríodo'!AR19","v":"Insuficiente"},null,{"$f":"'3ºPeríodo'!AS19","v":"sem erros"}]
[null,null,null,null,10,{"$f":"Lista_alunos!H25","v":"M123"},null,null,null,{"$f":"'1ºPeríodo'!AR20","v":"Insuficiente"},null,{"$f":"'1ºPeríodo'!AS20","v":"ALGUNS ERROS"},null,{"$f":"'2ºPeríodo'!AR20","v":"Insuficiente"},null,{"$f":"'2ºPeríodo'!AS20","v":"sem erros"},null,{"$f":"'3ºPeríodo'!AR20","v":"Insuficiente"},null,{"$f":"'3ºPeríodo'!AS20","v":"sem erros"}]
[null,null,null,null,11,{"$f":"Lista_alunos!H26","v":"M124"},null,null,null,{"$f":"'1ºPeríodo'!AR21","v":"Suficiente"},null,{"$f":"'1ºPeríodo'!AS21","v":"PERTO POSITIVA"},null,{"$f":"'2ºPeríodo'!AR21","v":"Insuficiente"},null,{"$f":"'2ºPeríodo'!AS21","v":"sem erros"},null,{"$f":"'3ºPeríodo'!AR21","v":"Insuficiente"},null,{"$f":"'3ºPeríodo'!AS21","v":"sem erros"}]
[null,null,null,null,12,{"$f":"Lista_alunos!H27","v":"M125"},null,null,null,{"$f":"'1ºPeríodo'!AR22","v":"Muito Bom"},null,{"$f":"'1ºPeríodo'!AS22","v":"sem erros"},null,{"$f":"'2ºPeríodo'!AR22","v":"Insuficiente"},null,{"$f":"'2ºPeríodo'!AS22","v":"sem erros"},null,{"$f":"'3ºPeríodo'!AR22","v":"Insuficiente"},null,{"$f":"'3ºPeríodo'!AS22","v":"sem erros"}]
[null,null,null,null,13,{"$f":"Lista_alunos!H28","v":"Rm124"},null,null,null,{"$f":"'1ºPeríodo'!AR23","v":"Muito Bom"},null,{"$f":"'1ºPeríodo'!AS23","v":"sem erros"},null,{"$f":"'2ºPeríodo'!AR23","v":"Insuficiente"},null,{"$f":"'2ºPeríodo'!AS23","v":"sem erros"},null,{"$f":"'3ºPeríodo'!AR23","v":"Insuficiente"},null,{"$f":"'3ºPeríodo'!AS23","v":"sem erros"}]
[null,null,null,null,14,{"$f":"Lista_alunos!H29","v":"Ree"},null,null,null,{"$f":"'1ºPeríodo'!AR24","v":"Suficiente"},null,{"$f":"'1ºPeríodo'!AS24","v":"ALGUNS ERROS"},null,{"$f":"'2ºPeríodo'!AR24","v":"Insuficiente"},null,{"$f":"'2ºPeríodo'!AS24","v":"sem erros"},null,{"$f":"'3ºPeríodo'!AR24","v":"Insuficiente"},null,{"$f":"'3ºPeríodo'!AS24","v":"sem erros"}]
[null,null,null,null,15,{"$f":"Lista_alunos!H30","v":"Sm"},null,null,null,{"$f":"'1ºPeríodo'!AR25","v":"Insuficiente"},null,{"$f":"'1ºPeríodo'!AS25","v":"MUITOS ERROS"},null,{"$f":"'2ºPeríodo'!AR25","v":"Insuficiente"},null,{"$f":"'2ºPeríodo'!AS25","v":"sem erros"},null,{"$f":"'3ºPeríodo'!AR25","v":"Insuficiente"},null,{"$f":"'3ºPeríodo'!AS25","v":"sem erros"}]
[null,null,null,null,16,{"$f":"Lista_alunos!H31","v":0},null,null,null,{"$f":"'1ºPeríodo'!AR26","v":"Insuficiente"},null,{"$f":"'1ºPeríodo'!AS26","v":"sem erros"},null,{"$f":"'2ºPeríodo'!AR26","v":"Insuficiente"},null,{"$f":"'2ºPeríodo'!AS26","v":"sem erros"},null,{"$f":"'3ºPeríodo'!AR26","v":"Insuficiente"},null,{"$f":"'3ºPeríodo'!AS26","v":"sem erros"}]
[null,null,null,null,17,{"$f":"Lista_alunos!H32","v":0},null,null,null,{"$f":"'1ºPeríodo'!AR27","v":"Insuficiente"},null,{"$f":"'1ºPeríodo'!AS27","v":"sem erros"},null,{"$f":"'2ºPeríodo'!AR27","v":"Insuficiente"},null,{"$f":"'2ºPeríodo'!AS27","v":"sem erros"},null,{"$f":"'3ºPeríodo'!AR27","v":"Insuficiente"},null,{"$f":"'3ºPeríodo'!AS27","v":"sem erros"}]
[null,null,null,null,18,{"$f":"Lista_alunos!H33","v":0},null,null,null,{"$f":"'1ºPeríodo'!AR28","v":"Insuficiente"},null,{"$f":"'1ºPeríodo'!AS28","v":"sem erros"},null,{"$f":"'2ºPeríodo'!AR28","v":"Insuficiente"},null,{"$f":"'2ºPeríodo'!AS28","v":"sem erros"},null,{"$f":"'3ºPeríodo'!AR28","v":"Insuficiente"},null,{"$f":"'3ºPeríodo'!AS28","v":"sem erros"}]
[null,null,null,null,19,{"$f":"Lista_alunos!H34","v":0},null,null,null,{"$f":"'1ºPeríodo'!AR29","v":"Insuficiente"},null,{"$f":"'1ºPeríodo'!AS29","v":"sem erros"},null,{"$f":"'2ºPeríodo'!AR29","v":"Insuficiente"},null,{"$f":"'2ºPeríodo'!AS29","v":"sem erros"},null,{"$f":"'3ºPeríodo'!AR29","v":"Insuficiente"},null,{"$f":"'3ºPeríodo'!AS29","v":"sem erros"}]
[null,null,null,null,20,{"$f":"Lista_alunos!H35","v":0},null,null,null,{"$f":"'1ºPeríodo'!AR30","v":"Insuficiente"},null,{"$f":"'1ºPeríodo'!AS30","v":"sem erros"},null,{"$f":"'2ºPeríodo'!AR30","v":"Insuficiente"},null,{"$f":"'2ºPeríodo'!AS30","v":"sem erros"},null,{"$f":"'3ºPeríodo'!AR30","v":"Insuficiente"},null,{"$f":"'3ºPeríodo'!AS30","v":"sem erros"}]
[null,null,null,null,21,{"$f":"Lista_alunos!H36","v":0},null,null,null,{"$f":"'1ºPeríodo'!AR31","v":"Insuficiente"},null,{"$f":"'1ºPeríodo'!AS31","v":"sem erros"},null,{"$f":"'2ºPeríodo'!AR31","v":"Insuficiente"},null,{"$f":"'2ºPeríodo'!AS31","v":"sem erros"},null,{"$f":"'3ºPeríodo'!AR31","v":"Insuficiente"},null,{"$f":"'3ºPeríodo'!AS31","v":"sem erros"}]
[null,null,null,null,22,{"$f":"Lista_alunos!H37","v":0},null,null,null,{"$f":"'1ºPeríodo'!AR32","v":"Insuficiente"},null,{"$f":"'1ºPeríodo'!AS32","v":"sem erros"},null,{"$f":"'2ºPeríodo'!AR32","v":"Insuficiente"},null,{"$f":"'2ºPeríodo'!AS32","v":"sem erros"},null,{"$f":"'3ºPeríodo'!AR32","v":"Insuficiente"},null,{"$f":"'3ºPeríodo'!AS32","v":"sem erros"}]
[null,null,null,null,23,{"$f":"Lista_alunos!H38","v":0},null,null,null,{"$f":"'1ºPeríodo'!AR33","v":"Insuficiente"},null,{"$f":"'1ºPeríodo'!AS33","v":"sem erros"},null,{"$f":"'2ºPeríodo'!AR33","v":"Insuficiente"},null,{"$f":"'2ºPeríodo'!AS33","v":"sem erros"},null,{"$f":"'3ºPeríodo'!AR33","v":"Insuficiente"},null,{"$f":"'3ºPeríodo'!AS33","v":"sem erros"}]
[null,null,null,null,24,{"$f":"Lista_alunos!H39","v":0},null,null,null,{"$f":"'1ºPeríodo'!AR34","v":"Insuficiente"},null,{"$f":"'1ºPeríodo'!AS34","v":"sem erros"},null,{"$f":"'2ºPeríodo'!AR34","v":"Insuficiente"},null,{"$f":"'2ºPeríodo'!AS34","v":"sem erros"},null,{"$f":"'3ºPeríodo'!AR34","v":"Insuficiente"},null,{"$f":"'3ºPeríodo'!AS34","v":"sem erros"}]
[null,null,null,null,25,{"$f":"Lista_alunos!H40","v":0},null,null,null,{"$f":"'1ºPeríodo'!AR35","v":"Insuficiente"},null,{"$f":"'1ºPeríodo'!AS35","v":"sem erros"},null,{"$f":"'2ºPeríodo'!AR35","v":"Insuficiente"},null,{"$f":"'2ºPeríodo'!AS35","v":"sem erros"},null,{"$f":"'3ºPeríodo'!AR35","v":"Insuficiente"},null,{"$f":"'3ºPeríodo'!AS35","v":"sem erros"}]
[null,null,null,null,26,{"$f":"Lista_alunos!H41","v":0},null,null,null,{"$f":"'1ºPeríodo'!AR36","v":"Insuficiente"},null,{"$f":"'1ºPeríodo'!AS36","v":"sem erros"},null,{"$f":"'2ºPeríodo'!AR36","v":"Insuficiente"},null,{"$f":"'2ºPeríodo'!AS36","v":"sem erros"},null,{"$f":"'3ºPeríodo'!AR36","v":"Insuficiente"},null,{"$f":"'3ºPeríodo'!AS36","v":"sem erros"}]
[null,null,null,null,27,{"$f":"Lista_alunos!H42","v":0},null,null,null,{"$f":"'1ºPeríodo'!AR37","v":"Insuficiente"},null,{"$f":"'1ºPeríodo'!AS37","v":"sem erros"},null,{"$f":"'2ºPeríodo'!AR37","v":"Insuficiente"},null,{"$f":"'2ºPeríodo'!AS37","v":"sem erros"},null,{"$f":"'3ºPeríodo'!AR37","v":"Insuficiente"},null,{"$f":"'3ºPeríodo'!AS37","v":"sem erros"}]
[]
[]
[null,null,null,"1ºPeríodo",null,null,null,null,null,"2ºPeríodo",null,null,null,null,null,null,null,null,"3ºPeríodo"]
[null,null,null,"0-2",null,"Insuficiente",null,null,{"$f":"COUNTIF(J25:K51,\"Insuficiente\")","v":15},"0-2",null,"Insuficiente",null,null,null,null,null,{"$f":"COUNTIF(N25:O51,\"Insuficiente\")","v":25},"0-2",null,"Insuficiente",null,null,{"$f":"COUNTIF(R25:S51,\"Insuficiente\")","v":25}]
[null,null,null,3,null,"Suficiente",null,null,{"$f":"COUNTIF(J25:K51,\"Suficiente\")","v":5},3,null,"Suficiente",null,null,null,null,null,{"$f":"COUNTIF(N25:O51,\"Suficiente\")","v":0},3,null,"Suficiente",null,null,{"$f":"COUNTIF(R25:S51,\"Suficiente\")","v":0}]
[null,null,null,4,null,"Bom",null,null,{"$f":"COUNTIF(J25:K51,\"Bom\")","v":1},4,null,"Bom",null,null,null,null,null,{"$f":"COUNTIF(N25:O51,\"Bom\")","v":0},4,null,"Bom",null,null,{"$f":"COUNTIF(R25:S51,\"Bom\")","v":1}]
[null,null,null,5,null,"Muito Bom",null,null,{"$f":"COUNTIF(J25:K50,\"Muito Bom\")","v":6},5,null,"Muito Bom",null,null,null,null,null,{"$f":"COUNTIF(N25:O51,\"Muito Bom\")","v":2},5,null,"Muito Bom",null,null,{"$f":"COUNTIF(R25:S51,\"Muito Bom\")","v":1}]

{"sheet":"Lista_alunos","index":1,"n_rows":42,"n_cols":8,"rows_kept":42,"cut":false,"hidden":false,"merged":[[11,4,11,9],[14,11,14,14]]}
[]
[]
[]
[]
[]
[]
[]
[]
[]
[]
[]
[null,null,null,null,"LISTA DE ALUNOS"]
[]
[]
[null,null,null,null,null,null,"N.º","Nome Aluno(a)"]
[null,null,null,null,null,null,1,"Is"]
[null,null,null,null,null,null,2,"Ca"]
[null,null,null,null,null,null,3,"f"]
[null,null,null,null,null,null,4,"g"]
[null,null,null,null,null,null,5,"Fe"]
[null,null,null,null,null,null,6,"F3"]
[null,null,null,null,null,null,7,"Je"]
[null,null,null,null,null,null,8,"M11"]
[null,null,null,null,null,null,9,"M"]
[null,null,null,null,null,null,10,"M123"]
[null,null,null,null,null,null,11,"M124"]
[null,null,null,null,null,null,12,"M125"]
[null,null,null,null,null,null,13,"Rm124"]
[null,null,null,null,null,null,14,"Ree"]
[null,null,null,null,null,null,15,"Sm"]
[null,null,null,null,null,null,16]
[null,null,null,null,null,null,17]
[null,null,null,null,null,null,18]
[null,null,null,null,null,null,19]
[null,null,null,null,null,null,20]
[null,null,null,null,null,null,21]
[null,null,null,null,null,null,22]
[null,null,null,null,null,null,23]
[null,null,null,null,null,null,24]
[null,null,null,null,null,null,25]
[null,null,null,null,null,null,26]
[null,null,null,null,null,null,27]

{"sheet":"1ºPeríodo","index":2,"n_rows":44,"n_cols":45,"rows_kept":44,"cut":false,"hidden":false,"merged":[[41,21,41,24],[41,1,41,2],[32,0,32,1],[33,0,33,1],[41,3,41,4],[41,7,41,10],[41,11,41,14],[34,0,34,1],[41,17,41,18],[35,0,35,1],[36,0,36,1],[39,3,39,17],[42,21,42,24],[43,1,43,2],[43,7,43,10],[43,11,43,14],[43,17,43,18],[43,21,43,24],[43,3,43,4],[42,1,42,2],[42,3,42,4],[42,7,42,10],[42,11,42,14],[42,17,42,18],[23,0,23,1],[24,0,24,1],[25,0,25,1],[26,0,26,1],[27,0,27,1],[11,0,11,1],[12,0,12,1],[29,0,29,1],[30,0,30,1],[31,0,31,1],[16,0,16,1],[13,0,13,1],[14,0,14,1],[15,0,15,1],[28,0,28,1],[17,0,17,1],[18,0,18,1],[19,0,19,1],[20,0,20,1],[21,0,21,1],[22,0,22,1],[8,37,8,44],[8,30,8,34],[10,0,10,1],[1,1,1,34],[3,2,3,7],[3,10,3,14],[3,17,3,21],[3,24,3,27],[3,30,3,34],[8,10,8,14],[8,17,8,21],[8,24,8,27],[8,2,8,7]]}
[]
[null,"GRELHA DE OBSERVAÇÃO DE LEITURA - 1º Período"]
[]
[null,null,"CORREÇÃO",null,null,null,null,null,null,null,"INTENSIDADE",null,null,null,null,null,null,"RITMO",null,null,null,null,null,null,"EXPRESSIVIDADE",null,null,null,null,null,"ARTICULAÇÃO"]
[null,null,"Soletra","Troca Letras","Faz Omissões",null,null,"Correta",null,null,"Alta","Baixa",null,null,"Certa",null,null,"Rápido","Lento",null,null,"Adequado",null,null,"Monótoma",null,null,"Expressiva",null,null,"Não Articula","Pouco Clara",null,null,"Boa",null,null,null,null,"s"]
[null,"Total 1 - SIM",{"$f":"COUNTIF(C11:C37,\"s\")","v":5},2,1,null,null,10,null,null,0,4,null,null,11,null,null,2,6,null,null,{"$f":"COUNTIF(V11:V37,\"s\")","v":7},null,null,5,null,null,9,null,null,0,4,null,null,11,null,null,null,null,"n"]
[null,"Total 2 - Não",{"$f":"COUNTIF(C11:C37,\"n\")","v":0},0,0,"Total(n)","Total(s)",0,"Total(N)","Total(s)",0,0,"Total(n)","Total(n)",0,"Total(n)","Total(s)",0,0,"Total(n)","Total(n)",0,"Total(n)","Total(s)",0,"Total(n)","Total(n)",0,"Total(n)","Total(s)",0,0,"Total(n)","Total(n)",0,"Total(n)","Total(s)"]
[]
[null,null,"CORREÇÃO",null,null,null,null,null,null,null,"INTENSIDADE",null,null,null,null,null,null,"RITMO",null,null,null,null,null,null,"EXPRESSIVIDADE",null,null,null,null,null,"ARTICULAÇÃO",null,null,null,null,null,null,"AVALIAÇÃO DA LEITURA"]
[null,null,"Soletra","Troca Letras","Faz Omissões","n","s","Correta","N","S","Alta","Baixa","n","s","Certa","N","S","Rápido","Lento","n","s","Adequado","N","S","Monótoma","n","s","Expressiva","N","S","Não Articula","Pouco Clara","n","s","Boa","N","S","POSITIVOS  (s)","NEGATIVOS (s)","POSITIVOS ","NEGATIVOS ","Total (n)","Total (s)","Avaliação","Avaliação"]
[{"$f":"Lista_alunos!H16","v":"Is"},null,null,null,null,{"$f":"COUNTIF(C11:E11,\"n\")","v":0},{"$f":"COUNTIF(C11:E11,\"s\")","v":0},"s",{"$f":"COUNTIF(H11,\"n\")","v":0},{"$f":"COUNTIF(H11,\"s\")","v":1},null,null,{"$f":"COUNTIF(K11:L11,\"n\")","v":0},{"$f":"COUNTIF(K11:L11,\"s\")","v":0},"s",{"$f":"COUNTIF(O11,\"N\")","v":0},{"$f":"COUNTIF(O11,\"s\")","v":1},null,null,{"$f":"COUNTIF(R11:S11,\"n\")","v":0},{"$f":"COUNTIF(R11:S11,\"s\")","v":0},"s",{"$f":"COUNTIF(V11,\"n\")","v":0},{"$f":"COUNTIF(V11,\"s\")","v":1},null,{"$f":"COUNTIF(Y11,\"n\")","v":0},{"$f":"COUNTIF(Y11,\"s\")","v":0},"s",{"$f":"COUNTIF(AB11,\"n\")","v":0},{"$f":"COUNTIF(AB11,\"s\")","v":1},null,null,{"$f":"COUNTIF(AE11:AF11,\"n\")","v":0},{"$f":"COUNTIF(AE11:AF11,\"s\")","v":0},"s",{"$f":"COUNTIF(AI11,\"n\")","v":0},{"$f":"COUNTIF(AI11,\"s\")","v":1},{"$f":"SUM(G11,N11,U11,AA11,AH11)","v":0},{"$f":"SUM(F11,M11,T11,Z11,AG11)","v":0},{"$f":"SUM(J11,Q11,X11,AD11,AK11)","v":5},{"$f":"SUM(I11,P11,W11,AC11,AJ11)","v":0},{"$f":"SUM(AL11,AM11,AO11)","v":0},{"$f":"SUM(AN11)","v":5},{"$f":"IF(AQ11<2,\"Insuficiente\",IF(AQ11<=3,\"Suficiente\",IF(AQ11<=4,\"Bom\",IF(AQ11<=5,\"Muito Bom\"))))","v":"Muito Bom"},{"$f":"IF(AP11<=0,\"sem erros\",IF(AP11<=2,\"PERTO POSITIVA\",IF(AP11<=4,\"ALGUNS ERROS\",IF(AP11<=6,\"MUITOS ERROS\",IF(AP11<=10,\"ELEVADOS ERROS\",IF(AP11<=12,\"ERRO TOTAL\"))))))","v":"sem erros"}]
[{"$f":"Lista_alunos!H17","v":"Ca"},null,null,null,null,{"$f":"COUNTIF(C12:E12,\"n\")","v":0},{"$f":"COUNTIF(C12:E12,\"s\")","v":0},"s",{"$f":"COUNTIF(H12,\"n\")","v":0},{"$f":"COUNTIF(H12,\"s\")","v":1},null,"s",{"$f":"COUNTIF(K12:L12,\"n\")","v":0},{"$f":"COUNTIF(K12:L12,\"s\")","v":1},null,{"$f":"COUNTIF(O12,\"N\")","v":0},{"$f":"COUNTIF(O12,\"s\")","v":0},null,"s",{"$f":"COUNTIF(R12:S12,\"n\")","v":0},{"$f":"COUNTIF(R12:S12,\"s\")","v":1},null,{"$f":"COUNTIF(V12,\"n\")","v":0},{"$f":"COUNTIF(V12,\"s\")","v":0},null,{"$f":"COUNTIF(Y12,\"n\")","v":0},{"$f":"COUNTIF(Y12,\"s\")","v":0},"s",{"$f":"COUNTIF(AB12,\"n\")","v":0},{"$f":"COUNTIF(AB12,\"s\")","v":1},null,null,{"$f":"COUNTIF(AE12:AF12,\"n\")","v":0},{"$f":"COUNTIF(AE12:AF12,\"s\")","v":0},"s",{"$f":"COUNTIF(AI12,\"n\")","v":0},{"$f":"COUNTIF(AI12,\"s\")","v":1},{"$f":"SUM(G12,N12,U12,AA12,AH12)","v":2},{"$f":"SUM(F12,M12,T12,Z12,AG12)","v":0},{"$f":"SUM(J12,Q12,X12,AD12,AK12)","v":3},{"$f":"SUM(I12,P12,W12,AC12,AJ12)","v":0},{"$f":"SUM(AL12,AM12,AO12)","v":2},{"$f":"SUM(AN12)","v":3},{"$f":"IF(AQ12<2,\"Insuficiente\",IF(AQ12<=3,\"Suficiente\",IF(AQ12<=4,\"Bom\",IF(AQ12<=5,\"Muito Bom\"))))","v":"Suficiente"},{"$f":"IF(AP12<=0,\"sem erros\",IF(AP12<=2,\"PERTO POSITIVA\",IF(AP12<=4,\"ALGUNS ERROS\",IF(AP12<=6,\"MUITOS ERROS\",IF(AP12<=10,\"ELEVADOS ERROS\",IF(AP12<=12,\"ERRO TOTAL\"))))))","v":"PERTO POSITIVA"}]
[{"$f":"Lista_alunos!H18","v":"f"},null,null,null,null,0,0,"s",0,1,null,null,0,0,"s",0,1,null,null,0,0,"s",0,1,"s",0,1,null,0,0,null,null,0,0,"s",0,1,1,0,4,0,1,4,"Bom","PERTO POSITIVA"]
[{"$f":"Lista_alunos!H19","v":"g"},null,"s","s",null,0,2,null,0,0,null,"s",0,1,null,0,0,null,"s",0,1,null,0,0,null,0,0,"s",0,1,null,"s",0,1,null,0,0,5,0,1,0,5,1,"Insuficiente","MUITOS ERROS"]
[{"$f":"Lista_alunos!H20","v":"Fe"},null,"s",null,null,0,1,null,0,0,null,null,0,0,"s",0,1,null,"s",0,1,null,0,0,null,0,0,"s",0,1,null,"s",0,1,null,0,0,3,0,2,0,3,2,"Suficiente","ALGUNS ERROS"]
[{"$f":"Lista_alunos!H21","v":"F3"},null,null,null,null,0,0,"s",0,1,null,null,0,0,"s",0,1,null,null,0,0,"s",0,1,null,0,0,"s",0,1,null,null,0,0,"s",0,1,0,0,5,0,0,5,"Muito Bom","sem erros"]
[{"$f":"Lista_alunos!H22","v":"Je"},null,null,null,null,0,0,"s",0,1,null,null,0,0,"s",0,1,null,null,0,0,"s",0,1,null,0,0,"s",0,1,null,null,0,0,"s",0,1,0,0,5,0,0,5,"Muito Bom","sem erros"]
[{"$f":"Lista_alunos!H23","v":"M11"},null,null,null,null,0,0,"s",0,1,null,null,0,0,"s",0,1,"s",null,0,1,null,0,0,"s",0,1,null,0,0,null,null,0,0,"s",0,1,2,0,3,0,2,3,"Suficiente","PERTO POSITIVA"]
[{"$f":"Lista_alunos!H24","v":"M"},null,null,null,null,0,0,"s",0,1,null,null,0,0,"s",0,1,null,null,0,0,"s",0,1,null,0,0,"s",0,1,null,null,0,0,"s",0,1,0,0,5,0,0,5,"Muito Bom","sem erros"]
[{"$f":"Lista_alunos!H25","v":"M123"},null,"s",null,null,0,1,null,0,0,null,"s",0,1,null,0,0,null,"s",0,1,null,0,0,null,0,0,null,0,0,null,"s",0,1,null,0,0,4,0,0,0,4,0,"Insuficiente","ALGUNS ERROS"]
[{"$f":"Lista_alunos!H26","v":"M124"},null,null,null,null,0,0,"s",0,1,null,null,0,0,"s",0,1,"s",null,0,1,null,0,0,"s",0,1,null,0,0,null,null,0,0,"s",0,1,2,0,3,0,2,3,"Suficiente","PERTO POSITIVA"]
[{"$f":"Lista_alunos!H27","v":"M125"},null,null,null,null,0,0,"s",0,1,null,null,0,0,"s",0,1,null,null,0,0,"s",0,1,null,0,0,"s",0,1,null,null,0,0,"s",0,1,0,0,5,0,0,5,"Muito Bom","sem erros"]
[{"$f":"Lista_alunos!H28","v":"Rm124"},null,null,null,null,0,0,"s",0,1,null,null,0,0,"s",0,1,null,null,0,0,"s",0,1,null,0,0,"s",0,1,null,null,0,0,"s",0,1,0,0,5,0,0,5,"Muito Bom","sem erros"]
[{"$f":"Lista_alunos!H29","v":"Ree"},null,"s","s",null,0,2,null,0,0,null,null,0,0,"s",0,1,null,"s",0,1,null,0,0,"s",0,1,null,0,0,null,null,0,0,"s",0,1,4,0,2,0,4,2,"Suficiente","ALGUNS ERROS"]
[{"$f":"Lista_alunos!H30","v":"Sm"},null,"s",null,"s",0,2,null,0,0,null,"s",0,1,null,0,0,null,"s",0,1,null,0,0,"s",0,1,null,0,0,null,"s",0,1,null,0,0,6,0,0,0,6,0,"Insuficiente","MUITOS ERROS"]
[{"$f":"Lista_alunos!H31","v":0},null,null,null,null,0,0,null,0,0,null,null,0,0,null,0,0,null,null,0,0,null,0,0,null,0,0,null,0,0,null,null,0,0,null,0,0,0,0,0,0,0,0,"Insuficiente","sem erros"]
[{"$f":"Lista_alunos!H32","v":0},null,null,null,null,0,0,null,0,0,null,null,0,0,null,0,0,null,null,0,0,null,0,0,null,0,0,null,0,0,null,null,0,0,null,0,0,0,0,0,0,0,0,"Insuficiente","sem erros"]
[{"$f":"Lista_alunos!H33","v":0},null,null,null,null,0,0,null,0,0,null,null,0,0,null,0,0,null,null,0,0,null,0,0,null,0,0,null,0,0,null,null,0,0,null,0,0,0,0,0,0,0,0,"Insuficiente","sem erros"]
[{"$f":"Lista_alunos!H34","v":0},null,null,null,null,0,0,null,0,0,null,null,0,0,null,0,0,null,null,0,0,null,0,0,null,0,0,null,0,0,null,null,0,0,null,0,0,0,0,0,0,0,0,"Insuficiente","sem erros"]
[{"$f":"Lista_alunos!H35","v":0},null,null,null,null,0,0,null,0,0,null,null,0,0,null,0,0,null,null,0,0,null,0,0,null,0,0,null,0,0,null,null,0,0,null,0,0,0,0,0,0,0,0,"Insuficiente","sem erros"]
[{"$f":"Lista_alunos!H36","v":0},null,null,null,null,0,0,null,0,0,null,null,0,0,null,0,0,null,null,0,0,null,0,0,null,0,0,null,0,0,null,null,0,0,null,0,0,0,0,0,0,0,0,"Insuficiente","sem erros"]
[{"$f":"Lista_alunos!H37","v":0},null,null,null,null,0,0,null,0,0,null,null,0,0,null,0,0,null,null,0,0,null,0,0,null,0,0,null,0,0,null,null,0,0,null,0,0,0,0,0,0,0,0,"Insuficiente","sem erros"]
[{"$f":"Lista_alunos!H38","v":0},null,null,null,null,0,0,null,0,0,null,null,0,0,null,0,0,null,null,0,0,null,0,0,null,0,0,null,0,0,null,null,0,0,null,0,0,0,0,0,0,0,0,"Insuficiente","sem erros"]
[{"$f":"Lista_alunos!H39","v":0},null,null,null,null,0,0,null,0,0,null,null,0,0,null,0,0,null,null,0,0,null,0,0,null,0,0,null,0,0,null,null,0,0,null,0,0,0,0,0,0,0,0,"Insuficiente","sem erros"]
[{"$f":"Lista_alunos!H40","v":0},null,null,null,null,0,0,null,0,0,null,null,0,0,null,0,0,null,null,0,0,null,0,0,null,0,0,null,0,0,null,null,0,0,null,0,0,0,0,0,0,0,0,"Insuficiente","sem erros"]
[{"$f":"Lista_alunos!H41","v":0},null,null,null,null,0,0,null,0,0,null,null,0,0,null,0,0,null,null,0,0,null,0,0,null,0,0,null,0,0,null,null,0,0,null,0,0,0,0,0,0,0,0,"Insuficiente","sem erros"]
[{"$f":"Lista_alunos!H42","v":0},null,null,null,null,0,0,null,0,0,null,null,0,0,null,0,0,null,null,0,0,null,0,0,null,0,0,null,0,0,null,null,0,0,null,0,0,0,0,0,0,0,0,"Insuficiente","sem erros"]
[null,"TOTAL",null,null,null,{"$f":"SUM(F11:F37)","v":0},{"$f":"SUM(G11:G37)","v":8},null,{"$f":"SUM(I11:I37)","v":0},10,null,null,0,4,null,0,11,null,null,0,8,null,0,7,null,0,5,null,0,9,null,null,0,4,null,0,11,{"$f":"SUM(AL11:AL37)","v":29},{"$f":"SUM(AM11:AM37)","v":0},{"$f":"SUM(AN11:AN37)","v":48},{"$f":"SUM(AO11:AO37)","v":0},29,48]
[]
[null,null,null,"TOTAL DE AVALIAÇÃO DOS ALUNOS"]
[]
[null,"CORREÇÃO",null,"INTENSIDADE",null,null,null,"RÍTMO",null,null,null,"EXPRESSIVIDADE",null,null,null,null,null,"ARTICULAÇÃO",null,null,null,"TOTAL"]
["POSITIVO",{"$f":"H6","v":10},null,{"$f":"O6","v":11},null,null,null,{"$f":"V6","v":7},null,null,null,{"$f":"AB6","v":9},null,null,null,null,null,{"$f":"AI6","v":11},null,null,null,{"$f":"SUM(B43:R43)","v":48}]
["NEGATIVO",{"$f":"H7","v":0},null,{"$f":"O7","v":0},null,null,null,{"$f":"V7","v":0},null,null,null,{"$f":"AB7","v":0},null,null,null,null,null,{"$f":"AE7","v":0},null,null,null,{"$f":"SUM(B44:R44)","v":0}]

{"sheet":"Planilha1","index":3,"n_rows":276,"n_cols":6,"rows_kept":276,"cut":false,"hidden":false,"merged":[[18,5,18,12],[19,5,19,12],[20,5,20,12],[21,5,21,12],[22,5,22,12],[23,5,23,12],[26,1,35,4],[26,5,26,12],[27,5,27,12],[28,5,28,12],[29,5,29,12],[30,5,30,12],[31,5,31,12],[32,5,32,12],[33,5,33,12],[34,5,34,12],[35,5,35,12],[1,2,2,8],[5,5,5,12],[5,1,5,4],[6,5,6,12],[7,5,7,12],[8,5,8,12],[15,5,15,12],[14,5,14,12],[9,5,9,12],[11,5,11,12],[10,5,10,12],[12,5,12,12],[2,9,3,11],[13,5,13,12],[6,1,15,4],[56,1,65,4],[66,1,75,4],[266,5,266,12],[267,5,267,12],[268,5,268,12],[269,5,269,12],[270,5,270,12],[76,1,85,4],[86,1,95,4],[96,1,105,4],[106,1,115,4],[116,1,125,4],[126,1,135,4],[136,1,145,4],[146,1,155,4],[156,1,165,4],[156,5,156,12],[157,5,157,12],[158,5,158,12],[159,5,159,12],[160,5,160,12],[161,5,161,12],[162,5,162,12],[163,5,163,12],[164,5,164,12],[165,5,165,12],[146,5,146,12],[147,5,147,12],[153,5,153,12],[154,5,154,12],[155,5,155,12],[145,5,145,12],[148,5,148,12],[149,5,149,12],[150,5,150,12],[151,5,151,12],[152,5,152,12],[140,5,140,12],[141,5,141,12],[142,5,142,12],[143,5,143,12],[144,5,144,12],[126,5,126,12],[127,5,127,12],[128,5,128,12],[129,5,129,12],[130,5,130,12],[131,5,131,12],[132,5,132,12],[133,5,133,12],[134,5,134,12],[135,5,135,12],[136,5,136,12],[137,5,137,12],[138,5,138,12],[139,5,139,12],[121,5,121,12],[122,5,122,12],[123,5,123,12],[124,5,124,12],[125,5,125,12],[116,5,116,12],[117,5,117,12],[118,5,118,12],[119,5,119,12],[120,5,120,12],[111,5,111,12],[112,5,112,12],[113,5,113,12],[114,5,114,12],[115,5,115,12],[106,5,106,12],[107,5,107,12],[108,5,108,12],[109,5,109,12],[110,5,110,12],[101,5,101,12],[102,5,102,12],[103,5,103,12],[104,5,104,12],[105,5,105,12],[96,5,96,12],[97,5,97,12],[98,5,98,12],[99,5,99,12],[100,5,100,12],[91,5,91,12],[92,5,92,12],[93,5,93,12],[94,5,94,12],[95,5,95,12],[86,5,86,12],[87,5,87,12],[88,5,88,12],[89,5,89,12],[90,5,90,12],[81,5,81,12],[82,5,82,12],[83,5,83,12],[84,5,84,12],[85,5,85,12],[76,5,76,12],[77,5,77,12],[78,5,78,12],[79,5,79,12],[80,5,80,12],[57,5,57,12],[58,5,58,12],[59,5,59,12],[60,5,60,12],[71,5,71,12],[72,5,72,12],[73,5,73,12],[74,5,74,12],[75,5,75,12],[66,5,66,12],[67,5,67,12],[68,5,68,12],[69,5,69,12],[70,5,70,12],[6,0,15,0],[16,0,25,0],[26,0,35,0],[36,0,45,0],[46,0,55,0],[47,5,47,12],[48,5,48,12],[49,5,49,12],[50,5,50,12],[51,5,51,12],[36,1,45,4],[36,5,36,12],[37,5,37,12],[38,5,38,12],[39,5,39,12],[40,5,40,12],[41,5,41,12],[42,5,42,12],[43,5,43,12],[44,5,44,12],[24,5,24,12],[25,5,25,12],[16,5,16,12],[17,5,17,12],[45,5,45,12],[46,1,55,4],[46,5,46,12],[16,1,25,4],[106,0,115,0],[116,0,125,0],[126,0,135,0],[136,0,145,0],[146,0,155,0],[56,0,65,0],[66,0,75,0],[76,0,85,0],[86,0,95,0],[96,0,105,0],[52,5,52,12],[53,5,53,12],[54,5,54,12],[55,5,55,12],[61,5,61,12],[62,5,62,12],[63,5,63,12],[64,5,64,12],[65,5,65,12],[56,5,56,12],[156,0,165,0],[266,0,275,0],[166,0,175,0],[166,1,175,4],[166,5,166,12],[167,5,167,12],[168,5,168,12],[169,5,169,12],[170,5,170,12],[171,5,171,12],[172,5,172,12],[173,5,173,12],[174,5,174,12],[175,5,175,12],[176,0,185,0],[176,1,185,4],[275,5,275,12],[266,1,275,4],[271,5,271,12],[272,5,272,12],[273,5,273,12],[274,5,274,12],[181,5,181,12],[182,5,182,12],[183,5,183,12],[184,5,184,12],[185,5,185,12],[176,5,176,12],[177,5,177,12],[178,5,178,12],[179,5,179,12],[180,5,180,12],[186,0,195,0],[186,1,195,4],[186,5,186,12],[187,5,187,12],[188,5,188,12],[189,5,189,12],[190,5,190,12],[191,5,191,12],[192,5,192,12],[193,5,193,12],[194,5,194,12],[195,5,195,12],[196,0,205,0],[196,1,205,4],[196,5,196,12],[197,5,197,12],[198,5,198,12],[199,5,199,12],[200,5,200,12],[201,5,201,12],[202,5,202,12],[203,5,203,12],[204,5,204,12],[205,5,205,12],[206,0,215,0],[206,1,215,4],[206,5,206,12],[207,5,207,12],[208,5,208,12],[209,5,209,12],[210,5,210,12],[211,5,211,12],[212,5,212,12],[213,5,213,12],[214,5,214,12],[215,5,215,12],[216,0,225,0],[216,1,225,4],[216,5,216,12],[217,5,217,12],[218,5,218,12],[219,5,219,12],[220,5,220,12],[221,5,221,12],[222,5,222,12],[223,5,223,12],[224,5,224,12],[225,5,225,12],[226,0,235,0],[226,1,235,4],[226,5,226,12],[227,5,227,12],[228,5,228,12],[229,5,229,12],[230,5,230,12],[231,5,231,12],[232,5,232,12],[233,5,233,12],[234,5,234,12],[235,5,235,12],[236,0,245,0],[236,1,245,4],[236,5,236,12],[237,5,237,12],[238,5,238,12],[239,5,239,12],[240,5,240,12],[241,5,241,12],[242,5,242,12],[243,5,243,12],[244,5,244,12],[245,5,245,12],[246,0,255,0],[246,1,255,4],[246,5,246,12],[247,5,247,12],[248,5,248,12],[249,5,249,12],[250,5,250,12],[251,5,251,12],[252,5,252,12],[253,5,253,12],[254,5,254,12],[255,5,255,12],[256,0,265,0],[256,1,265,4],[256,5,256,12],[257,5,257,12],[258,5,258,12],[259,5,259,12],[260,5,260,12],[261,5,261,12],[262,5,262,12],[263,5,263,12],[264,5,264,12],[265,5,265,12]]}
[]
[null,null,"RESUMOS DOS RESULTADOS POR ALUNO DO 1º PERÍODO"]
[]
[]
[]
[null,"NOME DO ALUNO",null,null,null,"RELATÓRIO DE AVALIAÇÃO DA LEITURA"]
[1,{"$f":"Lista_alunos!H16","v":"Is"},null,null,null,{"$f":"IF('1ºPeríodo'!G11>=1,\"A leitura é insuficiente: soletra,troca letras, faz omissões\",)","v":0}]
[null,null,null,null,null,{"$f":"IF('1ºPeríodo'!J11>=1,\"Lê com muita correção.\",)","v":"Lê com muita correção."}]
[null,null,null,null,null,{"$f":"IF('1ºPeríodo'!N11>=1,\"Apresenta  erros de leitura na intensidade\",)","v":0}]
[null,null,null,null,null,{"$f":"IF('1ºPeríodo'!X11>=1,\"Lê com ritmo adequado.\",)","v":"Lê com ritmo adequado."}]
[null,null,null,null,null,{"$f":"IF('1ºPeríodo'!AD11>=1,\"Lê com expressividade os textos.\",)","v":"Lê com expressividade os textos."}]
[null,null,null,null,null,{"$f":"IF('1ºPeríodo'!AA11>=1,\"Lê sem expressividade.\",)","v":0}]
[null,null,null,null,null,{"$f":"IF('1ºPeríodo'!AH11>=1,\"Não articula e é pouco clara.\",)","v":0}]
[null,null,null,null,null,{"$f":"IF('1ºPeríodo'!AK11>=1,\"Lê com boa articulação os textos.\",)","v":"Lê com boa articulação os textos."}]
[null,null,null,null,null,{"$f":"IF('1ºPeríodo'!U11>=1,\"Não lê com ritmo adequado.\",)","v":0}]
[null,null,null,null,null,{"$f":"IF('1ºPeríodo'!Q11>=1,\"Realiza uma leitura com boa intensidade.\",)","v":"Realiza uma leitura com boa intensidade."}]
[2,{"$f":"Lista_alunos!H17","v":"Ca"},null,null,null,{"$f":"IF('1ºPeríodo'!G12>=1,\"A leitura é insuficiente: soletra,troca letras, faz omissões\",)","v":0}]
[null,null,null,null,null,{"$f":"IF('1ºPeríodo'!J12>=1,\"Lê com muita correção.\",)","v":"Lê com muita correção."}]
[null,null,null,null,null,{"$f":"IF('1ºPeríodo'!N12>=1,\"Apresenta  erros de leitura na intensidade\",)","v":"Apresenta  erros de leitura na intensidade"}]
[null,null,null,null,null,{"$f":"IF('1ºPeríodo'!X12>=1,\"Lê com ritmo adequado.\",)","v":0}]
[null,null,null,null,null,{"$f":"IF('1ºPeríodo'!AD12>=1,\"Lê com expressividade os textos.\",)","v":"Lê com expressividade os textos."}]
[null,null,null,null,null,{"$f":"IF('1ºPeríodo'!AA12>=1,\"Lê sem expressividade.\",)","v":0}]
[null,null,null,null,null,{"$f":"IF('1ºPeríodo'!AH12>=1,\"Não articula e é pouco clara.\",)","v":0}]
[null,null,null,null,null,{"$f":"IF('1ºPeríodo'!AK12>=1,\"Lê com boa articulação os textos.\",)","v":"Lê com boa articulação os textos."}]
[null,null,null,null,null,{"$f":"IF('1ºPeríodo'!U12>=1,\"Não lê com ritmo adequado.\",)","v":"Não lê com ritmo adequado."}]
[null,null,null,null,null,{"$f":"IF('1ºPeríodo'!Q12>=1,\"Realiza uma leitura com boa intensidade.\",)","v":0}]
[3,{"$f":"Lista_alunos!H18","v":"f"},null,null,null,{"$f":"IF('1ºPeríodo'!G13>=1,\"A leitura é insuficiente: soletra,troca letras, faz omissões\",)","v":0}]
[null,null,null,null,null,{"$f":"IF('1ºPeríodo'!J13>=1,\"Lê com muita correção.\",)","v":"Lê com muita correção."}]
[null,null,null,null,null,{"$f":"IF('1ºPeríodo'!N13>=1,\"Apresenta  erros de leitura na intensidade\",)","v":0}]
[null,null,null,null,null,{"$f":"IF('1ºPeríodo'!X13>=1,\"Lê com ritmo adequado.\",)","v":"Lê com ritmo adequado."}]
[null,null,null,null,null,{"$f":"IF('1ºPeríodo'!AD13>=1,\"Lê com expressividade os textos.\",)","v":0}]
[null,null,null,null,null,{"$f":"IF('1ºPeríodo'!AA13>=1,\"Lê sem expressividade.\",)","v":"Lê sem expressividade."}]
[null,null,null,null,null,{"$f":"IF('1ºPeríodo'!AH13>=1,\"Não articula e é pouco clara.\",)","v":0}]
[null,null,null,null,null,{"$f":"IF('1ºPeríodo'!AK13>=1,\"Lê com boa articulação os textos.\",)","v":"Lê com boa articulação os textos."}]
[null,null,null,null,null,{"$f":"IF('1ºPeríodo'!U13>=1,\"Não lê com ritmo adequado.\",)","v":0}]
[null,null,null,null,null,{"$f":"IF('1ºPeríodo'!Q13>=1,\"Realiza uma leitura com boa intensidade.\",)","v":"Realiza uma leitura com boa intensidade."}]
[4,{"$f":"Lista_alunos!H19","v":"g"},null,null,null,{"$f":"IF('1ºPeríodo'!G14>=1,\"A leitura é insuficiente: soletra,troca letras, faz omissões\",)","v":"A leitura é insuficiente: soletra,troca letras, faz omissões"}]
[null,null,null,null,null,{"$f":"IF('1ºPeríodo'!J14>=1,\"Lê com muita correção.\",)","v":0}]
[null,null,null,null,null,{"$f":"IF('1ºPeríodo'!N14>=1,\"Apresenta  erros de leitura na intensidade\",)","v":"Apresenta  erros de leitura na intensidade"}]
[null,null,null,null,null,{"$f":"IF('1ºPeríodo'!X14>=1,\"Lê com ritmo adequado.\",)","v":0}]
[null,null,null,null,null,{"$f":"IF('1ºPeríodo'!AD14>=1,\"Lê com expressividade os textos.\",)","v":"Lê com expressividade os textos."}]
[null,null,null,null,null,{"$f":"IF('1ºPeríodo'!AA14>=1,\"Lê sem expressividade.\",)","v":0}]
[null,null,null,null,null,{"$f":"IF('1ºPeríodo'!AH14>=1,\"Não articula e é pouco clara.\",)","v":"Não articula e é pouco clara."}]
[null,null,null,null,null,{"$f":"IF('1ºPeríodo'!AK14>=1,\"Lê com boa articulação os textos.\",)","v":0}]
[null,null,null,null,null,{"$f":"IF('1ºPeríodo'!U14>=1,\"Não lê com ritmo adequado.\",)","v":"Não lê com ritmo adequado."}]
[null,null,null,null,null,{"$f":"IF('1ºPeríodo'!Q14>=1,\"Realiza uma leitura com boa intensidade.\",)","v":0}]
[5,{"$f":"Lista_alunos!H20","v":"Fe"},null,null,null,{"$f":"IF('1ºPeríodo'!G15>=1,\"A leitura é insuficiente: soletra,troca letras, faz omissões\",)","v":"A leitura é insuficiente: soletra,troca letras, faz omissões"}]
[null,null,null,null,null,{"$f":"IF('1ºPeríodo'!J15>=1,\"Lê com muita correção.\",)","v":0}]
[null,null,null,null,null,{"$f":"IF('1ºPeríodo'!N15>=1,\"Apresenta  erros de leitura na intensidade\",)","v":0}]
[null,null,null,null,null,{"$f":"IF('1ºPeríodo'!X15>=1,\"Lê com ritmo adequado.\",)","v":0}]
[null,null,null,null,null,{"$f":"IF('1ºPeríodo'!AD15>=1,\"Lê com expressividade os textos.\",)","v":"Lê com expressividade os textos."}]
[null,null,null,null,null,{"$f":"IF('1ºPeríodo'!AA15>=1,\"Lê sem expressividade.\",)","v":0}]
[null,null,null,null,null,{"$f":"IF('1ºPeríodo'!AH15>=1,\"Não articula e é pouco clara.\",)","v":"Não articula e é pouco clara."}]
[null,null,null,null,null,{"$f":"IF('1ºPeríodo'!AK15>=1,\"Lê com boa articulação os textos.\",)","v":0}]
[null,null,null,null,null,{"$f":"IF('1ºPeríodo'!U15>=1,\"Não lê com ritmo adequado.\",)","v":"Não lê com ritmo adequado."}]
[null,null,null,null,null,{"$f":"IF('1ºPeríodo'!Q15>=1,\"Realiza uma leitura com boa intensidade.\",)","v":"Realiza uma leitura com boa intensidade."}]
[6,{"$f":"Lista_alunos!H21","v":"F3"},null,null,null,{"$f":"IF('1ºPeríodo'!G16>=1,\"A leitura é insuficiente: soletra,troca letras, faz omissões\",)","v":0}]
[null,null,null,null,null,{"$f":"IF('1ºPeríodo'!J16>=1,\"Lê com muita correção.\",)","v":"Lê com muita correção."}]
[null,null,null,null,null,{"$f":"IF('1ºPeríodo'!N16>=1,\"Apresenta  erros de leitura na intensidade\",)","v":0}]
[null,null,null,null,null,{"$f":"IF('1ºPeríodo'!X16>=1,\"Lê com ritmo adequado.\",)","v":"Lê com ritmo adequado."}]
[null,null,null,null,null,{"$f":"IF('1ºPeríodo'!AD16>=1,\"Lê com expressividade os textos.\",)","v":"Lê com expressividade os textos."}]
[null,null,null,null,null,{"$f":"IF('1ºPeríodo'!AA16>=1,\"Lê sem expressividade.\",)","v":0}]
[null,null,null,null,null,{"$f":"IF('1ºPeríodo'!AH16>=1,\"Não articula e é pouco clara.\",)","v":0}]
[null,null,null,null,null,{"$f":"IF('1ºPeríodo'!AK16>=1,\"Lê com boa articulação os textos.\",)","v":"Lê com boa articulação os textos."}]
[null,null,null,null,null,{"$f":"IF('1ºPeríodo'!U16>=1,\"Não lê com ritmo adequado.\",)","v":0}]
[null,null,null,null,null,{"$f":"IF('1ºPeríodo'!Q16>=1,\"Realiza uma leitura com boa intensidade.\",)","v":"Realiza uma leitura com boa intensidade."}]
[7,{"$f":"Lista_alunos!H22","v":"Je"},null,null,null,{"$f":"IF('1ºPeríodo'!G17>=1,\"A leitura é insuficiente: soletra,troca letras, faz omissões\",)","v":0}]
[null,null,null,null,null,{"$f":"IF('1ºPeríodo'!J17>=1,\"Lê com muita correção.\",)","v":"Lê com muita correção."}]
[null,null,null,null,null,{"$f":"IF('1ºPeríodo'!N17>=1,\"Apresenta  erros de leitura na intensidade\",)","v":0}]
[null,null,null,null,null,{"$f":"IF('1ºPeríodo'!X17>=1,\"Lê com ritmo adequado.\",)","v":"Lê com ritmo adequado."}]
[null,null,null,null,null,{"$f":"IF('1ºPeríodo'!AD17>=1,\"Lê com expressividade os textos.\",)","v":"Lê com expressividade os textos."}]
[null,null,null,null,null,{"$f":"IF('1ºPeríodo'!AA17>=1,\"Lê sem expressividade.\",)","v":0}]
[null,null,null,null,null,{"$f":"IF('1ºPeríodo'!AH17>=1,\"Não articula e é pouco clara.\",)","v":0}]
[null,null,null,null,null,{"$f":"IF('1ºPeríodo'!AK17>=1,\"Lê com boa articulação os textos.\",)","v":"Lê com boa articulação os textos."}]
[null,null,null,null,null,{"$f":"IF('1ºPeríodo'!U17>=1,\"Não lê com ritmo adequado.\",)","v":0}]
[null,null,null,null,null,{"$f":"IF('1ºPeríodo'!Q17>=1,\"Realiza uma leitura com boa intensidade.\",)","v":"Realiza uma leitura com boa intensidade."}]
[8,{"$f":"Lista_alunos!H23","v":"M11"},null,null,null,{"$f":"IF('1ºPeríodo'!G18>=1,\"A leitura é insuficiente: soletra,troca letras, faz omissões\",)","v":0}]
[null,null,null,null,null,{"$f":"IF('1ºPeríodo'!J18>=1,\"Lê com muita correção.\",)","v":"Lê com muita correção."}]
[null,null,null,null,null,{"$f":"IF('1ºPeríodo'!N18>=1,\"Apresenta  erros de leitura na intensidade\",)","v":0}]
[null,null,null,null,null,{"$f":"IF('1ºPeríodo'!X18>=1,\"Lê com ritmo adequado.\",)","v":0}]
[null,null,null,null,null,{"$f":"IF('1ºPeríodo'!AD18>=1,\"Lê com expressividade os textos.\",)","v":0}]
[null,null,null,null,null,{"$f":"IF('1ºPeríodo'!AA18>=1,\"Lê sem expressividade.\",)","v":"Lê sem expressividade."}]
[null,null,null,null,null,{"$f":"IF('1ºPeríodo'!AH18>=1,\"Não articula e é pouco clara.\",)","v":0}]
[null,null,null,null,null,{"$f":"IF('1ºPeríodo'!AK18>=1,\"Lê com boa articulação os textos.\",)","v":"Lê com boa articulação os textos."}]
[null,null,null,null,null,{"$f":"IF('1ºPeríodo'!U18>=1,\"Não lê com ritmo adequado.\",)","v":"Não lê com ritmo adequado."}]
[null,null,null,null,null,{"$f":"IF('1ºPeríodo'!Q18>=1,\"Realiza uma leitura com boa intensidade.\",)","v":"Realiza uma leitura com boa intensidade."}]
[9,{"$f":"Lista_alunos!H24","v":"M"},null,null,null,{"$f":"IF('1ºPeríodo'!G19>=1,\"A leitura é insuficiente: soletra,troca letras, faz omissões\",)","v":0}]
[null,null,null,null,null,{"$f":"IF('1ºPeríodo'!J19>=1,\"Lê com muita correção.\",)","v":"Lê com muita correção."}]
[null,null,null,null,null,{"$f":"IF('1ºPeríodo'!N19>=1,\"Apresenta  erros de leitura na intensidade\",)","v":0}]
[null,null,null,null,null,{"$f":"IF('1ºPeríodo'!X19>=1,\"Lê com ritmo adequado.\",)","v":"Lê com ritmo adequado."}]
[null,null,null,null,null,{"$f":"IF('1ºPeríodo'!AD19>=1,\"Lê com expressividade os textos.\",)","v":"Lê com expressividade os textos."}]
[null,null,null,null,null,{"$f":"IF('1ºPeríodo'!AA19>=1,\"Lê sem expressividade.\",)","v":0}]
[null,null,null,null,null,{"$f":"IF('1ºPeríodo'!AH19>=1,\"Não articula e é pouco clara.\",)","v":0}]
[null,null,null,null,null,{"$f":"IF('1ºPeríodo'!AK19>=1,\"Lê com boa articulação os textos.\",)","v":"Lê com boa articulação os textos."}]
[null,null,null,null,null,{"$f":"IF('1ºPeríodo'!U19>=1,\"Não lê com ritmo adequado.\",)","v":0}]
[null,null,null,null,null,{"$f":"IF('1ºPeríodo'!Q19>=1,\"Realiza uma leitura com boa intensidade.\",)","v":"Realiza uma leitura com boa intensidade."}]
[10,{"$f":"Lista_alunos!H25","v":"M123"},null,null,null,{"$f":"IF('1ºPeríodo'!G20>=1,\"A leitura é insuficiente: soletra,troca letras, faz omissões\",)","v":"A leitura é insuficiente: soletra,troca letras, faz omissões"}]
[null,null,null,null,null,{"$f":"IF('1ºPeríodo'!J20>=1,\"Lê com muita correção.\",)","v":0}]
[null,null,null,null,null,{"$f":"IF('1ºPeríodo'!N20>=1,\"Apresenta  erros de leitura na intensidade\",)","v":"Apresenta  erros de leitura na intensidade"}]
[null,null,null,null,null,{"$f":"IF('1ºPeríodo'!X20>=1,\"Lê com ritmo adequado.\",)","v":0}]
[null,null,null,null,null,{"$f":"IF('1ºPeríodo'!AD20>=1,\"Lê com expressividade os textos.\",)","v":0}]
[null,null,null,null,null,{"$f":"IF('1ºPeríodo'!AA20>=1,\"Lê sem expressividade.\",)","v":0}]
[null,null,null,null,null,{"$f":"IF('1ºPeríodo'!AH20>=1,\"Não articula e é pouco clara.\",)","v":"Não articula e é pouco clara."}]
[null,null,null,null,null,{"$f":"IF('1ºPeríodo'!AK20>=1,\"Lê com boa articulação os textos.\",)","v":0}]
[null,null,null,null,null,{"$f":"IF('1ºPeríodo'!U20>=1,\"Não lê com ritmo adequado.\",)","v":"Não lê com ritmo adequado."}]
[null,null,null,null,null,{"$f":"IF('1ºPeríodo'!Q20>=1,\"Realiza uma leitura com boa intensidade.\",)","v":0}]
[11,{"$f":"Lista_alunos!H26","v":"M124"},null,null,null,{"$f":"IF('1ºPeríodo'!G21>=1,\"A leitura é insuficiente: soletra,troca letras, faz omissões\",)","v":0}]
[null,null,null,null,null,{"$f":"IF('1ºPeríodo'!J21>=1,\"Lê com muita correção.\",)","v":"Lê com muita correção."}]
[null,null,null,null,null,{"$f":"IF('1ºPeríodo'!N21>=1,\"Apresenta  erros de leitura na intensidade\",)","v":0}]
[null,null,null,null,null,{"$f":"IF('1ºPeríodo'!X21>=1,\"Lê com ritmo adequado.\",)","v":0}]
[null,null,null,null,null,{"$f":"IF('1ºPeríodo'!AD21>=1,\"Lê com expressividade os textos.\",)","v":0}]
[null,null,null,null,null,{"$f":"IF('1ºPeríodo'!AA21>=1,\"Lê sem expressividade.\",)","v":"Lê sem expressividade."}]
[null,null,null,null,null,{"$f":"IF('1ºPeríodo'!AH21>=1,\"Não articula e é pouco clara.\",)","v":0}]
[null,null,null,null,null,{"$f":"IF('1ºPeríodo'!AK21>=1,\"Lê com boa articulação os textos.\",)","v":"Lê com boa articulação os textos."}]
[null,null,null,null,null,{"$f":"IF('1ºPeríodo'!U21>=1,\"Não lê com ritmo adequado.\",)","v":"Não lê com ritmo adequado."}]
[null,null,null,null,null,{"$f":"IF('1ºPeríodo'!Q21>=1,\"Realiza uma leitura com boa intensidade.\",)","v":"Realiza uma leitura com boa intensidade."}]
[12,{"$f":"Lista_alunos!H27","v":"M125"},null,null,null,{"$f":"IF('1ºPeríodo'!G22>=1,\"A leitura é insuficiente: soletra,troca letras, faz omissões\",)","v":0}]
[null,null,null,null,null,{"$f":"IF('1ºPeríodo'!J22>=1,\"Lê com muita correção.\",)","v":"Lê com muita correção."}]
[null,null,null,null,null,{"$f":"IF('1ºPeríodo'!N22>=1,\"Apresenta  erros de leitura na intensidade\",)","v":0}]
[null,null,null,null,null,{"$f":"IF('1ºPeríodo'!X22>=1,\"Lê com ritmo adequado.\",)","v":"Lê com ritmo adequado."}]
[null,null,null,null,null,{"$f":"IF('1ºPeríodo'!AD22>=1,\"Lê com expressividade os textos.\",)","v":"Lê com expressividade os textos."}]
[null,null,null,null,null,{"$f":"IF('1ºPeríodo'!AA22>=1,\"Lê sem expressividade.\",)","v":0}]
[null,null,null,null,null,{"$f":"IF('1ºPeríodo'!AH22>=1,\"Não articula e é pouco clara.\",)","v":0}]
[null,null,null,null,null,{"$f":"IF('1ºPeríodo'!AK22>=1,\"Lê com boa articulação os textos.\",)","v":"Lê com boa articulação os textos."}]
[null,null,null,null,null,{"$f":"IF('1ºPeríodo'!U22>=1,\"Não lê com ritmo adequado.\",)","v":0}]
[null,null,null,null,null,{"$f":"IF('1ºPeríodo'!Q22>=1,\"Realiza uma leitura com boa intensidade.\",)","v":"Realiza uma leitura com boa intensidade."}]
[13,{"$f":"Lista_alunos!H28","v":"Rm124"},null,null,null,{"$f":"IF('1ºPeríodo'!G23>=1,\"A leitura é insuficiente: soletra,troca letras, faz omissões\",)","v":0}]
[null,null,null,null,null,{"$f":"IF('1ºPeríodo'!J23>=1,\"Lê com muita correção.\",)","v":"Lê com muita correção."}]
[null,null,null,null,null,{"$f":"IF('1ºPeríodo'!N23>=1,\"Apresenta  erros de leitura na intensidade\",)","v":0}]
[null,null,null,null,null,{"$f":"IF('1ºPeríodo'!X23>=1,\"Lê com ritmo adequado.\",)","v":"Lê com ritmo adequado."}]
[null,null,null,null,null,{"$f":"IF('1ºPeríodo'!AD23>=1,\"Lê com expressividade os textos.\",)","v":"Lê com expressividade os textos."}]
[null,null,null,null,null,{"$f":"IF('1ºPeríodo'!AA23>=1,\"Lê sem expressividade.\",)","v":0}]
[null,null,null,null,null,{"$f":"IF('1ºPeríodo'!AH23>=1,\"Não articula e é pouco clara.\",)","v":0}]
[null,null,null,null,null,{"$f":"IF('1ºPeríodo'!AK23>=1,\"Lê com boa articulação os textos.\",)","v":"Lê com boa articulação os textos."}]
[null,null,null,null,null,{"$f":"IF('1ºPeríodo'!U23>=1,\"Não lê com ritmo adequado.\",)","v":0}]
[null,null,null,null,null,{"$f":"IF('1ºPeríodo'!Q23>=1,\"Realiza uma leitura com boa intensidade.\",)","v":"Realiza uma leitura com boa intensidade."}]
[14,{"$f":"Lista_alunos!H29","v":"Ree"},null,null,null,{"$f":"IF('1ºPeríodo'!G24>=1,\"A leitura é insuficiente: soletra,troca letras, faz omissões\",)","v":"A leitura é insuficiente: soletra,troca letras, faz omissões"}]
[null,null,null,null,null,{"$f":"IF('1ºPeríodo'!J24>=1,\"Lê com muita correção.\",)","v":0}]
[null,null,null,null,null,{"$f":"IF('1ºPeríodo'!N24>=1,\"Apresenta  erros de leitura na intensidade\",)","v":0}]
[null,null,null,null,null,{"$f":"IF('1ºPeríodo'!X24>=1,\"Lê com ritmo adequado.\",)","v":0}]
[null,null,null,null,null,{"$f":"IF('1ºPeríodo'!AD24>=1,\"Lê com expressividade os textos.\",)","v":0}]
[null,null,null,null,null,{"$f":"IF('1ºPeríodo'!AA24>=1,\"Lê sem expressividade.\",)","v":"Lê sem expressividade."}]
[null,null,null,null,null,{"$f":"IF('1ºPeríodo'!AH24>=1,\"Não articula e é pouco clara.\",)","v":0}]
[null,null,null,null,null,{"$f":"IF('1ºPeríodo'!AK24>=1,\"Lê com boa articulação os textos.\",)","v":"Lê com boa articulação os textos."}]
[null,null,null,null,null,{"$f":"IF('1ºPeríodo'!U24>=1,\"Não lê com ritmo adequado.\",)","v":"Não lê com ritmo adequado."}]
[null,null,null,null,null,{"$f":"IF('1ºPeríodo'!Q24>=1,\"Realiza uma leitura com boa intensidade.\",)","v":"Realiza uma leitura com boa intensidade."}]
[15,{"$f":"Lista_alunos!H30","v":"Sm"},null,null,null,{"$f":"IF('1ºPeríodo'!G25>=1,\"A leitura é insuficiente: soletra,troca letras, faz omissões\",)","v":"A leitura é insuficiente: soletra,troca letras, faz omissões"}]
[null,null,null,null,null,{"$f":"IF('1ºPeríodo'!J25>=1,\"Lê com muita correção.\",)","v":0}]
[null,null,null,null,null,{"$f":"IF('1ºPeríodo'!N25>=1,\"Apresenta  erros de leitura na intensidade\",)","v":"Apresenta  erros de leitura na intensidade"}]
[null,null,null,null,null,{"$f":"IF('1ºPeríodo'!X25>=1,\"Lê com ritmo adequado.\",)","v":0}]
[null,null,null,null,null,{"$f":"IF('1ºPeríodo'!AD25>=1,\"Lê com expressividade os textos.\",)","v":0}]
[null,null,null,null,null,{"$f":"IF('1ºPeríodo'!AA25>=1,\"Lê sem expressividade.\",)","v":"Lê sem expressividade."}]
[null,null,null,null,null,{"$f":"IF('1ºPeríodo'!AH25>=1,\"Não articula e é pouco clara.\",)","v":"Não articula e é pouco clara."}]
[null,null,null,null,null,{"$f":"IF('1ºPeríodo'!AK25>=1,\"Lê com boa articulação os textos.\",)","v":0}]
[null,null,null,null,null,{"$f":"IF('1ºPeríodo'!U25>=1,\"Não lê com ritmo adequado.\",)","v":"Não lê com ritmo adequado."}]
[null,null,null,null,null,{"$f":"IF('1ºPeríodo'!Q25>=1,\"Realiza uma leitura com boa intensidade.\",)","v":0}]
[16,{"$f":"Lista_alunos!H31","v":0},null,null,null,{"$f":"IF('1ºPeríodo'!G26>=1,\"A leitura é insuficiente: soletra,troca letras, faz omissões\",)","v":0}]
[null,null,null,null,null,{"$f":"IF('1ºPeríodo'!J26>=1,\"Lê com muita correção.\",)","v":0}]
[null,null,null,null,null,{"$f":"IF('1ºPeríodo'!N26>=1,\"Apresenta  erros de leitura na intensidade\",)","v":0}]
[null,null,null,null,null,{"$f":"IF('1ºPeríodo'!X26>=1,\"Lê com ritmo adequado.\",)","v":0}]
[null,null,null,null,null,{"$f":"IF('1ºPeríodo'!AD26>=1,\"Lê com expressividade os textos.\",)","v":0}]
[null,null,null,null,null,{"$f":"IF('1ºPeríodo'!AA26>=1,\"Lê sem expressividade.\",)","v":0}]
[null,null,null,null,null,{"$f":"IF('1ºPeríodo'!AH26>=1,\"Não articula e é pouco clara.\",)","v":0}]
[null,null,null,null,null,{"$f":"IF('1ºPeríodo'!AK26>=1,\"Lê com boa articulação os textos.\",)","v":0}]
[null,null,null,null,null,{"$f":"IF('1ºPeríodo'!U26>=1,\"Não lê com ritmo adequado.\",)","v":0}]
[null,null,null,null,null,{"$f":"IF('1ºPeríodo'!Q26>=1,\"Realiza uma leitura com boa intensidade.\",)","v":0}]
[17,{"$f":"Lista_alunos!H32","v":0},null,null,null,{"$f":"IF('1ºPeríodo'!G27>=1,\"A leitura é insuficiente: soletra,troca letras, faz omissões\",)","v":0}]
[null,null,null,null,null,{"$f":"IF('1ºPeríodo'!J27>=1,\"Lê com muita correção.\",)","v":0}]
[null,null,null,null,null,{"$f":"IF('1ºPeríodo'!N27>=1,\"Apresenta  erros de leitura na intensidade\",)","v":0}]
[null,null,null,null,null,{"$f":"IF('1ºPeríodo'!X27>=1,\"Lê com ritmo adequado.\",)","v":0}]
[null,null,null,null,null,{"$f":"IF('1ºPeríodo'!AD27>=1,\"Lê com expressividade os textos.\",)","v":0}]
[null,null,null,null,null,{"$f":"IF('1ºPeríodo'!AA27>=1,\"Lê sem expressividade.\",)","v":0}]
[null,null,null,null,null,{"$f":"IF('1ºPeríodo'!AH27>=1,\"Não articula e é pouco clara.\",)","v":0}]
[null,null,null,null,null,{"$f":"IF('1ºPeríodo'!AK27>=1,\"Lê com boa articulação os textos.\",)","v":0}]
[null,null,null,null,null,{"$f":"IF('1ºPeríodo'!U27>=1,\"Não lê com ritmo adequado.\",)","v":0}]
[null,null,null,null,null,{"$f":"IF('1ºPeríodo'!Q27>=1,\"Realiza uma leitura com boa intensidade.\",)","v":0}]
[18,{"$f":"Lista_alunos!H33","v":0},null,null,null,{"$f":"IF('1ºPeríodo'!G28>=1,\"A leitura é insuficiente: soletra,troca letras, faz omissões\",)","v":0}]
[null,null,null,null,null,{"$f":"IF('1ºPeríodo'!J28>=1,\"Lê com muita correção.\",)","v":0}]
[null,null,null,null,null,{"$f":"IF('1ºPeríodo'!N28>=1,\"Apresenta  erros de leitura na intensidade\",)","v":0}]
[null,null,null,null,null,{"$f":"IF('1ºPeríodo'!X28>=1,\"Lê com ritmo adequado.\",)","v":0}]
[null,null,null,null,null,{"$f":"IF('1ºPeríodo'!AD28>=1,\"Lê com expressividade os textos.\",)","v":0}]
[null,null,null,null,null,{"$f":"IF('1ºPeríodo'!AA28>=1,\"Lê sem expressividade.\",)","v":0}]
[null,null,null,null,null,{"$f":"IF('1ºPeríodo'!AH28>=1,\"Não articula e é pouco clara.\",)","v":0}]
[null,null,null,null,null,{"$f":"IF('1ºPeríodo'!AK28>=1,\"Lê com boa articulação os textos.\",)","v":0}]
[null,null,null,null,null,{"$f":"IF('1ºPeríodo'!U28>=1,\"Não lê com ritmo adequado.\",)","v":0}]
[null,null,null,null,null,{"$f":"IF('1ºPeríodo'!Q28>=1,\"Realiza uma leitura com boa intensidade.\",)","v":0}]
[19,{"$f":"Lista_alunos!H34","v":0},null,null,null,{"$f":"IF('1ºPeríodo'!G29>=1,\"A leitura é insuficiente: soletra,troca letras, faz omissões\",)","v":0}]
[null,null,null,null,null,{"$f":"IF('1ºPeríodo'!J29>=1,\"Lê com muita correção.\",)","v":0}]
[null,null,null,null,null,{"$f":"IF('1ºPeríodo'!N29>=1,\"Apresenta  erros de leitura na intensidade\",)","v":0}]
[null,null,null,null,null,{"$f":"IF('1ºPeríodo'!X29>=1,\"Lê com ritmo adequado.\",)","v":0}]
[null,null,null,null,null,{"$f":"IF('1ºPeríodo'!AD29>=1,\"Lê com expressividade os textos.\",)","v":0}]
[null,null,null,null,null,{"$f":"IF('1ºPeríodo'!AA29>=1,\"Lê sem expressividade.\",)","v":0}]
[null,null,null,null,null,{"$f":"IF('1ºPeríodo'!AH29>=1,\"Não articula e é pouco clara.\",)","v":0}]
[null,null,null,null,null,{"$f":"IF('1ºPeríodo'!AK29>=1,\"Lê com boa articulação os textos.\",)","v":0}]
[null,null,null,null,null,{"$f":"IF('1ºPeríodo'!U29>=1,\"Não lê com ritmo adequado.\",)","v":0}]
[null,null,null,null,null,{"$f":"IF('1ºPeríodo'!Q29>=1,\"Realiza uma leitura com boa intensidade.\",)","v":0}]
[20,{"$f":"Lista_alunos!H35","v":0},null,null,null,{"$f":"IF('1ºPeríodo'!G30>=1,\"A leitura é insuficiente: soletra,troca letras, faz omissões\",)","v":0}]
[null,null,null,null,null,{"$f":"IF('1ºPeríodo'!J30>=1,\"Lê com muita correção.\",)","v":0}]
[null,null,null,null,null,{"$f":"IF('1ºPeríodo'!N30>=1,\"Apresenta  erros de leitura na intensidade\",)","v":0}]
[null,null,null,null,null,{"$f":"IF('1ºPeríodo'!X30>=1,\"Lê com ritmo adequado.\",)","v":0}]
[null,null,null,null,null,{"$f":"IF('1ºPeríodo'!AD30>=1,\"Lê com expressividade os textos.\",)","v":0}]
[null,null,null,null,null,{"$f":"IF('1ºPeríodo'!AA30>=1,\"Lê sem expressividade.\",)","v":0}]
[null,null,null,null,null,{"$f":"IF('1ºPeríodo'!AH30>=1,\"Não articula e é pouco clara.\",)","v":0}]
[null,null,null,null,null,{"$f":"IF('1ºPeríodo'!AK30>=1,\"Lê com boa articulação os textos.\",)","v":0}]
[null,null,null,null,null,{"$f":"IF('1ºPeríodo'!U30>=1,\"Não lê com ritmo adequado.\",)","v":0}]
[null,null,null,null,null,{"$f":"IF('1ºPeríodo'!Q30>=1,\"Realiza uma leitura com boa intensidade.\",)","v":0}]
[21,{"$f":"Lista_alunos!H36","v":0},null,null,null,{"$f":"IF('1ºPeríodo'!G31>=1,\"A leitura é insuficiente: soletra,troca letras, faz omissões\",)","v":0}]
[null,null,null,null,null,{"$f":"IF('1ºPeríodo'!J31>=1,\"Lê com muita correção.\",)","v":0}]
[null,null,null,null,null,{"$f":"IF('1ºPeríodo'!N31>=1,\"Apresenta  erros de leitura na intensidade\",)","v":0}]
[null,null,null,null,null,{"$f":"IF('1ºPeríodo'!X31>=1,\"Lê com ritmo adequado.\",)","v":0}]
[null,null,null,null,null,{"$f":"IF('1ºPeríodo'!AD31>=1,\"Lê com expressividade os textos.\",)","v":0}]
[null,null,null,null,null,{"$f":"IF('1ºPeríodo'!AA31>=1,\"Lê sem expressividade.\",)","v":0}]
[null,null,null,null,null,{"$f":"IF('1ºPeríodo'!AH31>=1,\"Não articula e é pouco clara.\",)","v":0}]
[null,null,null,null,null,{"$f":"IF('1ºPeríodo'!AK31>=1,\"Lê com boa articulação os textos.\",)","v":0}]
[null,null,null,null,null,{"$f":"IF('1ºPeríodo'!U31>=1,\"Não lê com ritmo adequado.\",)","v":0}]
[null,null,null,null,null,{"$f":"IF('1ºPeríodo'!Q31>=1,\"Realiza uma leitura com boa intensidade.\",)","v":0}]
[22,{"$f":"Lista_alunos!H37","v":0},null,null,null,{"$f":"IF('1ºPeríodo'!G32>=1,\"A leitura é insuficiente: soletra,troca letras, faz omissões\",)","v":0}]
[null,null,null,null,null,{"$f":"IF('1ºPeríodo'!J32>=1,\"Lê com muita correção.\",)","v":0}]
[null,null,null,null,null,{"$f":"IF('1ºPeríodo'!N32>=1,\"Apresenta  erros de leitura na intensidade\",)","v":0}]
[null,null,null,null,null,{"$f":"IF('1ºPeríodo'!X32>=1,\"Lê com ritmo adequado.\",)","v":0}]
[null,null,null,null,null,{"$f":"IF('1ºPeríodo'!AD32>=1,\"Lê com expressividade os textos.\",)","v":0}]
[null,null,null,null,null,{"$f":"IF('1ºPeríodo'!AA32>=1,\"Lê sem expressividade.\",)","v":0}]
[null,null,null,null,null,{"$f":"IF('1ºPeríodo'!AH32>=1,\"Não articula e é pouco clara.\",)","v":0}]
[null,null,null,null,null,{"$f":"IF('1ºPeríodo'!AK32>=1,\"Lê com boa articulação os textos.\",)","v":0}]
[null,null,null,null,null,{"$f":"IF('1ºPeríodo'!U32>=1,\"Não lê com ritmo adequado.\",)","v":0}]
[null,null,null,null,null,{"$f":"IF('1ºPeríodo'!Q32>=1,\"Realiza uma leitura com boa intensidade.\",)","v":0}]
[23,{"$f":"Lista_alunos!H38","v":0},null,null,null,{"$f":"IF('1ºPeríodo'!G33>=1,\"A leitura é insuficiente: soletra,troca letras, faz omissões\",)","v":0}]
[null,null,null,null,null,{"$f":"IF('1ºPeríodo'!J33>=1,\"Lê com muita correção.\",)","v":0}]
[null,null,null,null,null,{"$f":"IF('1ºPeríodo'!N33>=1,\"Apresenta  erros de leitura na intensidade\",)","v":0}]
[null,null,null,null,null,{"$f":"IF('1ºPeríodo'!X33>=1,\"Lê com ritmo adequado.\",)","v":0}]
[null,null,null,null,null,{"$f":"IF('1ºPeríodo'!AD33>=1,\"Lê com expressividade os textos.\",)","v":0}]
[null,null,null,null,null,{"$f":"IF('1ºPeríodo'!AA33>=1,\"Lê sem expressividade.\",)","v":0}]
[null,null,null,null,null,{"$f":"IF('1ºPeríodo'!AH33>=1,\"Não articula e é pouco clara.\",)","v":0}]
[null,null,null,null,null,{"$f":"IF('1ºPeríodo'!AK33>=1,\"Lê com boa articulação os textos.\",)","v":0}]
[null,null,null,null,null,{"$f":"IF('1ºPeríodo'!U33>=1,\"Não lê com ritmo adequado.\",)","v":0}]
[null,null,null,null,null,{"$f":"IF('1ºPeríodo'!Q33>=1,\"Realiza uma leitura com boa intensidade.\",)","v":0}]
[24,{"$f":"Lista_alunos!H39","v":0},null,null,null,{"$f":"IF('1ºPeríodo'!G34>=1,\"A leitura é insuficiente: soletra,troca letras, faz omissões\",)","v":0}]
[null,null,null,null,null,{"$f":"IF('1ºPeríodo'!J34>=1,\"Lê com muita correção.\",)","v":0}]
[null,null,null,null,null,{"$f":"IF('1ºPeríodo'!N34>=1,\"Apresenta  erros de leitura na intensidade\",)","v":0}]
[null,null,null,null,null,{"$f":"IF('1ºPeríodo'!X34>=1,\"Lê com ritmo adequado.\",)","v":0}]
[null,null,null,null,null,{"$f":"IF('1ºPeríodo'!AD34>=1,\"Lê com expressividade os textos.\",)","v":0}]
[null,null,null,null,null,{"$f":"IF('1ºPeríodo'!AA34>=1,\"Lê sem expressividade.\",)","v":0}]
[null,null,null,null,null,{"$f":"IF('1ºPeríodo'!AH34>=1,\"Não articula e é pouco clara.\",)","v":0}]
[null,null,null,null,null,{"$f":"IF('1ºPeríodo'!AK34>=1,\"Lê com boa articulação os textos.\",)","v":0}]
[null,null,null,null,null,{"$f":"IF('1ºPeríodo'!U34>=1,\"Não lê com ritmo adequado.\",)","v":0}]
[null,null,null,null,null,{"$f":"IF('1ºPeríodo'!Q34>=1,\"Realiza uma leitura com boa intensidade.\",)","v":0}]
[25,{"$f":"Lista_alunos!H40","v":0},null,null,null,{"$f":"IF('1ºPeríodo'!G35>=1,\"A leitura é insuficiente: soletra,troca letras, faz omissões\",)","v":0}]
[null,null,null,null,null,{"$f":"IF('1ºPeríodo'!J35>=1,\"Lê com muita correção.\",)","v":0}]
[null,null,null,null,null,{"$f":"IF('1ºPeríodo'!N35>=1,\"Apresenta  erros de leitura na intensidade\",)","v":0}]
[null,null,null,null,null,{"$f":"IF('1ºPeríodo'!X35>=1,\"Lê com ritmo adequado.\",)","v":0}]
[null,null,null,null,null,{"$f":"IF('1ºPeríodo'!AD35>=1,\"Lê com expressividade os textos.\",)","v":0}]
[null,null,null,null,null,{"$f":"IF('1ºPeríodo'!AA35>=1,\"Lê sem expressividade.\",)","v":0}]
[null,null,null,null,null,{"$f":"IF('1ºPeríodo'!AH35>=1,\"Não articula e é pouco clara.\",)","v":0}]
[null,null,null,null,null,{"$f":"IF('1ºPeríodo'!AK35>=1,\"Lê com boa articulação os textos.\",)","v":0}]
[null,null,null,null,null,{"$f":"IF('1ºPeríodo'!U35>=1,\"Não lê com ritmo adequado.\",)","v":0}]
[null,null,null,null,null,{"$f":"IF('1ºPeríodo'!Q35>=1,\"Realiza uma leitura com boa intensidade.\",)","v":0}]
[26,{"$f":"Lista_alunos!H41","v":0},null,null,null,{"$f":"IF('1ºPeríodo'!G36>=1,\"A leitura é insuficiente: soletra,troca letras, faz omissões\",)","v":0}]
[null,null,null,null,null,{"$f":"IF('1ºPeríodo'!J36>=1,\"Lê com muita correção.\",)","v":0}]
[null,null,null,null,null,{"$f":"IF('1ºPeríodo'!N36>=1,\"Apresenta  erros de leitura na intensidade\",)","v":0}]
[null,null,null,null,null,{"$f":"IF('1ºPeríodo'!X36>=1,\"Lê com ritmo adequado.\",)","v":0}]
[null,null,null,null,null,{"$f":"IF('1ºPeríodo'!AD36>=1,\"Lê com expressividade os textos.\",)","v":0}]
[null,null,null,null,null,{"$f":"IF('1ºPeríodo'!AA36>=1,\"Lê sem expressividade.\",)","v":0}]
[null,null,null,null,null,{"$f":"IF('1ºPeríodo'!AH36>=1,\"Não articula e é pouco clara.\",)","v":0}]
[null,null,null,null,null,{"$f":"IF('1ºPeríodo'!AK36>=1,\"Lê com boa articulação os textos.\",)","v":0}]
[null,null,null,null,null,{"$f":"IF('1ºPeríodo'!U36>=1,\"Não lê com ritmo adequado.\",)","v":0}]
[null,null,null,null,null,{"$f":"IF('1ºPeríodo'!Q36>=1,\"Realiza uma leitura com boa intensidade.\",)","v":0}]
[27,{"$f":"Lista_alunos!H42","v":0},null,null,null,{"$f":"IF('1ºPeríodo'!G37>=1,\"A leitura é insuficiente: soletra,troca letras, faz omissões\",)","v":0}]
[null,null,null,null,null,{"$f":"IF('1ºPeríodo'!J37>=1,\"Lê com muita correção.\",)","v":0}]
[null,null,null,null,null,{"$f":"IF('1ºPeríodo'!N37>=1,\"Apresenta  erros de leitura na intensidade\",)","v":0}]
[null,null,null,null,null,{"$f":"IF('1ºPeríodo'!X37>=1,\"Lê com ritmo adequado.\",)","v":0}]
[null,null,null,null,null,{"$f":"IF('1ºPeríodo'!AD37>=1,\"Lê com expressividade os textos.\",)","v":0}]
[null,null,null,null,null,{"$f":"IF('1ºPeríodo'!AA37>=1,\"Lê sem expressividade.\",)","v":0}]
[null,null,null,null,null,{"$f":"IF('1ºPeríodo'!AH37>=1,\"Não articula e é pouco clara.\",)","v":0}]
[null,null,null,null,null,{"$f":"IF('1ºPeríodo'!AK37>=1,\"Lê com boa articulação os textos.\",)","v":0}]
[null,null,null,null,null,{"$f":"IF('1ºPeríodo'!U37>=1,\"Não lê com ritmo adequado.\",)","v":0}]
[null,null,null,null,null,{"$f":"IF('1ºPeríodo'!Q37>=1,\"Realiza uma leitura com boa intensidade.\",)","v":0}]

{"sheet":"2ºPeríodo","index":4,"n_rows":44,"n_cols":45,"rows_kept":44,"cut":false,"hidden":false,"merged":[[8,37,8,44],[1,1,1,34],[3,2,3,7],[3,10,3,14],[3,17,3,21],[3,24,3,27],[3,30,3,34],[8,2,8,7],[8,10,8,14],[8,17,8,21],[8,24,8,27],[8,30,8,34],[32,0,32,1],[21,0,21,1],[10,0,10,1],[11,0,11,1],[12,0,12,1],[13,0,13,1],[14,0,14,1],[15,0,15,1],[16,0,16,1],[17,0,17,1],[18,0,18,1],[19,0,19,1],[20,0,20,1],[27,0,27,1],[28,0,28,1],[29,0,29,1],[30,0,30,1],[31,0,31,1],[22,0,22,1],[23,0,23,1],[24,0,24,1],[25,0,25,1],[26,0,26,1],[34,0,34,1],[35,0,35,1],[36,0,36,1],[39,3,39,17],[33,0,33,1],[42,21,42,24],[41,1,41,2],[41,3,41,4],[41,7,41,10],[41,11,41,14],[41,17,41,18],[41,21,41,24],[42,1,42,2],[42,3,42,4],[42,7,42,10],[42,11,42,14],[42,17,42,18],[43,21,43,24],[43,1,43,2],[43,3,43,4],[43,7,43,10],[43,11,43,14],[43,17,43,18]]}
[]
[null,"GRELHA DE OBSERVAÇÃO DE LEITURA - 2º Período"]
[]
[null,null,"CORREÇÃO",null,null,null,null,null,null,null,"INTENSIDADE",null,null,null,null,null,null,"RITMO",null,null,null,null,null,null,"EXPRESSIVIDADE",null,null,null,null,null,"ARTICULAÇÃO"]
[null,null,"Soletra","Troca Letras","Faz Omissões",null,null,"Correta",null,null,"Alta","Baixa",null,null,"Certa",null,null,"Rápido","Lento",null,null,"Adequado",null,null,"Monótoma",null,null,"Expressiva",null,null,"Não Articula","Pouco Clara",null,null,"Boa",null,null,null,null,"s"]
[null,"Total 1 - SIM",{"$f":"COUNTIF(C11:C37,\"s\")","v":1},1,0,null,null,2,null,null,1,1,null,null,2,null,null,1,1,null,null,{"$f":"COUNTIF(V11:V37,\"s\")","v":2},null,null,1,null,null,2,null,null,1,1,null,null,4,null,null,null,null,"n"]
[null,"Total 2 - Não",{"$f":"COUNTIF(C11:C37,\"n\")","v":0},0,1,"Total(n)","Total(s)",1,"Total(N)","Total(s)",0,0,"Total(n)","Total(n)",0,"Total(n)","Total(s)",0,0,"Total(n)","Total(n)",1,"Total(n)","Total(s)",0,"Total(n)","Total(n)",0,"Total(n)","Total(s)",0,0,"Total(n)","Total(n)",0,"Total(n)","Total(s)"]
[]
[null,null,"CORREÇÃO",null,null,null,null,null,null,null,"INTENSIDADE",null,null,null,null,null,null,"RITMO",null,null,null,null,null,null,"EXPRESSIVIDADE",null,null,null,null,null,"ARTICULAÇÃO",null,null,null,null,null,null,"AVALIAÇÃO DA LEITURA"]
[null,null,"Soletra","Troca Letras","Faz Omissões","n","s","Correta","N","S","Alta","Baixa","n","s","Certa","N","S","Rápido","Lento","n","s","Adequado","N","S","Monótoma","n","s","Expressiva","N","S","Não Articula","Pouco Clara","n","s","Boa","N","S","POSITIVOS  (s)","NEGATIVOS (s)","POSITIVOS ","NEGATIVOS ","Total (n)","Total (s)","Avaliação","Avaliação"]
[{"$f":"Lista_alunos!H16","v":"Is"},null,null,null,null,{"$f":"COUNTIF(C11:E11,\"n\")","v":0},{"$f":"COUNTIF(C11:E11,\"s\")","v":0},"s",{"$f":"COUNTIF(H11,\"n\")","v":0},{"$f":"COUNTIF(H11,\"s\")","v":1},null,null,{"$f":"COUNTIF(K11:L11,\"n\")","v":0},{"$f":"COUNTIF(K11:L11,\"s\")","v":0},"s",{"$f":"COUNTIF(O11,\"N\")","v":0},{"$f":"COUNTIF(O11,\"s\")","v":1},null,null,{"$f":"COUNTIF(R11:S11,\"n\")","v":0},{"$f":"COUNTIF(R11:S11,\"s\")","v":0},"s",{"$f":"COUNTIF(V11,\"n\")","v":0},{"$f":"COUNTIF(V11,\"s\")","v":1},null,{"$f":"COUNTIF(Y11,\"n\")","v":0},{"$f":"COUNTIF(Y11,\"s\")","v":0},"s",{"$f":"COUNTIF(AB11,\"n\")","v":0},{"$f":"COUNTIF(AB11,\"s\")","v":1},null,null,{"$f":"COUNTIF(AE11:AF11,\"n\")","v":0},{"$f":"COUNTIF(AE11:AF11,\"s\")","v":0},"s",{"$f":"COUNTIF(AI11,\"n\")","v":0},{"$f":"COUNTIF(AI11,\"s\")","v":1},{"$f":"SUM(G11,N11,U11,AA11,AH11)","v":0},{"$f":"SUM(F11,M11,T11,Z11,AG11)","v":0},{"$f":"SUM(J11,Q11,X11,AD11,AK11)","v":5},{"$f":"SUM(I11,P11,W11,AC11,AJ11)","v":0},{"$f":"SUM(AL11,AM11,AO11)","v":0},{"$f":"SUM(AN11)","v":5},{"$f":"IF(AQ11<2,\"Insuficiente\",IF(AQ11<=3,\"Suficiente\",IF(AQ11<=4,\"Bom\",IF(AQ11<=5,\"Muito Bom\"))))","v":"Muito Bom"},{"$f":"IF(AP11<=0,\"sem erros\",IF(AP11<=2,\"PERTO POSITIVA\",IF(AP11<=4,\"ALGUNS ERROS\",IF(AP11<=6,\"MUITOS ERROS\",IF(AP11<=10,\"ELEVADOS ERROS\",IF(AP11<=12,\"ERRO TOTAL\"))))))","v":"sem erros"}]
[{"$f":"Lista_alunos!H17","v":"Ca"},null,"s","s","n",{"$f":"COUNTIF(C12:E12,\"n\")","v":1},{"$f":"COUNTIF(C12:E12,\"s\")","v":2},"n",{"$f":"COUNTIF(H12,\"n\")","v":1},{"$f":"COUNTIF(H12,\"s\")","v":0},"s","s",{"$f":"COUNTIF(K12:L12,\"n\")","v":0},{"$f":"COUNTIF(K12:L12,\"s\")","v":2},null,{"$f":"COUNTIF(O12,\"N\")","v":0},{"$f":"COUNTIF(O12,\"s\")","v":0},"s","s",{"$f":"COUNTIF(R12:S12,\"n\")","v":0},{"$f":"COUNTIF(R12:S12,\"s\")","v":2},"n",{"$f":"COUNTIF(V12,\"n\")","v":1},{"$f":"COUNTIF(V12,\"s\")","v":0},"s",{"$f":"COUNTIF(Y12,\"n\")","v":0},{"$f":"COUNTIF(Y12,\"s\")","v":1},null,{"$f":"COUNTIF(AB12,\"n\")","v":0},{"$f":"COUNTIF(AB12,\"s\")","v":0},"s","s",{"$f":"COUNTIF(AE12:AF12,\"n\")","v":0},{"$f":"COUNTIF(AE12:AF12,\"s\")","v":2},"s",{"$f":"COUNTIF(AI12,\"n\")","v":0},{"$f":"COUNTIF(AI12,\"s\")","v":1},{"$f":"SUM(G12,N12,U12,AA12,AH12)","v":9},{"$f":"SUM(F12,M12,T12,Z12,AG12)","v":1},{"$f":"SUM(J12,Q12,X12,AD12,AK12)","v":1},{"$f":"SUM(I12,P12,W12,AC12,AJ12)","v":2},{"$f":"SUM(AL12,AM12,AO12)","v":12},{"$f":"SUM(AN12)","v":1},{"$f":"IF(AQ12<2,\"Insuficiente\",IF(AQ12<=3,\"Suficiente\",IF(AQ12<=4,\"Bom\",IF(AQ12<=5,\"Muito Bom\"))))","v":"Insuficiente"},{"$f":"IF(AP12<=0,\"sem erros\",IF(AP12<=2,\"PERTO POSITIVA\",IF(AP12<=4,\"ALGUNS ERROS\",IF(AP12<=6,\"MUITOS ERROS\",IF(AP12<=10,\"ELEVADOS ERROS\",IF(AP12<=12,\"ERRO TOTAL\"))))))","v":"ERRO TOTAL"}]
[{"$f":"Lista_alunos!H18","v":"f"},null,null,null,null,0,0,"s",0,1,null,null,0,0,"s",0,1,null,null,0,0,"s",0,1,null,0,0,"s",0,1,null,null,0,0,"s",0,1,0,0,5,0,0,5,"Muito Bom","sem erros"]
[{"$f":"Lista_alunos!H19","v":"g"},null,null,null,null,0,0,null,0,0,null,null,0,0,null,0,0,null,null,0,0,null,0,0,null,0,0,null,0,0,null,null,0,0,"s",0,1,0,0,1,0,0,1,"Insuficiente","sem erros"]
[{"$f":"Lista_alunos!H20","v":"Fe"},null,null,null,null,0,0,null,0,0,null,null,0,0,null,0,0,null,null,0,0,null,0,0,null,0,0,null,0,0,null,null,0,0,null,0,0,0,0,0,0,0,0,"Insuficiente","sem erros"]
[{"$f":"Lista_alunos!H21","v":"F3"},null,null,null,null,0,0,null,0,0,null,null,0,0,null,0,0,null,null,0,0,null,0,0,null,0,0,null,0,0,null,null,0,0,null,0,0,0,0,0,0,0,0,"Insuficiente","sem erros"]
[{"$f":"Lista_alunos!H22","v":"Je"},null,null,null,null,0,0,null,0,0,null,null,0,0,null,0,0,null,null,0,0,null,0,0,null,0,0,null,0,0,null,null,0,0,null,0,0,0,0,0,0,0,0,"Insuficiente","sem erros"]
[{"$f":"Lista_alunos!H23","v":"M11"},null,null,null,null,0,0,null,0,0,null,null,0,0,null,0,0,null,null,0,0,null,0,0,null,0,0,null,0,0,null,null,0,0,null,0,0,0,0,0,0,0,0,"Insuficiente","sem erros"]
[{"$f":"Lista_alunos!H24","v":"M"},null,null,null,null,0,0,null,0,0,null,null,0,0,null,0,0,null,null,0,0,null,0,0,null,0,0,null,0,0,null,null,0,0,null,0,0,0,0,0,0,0,0,"Insuficiente","sem erros"]
[{"$f":"Lista_alunos!H25","v":"M123"},null,null,null,null,0,0,null,0,0,null,null,0,0,null,0,0,null,null,0,0,null,0,0,null,0,0,null,0,0,null,null,0,0,null,0,0,0,0,0,0,0,0,"Insuficiente","sem erros"]
[{"$f":"Lista_alunos!H26","v":"M124"},null,null,null,null,0,0,null,0,0,null,null,0,0,null,0,0,null,null,0,0,null,0,0,null,0,0,null,0,0,null,null,0,0,null,0,0,0,0,0,0,0,0,"Insuficiente","sem erros"]
[{"$f":"Lista_alunos!H27","v":"M125"},null,null,null,null,0,0,null,0,0,null,null,0,0,null,0,0,null,null,0,0,null,0,0,null,0,0,null,0,0,null,null,0,0,null,0,0,0,0,0,0,0,0,"Insuficiente","sem erros"]
[{"$f":"Lista_alunos!H28","v":"Rm124"},null,null,null,null,0,0,null,0,0,null,null,0,0,null,0,0,null,null,0,0,null,0,0,null,0,0,null,0,0,null,null,0,0,null,0,0,0,0,0,0,0,0,"Insuficiente","sem erros"]
[{"$f":"Lista_alunos!H29","v":"Ree"},null,null,null,null,0,0,null,0,0,null,null,0,0,null,0,0,null,null,0,0,null,0,0,null,0,0,null,0,0,null,null,0,0,null,0,0,0,0,0,0,0,0,"Insuficiente","sem erros"]
[{"$f":"Lista_alunos!H30","v":"Sm"},null,null,null,null,0,0,null,0,0,null,null,0,0,null,0,0,null,null,0,0,null,0,0,null,0,0,null,0,0,null,null,0,0,null,0,0,0,0,0,0,0,0,"Insuficiente","sem erros"]
[{"$f":"Lista_alunos!H31","v":0},null,null,null,null,0,0,null,0,0,null,null,0,0,null,0,0,null,null,0,0,null,0,0,null,0,0,null,0,0,null,null,0,0,null,0,0,0,0,0,0,0,0,"Insuficiente","sem erros"]
[{"$f":"Lista_alunos!H32","v":0},null,null,null,null,0,0,null,0,0,null,null,0,0,null,0,0,null,null,0,0,null,0,0,null,0,0,null,0,0,null,null,0,0,null,0,0,0,0,0,0,0,0,"Insuficiente","sem erros"]
[{"$f":"Lista_alunos!H33","v":0},null,null,null,null,0,0,null,0,0,null,null,0,0,null,0,0,null,null,0,0,null,0,0,null,0,0,null,0,0,null,null,0,0,null,0,0,0,0,0,0,0,0,"Insuficiente","sem erros"]
[{"$f":"Lista_alunos!H34","v":0},null,null,null,null,0,0,null,0,0,null,null,0,0,null,0,0,null,null,0,0,null,0,0,null,0,0,null,0,0,null,null,0,0,null,0,0,0,0,0,0,0,0,"Insuficiente","sem erros"]
[{"$f":"Lista_alunos!H35","v":0},null,null,null,null,0,0,null,0,0,null,null,0,0,null,0,0,null,null,0,0,null,0,0,null,0,0,null,0,0,null,null,0,0,null,0,0,0,0,0,0,0,0,"Insuficiente","sem erros"]
[{"$f":"Lista_alunos!H36","v":0},null,null,null,null,0,0,null,0,0,null,null,0,0,null,0,0,null,null,0,0,null,0,0,null,0,0,null,0,0,null,null,0,0,null,0,0,0,0,0,0,0,0,"Insuficiente","sem erros"]
[{"$f":"Lista_alunos!H37","v":0},null,null,null,null,0,0,null,0,0,null,null,0,0,null,0,0,null,null,0,0,null,0,0,null,0,0,null,0,0,null,null,0,0,null,0,0,0,0,0,0,0,0,"Insuficiente","sem erros"]
[{"$f":"Lista_alunos!H38","v":0},null,null,null,null,0,0,null,0,0,null,null,0,0,null,0,0,null,null,0,0,null,0,0,null,0,0,null,0,0,null,null,0,0,null,0,0,0,0,0,0,0,0,"Insuficiente","sem erros"]
[{"$f":"Lista_alunos!H39","v":0},null,null,null,null,0,0,null,0,0,null,null,0,0,null,0,0,null,null,0,0,null,0,0,null,0,0,null,0,0,null,null,0,0,null,0,0,0,0,0,0,0,0,"Insuficiente","sem erros"]
[{"$f":"Lista_alunos!H40","v":0},null,null,null,null,0,0,null,0,0,null,null,0,0,null,0,0,null,null,0,0,null,0,0,null,0,0,null,0,0,null,null,0,0,null,0,0,0,0,0,0,0,0,"Insuficiente","sem erros"]
[{"$f":"Lista_alunos!H41","v":0},null,null,null,null,0,0,null,0,0,null,null,0,0,null,0,0,null,null,0,0,null,0,0,null,0,0,null,0,0,null,null,0,0,null,0,0,0,0,0,0,0,0,"Insuficiente","sem erros"]
[{"$f":"Lista_alunos!H42","v":0},null,null,null,null,0,0,null,0,0,null,null,0,0,null,0,0,null,null,0,0,null,0,0,null,0,0,null,0,0,null,null,0,0,null,0,0,0,0,0,0,0,0,"Insuficiente","sem erros"]
[null,"TOTAL",null,null,null,{"$f":"SUM(F11:F37)","v":1},{"$f":"SUM(G11:G37)","v":2},null,{"$f":"SUM(I11:I37)","v":1},2,null,null,0,2,null,0,2,null,null,0,2,null,1,2,null,0,1,null,0,2,null,null,0,2,null,0,4,{"$f":"SUM(AL11:AL37)","v":9},{"$f":"SUM(AM11:AM37)","v":1},{"$f":"SUM(AN11:AN37)","v":12},{"$f":"SUM(AO11:AO37)","v":2},12,12]
[]
[null,null,null,"TOTAL DE AVALIAÇÃO DOS ALUNOS"]
[]
[null,"CORREÇÃO",null,"INTENSIDADE",null,null,null,"RÍTMO",null,null,null,"EXPRESSIVIDADE",null,null,null,null,null,"ARTICULAÇÃO",null,null,null,"TOTAL"]
["POSITIVO",{"$f":"H6","v":2},null,{"$f":"O6","v":2},null,null,null,{"$f":"V6","v":2},null,null,null,{"$f":"AB6","v":2},null,null,null,null,null,{"$f":"AI6","v":4},null,null,null,{"$f":"SUM(B43:R43)","v":12}]
["NEGATIVO",{"$f":"H7","v":1},null,{"$f":"O7","v":0},null,null,null,{"$f":"V7","v":1},null,null,null,{"$f":"AB7","v":0},null,null,null,null,null,{"$f":"AE7","v":0},null,null,null,{"$f":"SUM(B44:R44)","v":2}]

{"sheet":"Planilha2","index":5,"n_rows":276,"n_cols":6,"rows_kept":276,"cut":false,"hidden":false,"merged":[[273,5,273,12],[274,5,274,12],[275,5,275,12],[2,9,3,11],[265,5,265,12],[266,0,275,0],[266,1,275,4],[266,5,266,12],[267,5,267,12],[268,5,268,12],[269,5,269,12],[270,5,270,12],[271,5,271,12],[272,5,272,12],[259,5,259,12],[260,5,260,12],[261,5,261,12],[262,5,262,12],[263,5,263,12],[264,5,264,12],[251,5,251,12],[252,5,252,12],[253,5,253,12],[254,5,254,12],[255,5,255,12],[256,0,265,0],[256,1,265,4],[256,5,256,12],[257,5,257,12],[258,5,258,12],[243,5,243,12],[244,5,244,12],[245,5,245,12],[246,0,255,0],[246,1,255,4],[246,5,246,12],[247,5,247,12],[248,5,248,12],[249,5,249,12],[250,5,250,12],[235,5,235,12],[236,0,245,0],[236,1,245,4],[236,5,236,12],[237,5,237,12],[238,5,238,12],[239,5,239,12],[240,5,240,12],[241,5,241,12],[242,5,242,12],[226,0,235,0],[226,1,235,4],[231,5,231,12],[232,5,232,12],[233,5,233,12],[234,5,234,12],[229,5,229,12],[230,5,230,12],[221,5,221,12],[222,5,222,12],[223,5,223,12],[224,5,224,12],[225,5,225,12],[226,5,226,12],[227,5,227,12],[228,5,228,12],[216,0,225,0],[216,1,225,4],[216,5,216,12],[217,5,217,12],[218,5,218,12],[219,5,219,12],[220,5,220,12],[205,5,205,12],[206,0,215,0],[206,1,215,4],[206,5,206,12],[207,5,207,12],[208,5,208,12],[209,5,209,12],[210,5,210,12],[211,5,211,12],[212,5,212,12],[196,0,205,0],[196,1,205,4],[213,5,213,12],[214,5,214,12],[215,5,215,12],[201,5,201,12],[202,5,202,12],[203,5,203,12],[204,5,204,12],[199,5,199,12],[200,5,200,12],[191,5,191,12],[192,5,192,12],[193,5,193,12],[194,5,194,12],[195,5,195,12],[196,5,196,12],[197,5,197,12],[198,5,198,12],[186,0,195,0],[186,1,195,4],[186,5,186,12],[187,5,187,12],[188,5,188,12],[189,5,189,12],[190,5,190,12],[175,5,175,12],[176,0,185,0],[176,1,185,4],[176,5,176,12],[177,5,177,12],[178,5,178,12],[179,5,179,12],[180,5,180,12],[181,5,181,12],[182,5,182,12],[166,0,175,0],[166,1,175,4],[183,5,183,12],[184,5,184,12],[185,5,185,12],[171,5,171,12],[172,5,172,12],[173,5,173,12],[174,5,174,12],[169,5,169,12],[170,5,170,12],[161,5,161,12],[162,5,162,12],[163,5,163,12],[164,5,164,12],[165,5,165,12],[166,5,166,12],[167,5,167,12],[168,5,168,12],[156,0,165,0],[156,1,165,4],[156,5,156,12],[157,5,157,12],[158,5,158,12],[159,5,159,12],[160,5,160,12],[145,5,145,12],[146,0,155,0],[146,1,155,4],[146,5,146,12],[147,5,147,12],[148,5,148,12],[149,5,149,12],[150,5,150,12],[151,5,151,12],[152,5,152,12],[136,0,145,0],[136,1,145,4],[153,5,153,12],[154,5,154,12],[155,5,155,12],[141,5,141,12],[142,5,142,12],[143,5,143,12],[144,5,144,12],[139,5,139,12],[140,5,140,12],[131,5,131,12],[132,5,132,12],[133,5,133,12],[134,5,134,12],[135,5,135,12],[136,5,136,12],[137,5,137,12],[138,5,138,12],[126,0,135,0],[126,1,135,4],[126,5,126,12],[127,5,127,12],[128,5,128,12],[129,5,129,12],[130,5,130,12],[115,5,115,12],[116,0,125,0],[116,1,125,4],[116,5,116,12],[117,5,117,12],[118,5,118,12],[119,5,119,12],[120,5,120,12],[121,5,121,12],[122,5,122,12],[106,0,115,0],[106,1,115,4],[123,5,123,12],[124,5,124,12],[125,5,125,12],[111,5,111,12],[112,5,112,12],[113,5,113,12],[114,5,114,12],[109,5,109,12],[110,5,110,12],[101,5,101,12],[102,5,102,12],[103,5,103,12],[104,5,104,12],[105,5,105,12],[106,5,106,12],[107,5,107,12],[108,5,108,12],[96,0,105,0],[96,1,105,4],[96,5,96,12],[97,5,97,12],[98,5,98,12],[99,5,99,12],[100,5,100,12],[85,5,85,12],[86,0,95,0],[86,1,95,4],[86,5,86,12],[87,5,87,12],[88,5,88,12],[89,5,89,12],[90,5,90,12],[91,5,91,12],[92,5,92,12],[76,0,85,0],[76,1,85,4],[93,5,93,12],[94,5,94,12],[95,5,95,12],[81,5,81,12],[82,5,82,12],[83,5,83,12],[84,5,84,12],[79,5,79,12],[80,5,80,12],[71,5,71,12],[72,5,72,12],[73,5,73,12],[74,5,74,12],[75,5,75,12],[76,5,76,12],[77,5,77,12],[78,5,78,12],[66,0,75,0],[66,1,75,4],[66,5,66,12],[67,5,67,12],[68,5,68,12],[69,5,69,12],[70,5,70,12],[55,5,55,12],[56,0,65,0],[56,1,65,4],[56,5,56,12],[57,5,57,12],[58,5,58,12],[59,5,59,12],[60,5,60,12],[61,5,61,12],[62,5,62,12],[46,0,55,0],[46,1,55,4],[63,5,63,12],[64,5,64,12],[65,5,65,12],[51,5,51,12],[52,5,52,12],[53,5,53,12],[54,5,54,12],[49,5,49,12],[50,5,50,12],[47,5,47,12],[48,5,48,12],[46,5,46,12],[36,0,45,0],[36,1,45,4],[36,5,36,12],[37,5,37,12],[38,5,38,12],[39,5,39,12],[40,5,40,12],[22,5,22,12],[23,5,23,12],[24,5,24,12],[41,5,41,12],[42,5,42,12],[43,5,43,12],[44,5,44,12],[45,5,45,12],[16,5,16,12],[17,5,17,12],[18,5,18,12],[1,2,2,8],[5,1,5,4],[5,5,5,12],[25,5,25,12],[26,0,35,0],[26,1,35,4],[26,5,26,12],[27,5,27,12],[28,5,28,12],[29,5,29,12],[30,5,30,12],[31,5,31,12],[32,5,32,12],[16,0,25,0],[16,1,25,4],[33,5,33,12],[34,5,34,12],[35,5,35,12],[19,5,19,12],[20,5,20,12],[21,5,21,12],[6,0,15,0],[6,1,15,4],[6,5,6,12],[7,5,7,12],[8,5,8,12],[9,5,9,12],[10,5,10,12],[11,5,11,12],[12,5,12,12],[13,5,13,12],[14,5,14,12],[15,5,15,12]]}
[]
[null,null,"RESUMOS DOS RESULTADOS POR ALUNO DO 2º PERÍODO"]
[]
[]
[]
[null,"NOME DO ALUNO",null,null,null,"RELATÓRIO DE AVALIAÇÃO DA LEITURA"]
[1,{"$f":"Lista_alunos!H16","v":"Is"},null,null,null,{"$f":"IF('2ºPeríodo'!G11>=1,\"A leitura é insuficiente: soletra,troca letras, faz omissões\",)","v":0}]
[null,null,null,null,null,{"$f":"IF('2ºPeríodo'!J11>=1,\"Lê com muita correção.\",)","v":"Lê com muita correção."}]
[null,null,null,null,null,{"$f":"IF('2ºPeríodo'!N11>=1,\"Apresenta  erros de leitura na intensidade\",)","v":0}]
[null,null,null,null,null,{"$f":"IF('2ºPeríodo'!X11>=1,\"Lê com ritmo adequado.\",)","v":"Lê com ritmo adequado."}]
[null,null,null,null,null,{"$f":"IF('2ºPeríodo'!AD11>=1,\"Lê com expressividade os textos.\",)","v":"Lê com expressividade os textos."}]
[null,null,null,null,null,{"$f":"IF('2ºPeríodo'!AA11>=1,\"Lê sem expressividade.\",)","v":0}]
[null,null,null,null,null,{"$f":"IF('2ºPeríodo'!AH11>=1,\"Não articula e é pouco clara.\",)","v":0}]
[null,null,null,null,null,{"$f":"IF('2ºPeríodo'!AK11>=1,\"Lê com boa articulação os textos.\",)","v":"Lê com boa articulação os textos."}]
[null,null,null,null,null,{"$f":"IF('2ºPeríodo'!U11>=1,\"Não lê com ritmo adequado.\",)","v":0}]
[null,null,null,null,null,{"$f":"IF('2ºPeríodo'!Q11>=1,\"Realiza uma leitura com boa intensidade.\",)","v":"Realiza uma leitura com boa intensidade."}]
[2,{"$f":"Lista_alunos!H17","v":"Ca"},null,null,null,{"$f":"IF('2ºPeríodo'!G12>=1,\"A leitura é insuficiente: soletra,troca letras, faz omissões\",)","v":"A leitura é insuficiente: soletra,troca letras, faz omissões"}]
[null,null,null,null,null,{"$f":"IF('2ºPeríodo'!J12>=1,\"Lê com muita correção.\",)","v":0}]
[null,null,null,null,null,{"$f":"IF('2ºPeríodo'!N12>=1,\"Apresenta  erros de leitura na intensidade\",)","v":"Apresenta  erros de leitura na intensidade"}]
[null,null,null,null,null,{"$f":"IF('2ºPeríodo'!X12>=1,\"Lê com ritmo adequado.\",)","v":0}]
[null,null,null,null,null,{"$f":"IF('2ºPeríodo'!AD12>=1,\"Lê com expressividade os textos.\",)","v":0}]
[null,null,null,null,null,{"$f":"IF('2ºPeríodo'!AA12>=1,\"Lê sem expressividade.\",)","v":"Lê sem expressividade."}]
[null,null,null,null,null,{"$f":"IF('2ºPeríodo'!AH12>=1,\"Não articula e é pouco clara.\",)","v":"Não articula e é pouco clara."}]
[null,null,null,null,null,{"$f":"IF('2ºPeríodo'!AK12>=1,\"Lê com boa articulação os textos.\",)","v":"Lê com boa articulação os textos."}]
[null,null,null,null,null,{"$f":"IF('2ºPeríodo'!U12>=1,\"Não lê com ritmo adequado.\",)","v":"Não lê com ritmo adequado."}]
[null,null,null,null,null,{"$f":"IF('2ºPeríodo'!Q12>=1,\"Realiza uma leitura com boa intensidade.\",)","v":0}]
[3,{"$f":"Lista_alunos!H18","v":"f"},null,null,null,{"$f":"IF('2ºPeríodo'!G13>=1,\"A leitura é insuficiente: soletra,troca letras, faz omissões\",)","v":0}]
[null,null,null,null,null,{"$f":"IF('2ºPeríodo'!J13>=1,\"Lê com muita correção.\",)","v":"Lê com muita correção."}]
[null,null,null,null,null,{"$f":"IF('2ºPeríodo'!N13>=1,\"Apresenta  erros de leitura na intensidade\",)","v":0}]
[null,null,null,null,null,{"$f":"IF('2ºPeríodo'!X13>=1,\"Lê com ritmo adequado.\",)","v":"Lê com ritmo adequado."}]
[null,null,null,null,null,{"$f":"IF('2ºPeríodo'!AD13>=1,\"Lê com expressividade os textos.\",)","v":"Lê com expressividade os textos."}]
[null,null,null,null,null,{"$f":"IF('2ºPeríodo'!AA13>=1,\"Lê sem expressividade.\",)","v":0}]
[null,null,null,null,null,{"$f":"IF('2ºPeríodo'!AH13>=1,\"Não articula e é pouco clara.\",)","v":0}]
[null,null,null,null,null,{"$f":"IF('2ºPeríodo'!AK13>=1,\"Lê com boa articulação os textos.\",)","v":"Lê com boa articulação os textos."}]
[null,null,null,null,null,{"$f":"IF('2ºPeríodo'!U13>=1,\"Não lê com ritmo adequado.\",)","v":0}]
[null,null,null,null,null,{"$f":"IF('2ºPeríodo'!Q13>=1,\"Realiza uma leitura com boa intensidade.\",)","v":"Realiza uma leitura com boa intensidade."}]
[4,{"$f":"Lista_alunos!H19","v":"g"},null,null,null,{"$f":"IF('2ºPeríodo'!G14>=1,\"A leitura é insuficiente: soletra,troca letras, faz omissões\",)","v":0}]
[null,null,null,null,null,{"$f":"IF('2ºPeríodo'!J14>=1,\"Lê com muita correção.\",)","v":0}]
[null,null,null,null,null,{"$f":"IF('2ºPeríodo'!N14>=1,\"Apresenta  erros de leitura na intensidade\",)","v":0}]
[null,null,null,null,null,{"$f":"IF('2ºPeríodo'!X14>=1,\"Lê com ritmo adequado.\",)","v":0}]
[null,null,null,null,null,{"$f":"IF('2ºPeríodo'!AD14>=1,\"Lê com expressividade os textos.\",)","v":0}]
[null,null,null,null,null,{"$f":"IF('2ºPeríodo'!AA14>=1,\"Lê sem expressividade.\",)","v":0}]
[null,null,null,null,null,{"$f":"IF('2ºPeríodo'!AH14>=1,\"Não articula e é pouco clara.\",)","v":0}]
[null,null,null,null,null,{"$f":"IF('2ºPeríodo'!AK14>=1,\"Lê com boa articulação os textos.\",)","v":"Lê com boa articulação os textos."}]
[null,null,null,null,null,{"$f":"IF('2ºPeríodo'!U14>=1,\"Não lê com ritmo adequado.\",)","v":0}]
[null,null,null,null,null,{"$f":"IF('2ºPeríodo'!Q14>=1,\"Realiza uma leitura com boa intensidade.\",)","v":0}]
[5,{"$f":"Lista_alunos!H20","v":"Fe"},null,null,null,{"$f":"IF('2ºPeríodo'!G15>=1,\"A leitura é insuficiente: soletra,troca letras, faz omissões\",)","v":0}]
[null,null,null,null,null,{"$f":"IF('2ºPeríodo'!J15>=1,\"Lê com muita correção.\",)","v":0}]
[null,null,null,null,null,{"$f":"IF('2ºPeríodo'!N15>=1,\"Apresenta  erros de leitura na intensidade\",)","v":0}]
[null,null,null,null,null,{"$f":"IF('2ºPeríodo'!X15>=1,\"Lê com ritmo adequado.\",)","v":0}]
[null,null,null,null,null,{"$f":"IF('2ºPeríodo'!AD15>=1,\"Lê com expressividade os textos.\",)","v":0}]
[null,null,null,null,null,{"$f":"IF('2ºPeríodo'!AA15>=1,\"Lê sem expressividade.\",)","v":0}]
[null,null,null,null,null,{"$f":"IF('2ºPeríodo'!AH15>=1,\"Não articula e é pouco clara.\",)","v":0}]
[null,null,null,null,null,{"$f":"IF('2ºPeríodo'!AK15>=1,\"Lê com boa articulação os textos.\",)","v":0}]
[null,null,null,null,null,{"$f":"IF('2ºPeríodo'!U15>=1,\"Não lê com ritmo adequado.\",)","v":0}]
[null,null,null,null,null,{"$f":"IF('2ºPeríodo'!Q15>=1,\"Realiza uma leitura com boa intensidade.\",)","v":0}]
[6,{"$f":"Lista_alunos!H21","v":"F3"},null,null,null,{"$f":"IF('2ºPeríodo'!G16>=1,\"A leitura é insuficiente: soletra,troca letras, faz omissões\",)","v":0}]
[null,null,null,null,null,{"$f":"IF('2ºPeríodo'!J16>=1,\"Lê com muita correção.\",)","v":0}]
[null,null,null,null,null,{"$f":"IF('2ºPeríodo'!N16>=1,\"Apresenta  erros de leitura na intensidade\",)","v":0}]
[null,null,null,null,null,{"$f":"IF('2ºPeríodo'!X16>=1,\"Lê com ritmo adequado.\",)","v":0}]
[null,null,null,null,null,{"$f":"IF('2ºPeríodo'!AD16>=1,\"Lê com expressividade os textos.\",)","v":0}]
[null,null,null,null,null,{"$f":"IF('2ºPeríodo'!AA16>=1,\"Lê sem expressividade.\",)","v":0}]
[null,null,null,null,null,{"$f":"IF('2ºPeríodo'!AH16>=1,\"Não articula e é pouco clara.\",)","v":0}]
[null,null,null,null,null,{"$f":"IF('2ºPeríodo'!AK16>=1,\"Lê com boa articulação os textos.\",)","v":0}]
[null,null,null,null,null,{"$f":"IF('2ºPeríodo'!U16>=1,\"Não lê com ritmo adequado.\",)","v":0}]
[null,null,null,null,null,{"$f":"IF('2ºPeríodo'!Q16>=1,\"Realiza uma leitura com boa intensidade.\",)","v":0}]
[7,{"$f":"Lista_alunos!H22","v":"Je"},null,null,null,{"$f":"IF('2ºPeríodo'!G17>=1,\"A leitura é insuficiente: soletra,troca letras, faz omissões\",)","v":0}]
[null,null,null,null,null,{"$f":"IF('2ºPeríodo'!J17>=1,\"Lê com muita correção.\",)","v":0}]
[null,null,null,null,null,{"$f":"IF('2ºPeríodo'!N17>=1,\"Apresenta  erros de leitura na intensidade\",)","v":0}]
[null,null,null,null,null,{"$f":"IF('2ºPeríodo'!X17>=1,\"Lê com ritmo adequado.\",)","v":0}]
[null,null,null,null,null,{"$f":"IF('2ºPeríodo'!AD17>=1,\"Lê com expressividade os textos.\",)","v":0}]
[null,null,null,null,null,{"$f":"IF('2ºPeríodo'!AA17>=1,\"Lê sem expressividade.\",)","v":0}]
[null,null,null,null,null,{"$f":"IF('2ºPeríodo'!AH17>=1,\"Não articula e é pouco clara.\",)","v":0}]
[null,null,null,null,null,{"$f":"IF('2ºPeríodo'!AK17>=1,\"Lê com boa articulação os textos.\",)","v":0}]
[null,null,null,null,null,{"$f":"IF('2ºPeríodo'!U17>=1,\"Não lê com ritmo adequado.\",)","v":0}]
[null,null,null,null,null,{"$f":"IF('2ºPeríodo'!Q17>=1,\"Realiza uma leitura com boa intensidade.\",)","v":0}]
[8,{"$f":"Lista_alunos!H23","v":"M11"},null,null,null,{"$f":"IF('2ºPeríodo'!G18>=1,\"A leitura é insuficiente: soletra,troca letras, faz omissões\",)","v":0}]
[null,null,null,null,null,{"$f":"IF('2ºPeríodo'!J18>=1,\"Lê com muita correção.\",)","v":0}]
[null,null,null,null,null,{"$f":"IF('2ºPeríodo'!N18>=1,\"Apresenta  erros de leitura na intensidade\",)","v":0}]
[null,null,null,null,null,{"$f":"IF('2ºPeríodo'!X18>=1,\"Lê com ritmo adequado.\",)","v":0}]
[null,null,null,null,null,{"$f":"IF('2ºPeríodo'!AD18>=1,\"Lê com expressividade os textos.\",)","v":0}]
[null,null,null,null,null,{"$f":"IF('2ºPeríodo'!AA18>=1,\"Lê sem expressividade.\",)","v":0}]
[null,null,null,null,null,{"$f":"IF('2ºPeríodo'!AH18>=1,\"Não articula e é pouco clara.\",)","v":0}]
[null,null,null,null,null,{"$f":"IF('2ºPeríodo'!AK18>=1,\"Lê com boa articulação os textos.\",)","v":0}]
[null,null,null,null,null,{"$f":"IF('2ºPeríodo'!U18>=1,\"Não lê com ritmo adequado.\",)","v":0}]
[null,null,null,null,null,{"$f":"IF('2ºPeríodo'!Q18>=1,\"Realiza uma leitura com boa intensidade.\",)","v":0}]
[9,{"$f":"Lista_alunos!H24","v":"M"},null,null,null,{"$f":"IF('2ºPeríodo'!G19>=1,\"A leitura é insuficiente: soletra,troca letras, faz omissões\",)","v":0}]
[null,null,null,null,null,{"$f":"IF('2ºPeríodo'!J19>=1,\"Lê com muita correção.\",)","v":0}]
[null,null,null,null,null,{"$f":"IF('2ºPeríodo'!N19>=1,\"Apresenta  erros de leitura na intensidade\",)","v":0}]
[null,null,null,null,null,{"$f":"IF('2ºPeríodo'!X19>=1,\"Lê com ritmo adequado.\",)","v":0}]
[null,null,null,null,null,{"$f":"IF('2ºPeríodo'!AD19>=1,\"Lê com expressividade os textos.\",)","v":0}]
[null,null,null,null,null,{"$f":"IF('2ºPeríodo'!AA19>=1,\"Lê sem expressividade.\",)","v":0}]
[null,null,null,null,null,{"$f":"IF('2ºPeríodo'!AH19>=1,\"Não articula e é pouco clara.\",)","v":0}]
[null,null,null,null,null,{"$f":"IF('2ºPeríodo'!AK19>=1,\"Lê com boa articulação os textos.\",)","v":0}]
[null,null,null,null,null,{"$f":"IF('2ºPeríodo'!U19>=1,\"Não lê com ritmo adequado.\",)","v":0}]
[null,null,null,null,null,{"$f":"IF('2ºPeríodo'!Q19>=1,\"Realiza uma leitura com boa intensidade.\",)","v":0}]
[10,{"$f":"Lista_alunos!H25","v":"M123"},null,null,null,{"$f":"IF('2ºPeríodo'!G20>=1,\"A leitura é insuficiente: soletra,troca letras, faz omissões\",)","v":0}]
[null,null,null,null,null,{"$f":"IF('2ºPeríodo'!J20>=1,\"Lê com muita correção.\",)","v":0}]
[null,null,null,null,null,{"$f":"IF('2ºPeríodo'!N20>=1,\"Apresenta  erros de leitura na intensidade\",)","v":0}]
[null,null,null,null,null,{"$f":"IF('2ºPeríodo'!X20>=1,\"Lê com ritmo adequado.\",)","v":0}]
[null,null,null,null,null,{"$f":"IF('2ºPeríodo'!AD20>=1,\"Lê com expressividade os textos.\",)","v":0}]
[null,null,null,null,null,{"$f":"IF('2ºPeríodo'!AA20>=1,\"Lê sem expressividade.\",)","v":0}]
[null,null,null,null,null,{"$f":"IF('2ºPeríodo'!AH20>=1,\"Não articula e é pouco clara.\",)","v":0}]
[null,null,null,null,null,{"$f":"IF('2ºPeríodo'!AK20>=1,\"Lê com boa articulação os textos.\",)","v":0}]
[null,null,null,null,null,{"$f":"IF('2ºPeríodo'!U20>=1,\"Não lê com ritmo adequado.\",)","v":0}]
[null,null,null,null,null,{"$f":"IF('2ºPeríodo'!Q20>=1,\"Realiza uma leitura com boa intensidade.\",)","v":0}]
[11,{"$f":"Lista_alunos!H26","v":"M124"},null,null,null,{"$f":"IF('2ºPeríodo'!G21>=1,\"A leitura é insuficiente: soletra,troca letras, faz omissões\",)","v":0}]
[null,null,null,null,null,{"$f":"IF('2ºPeríodo'!J21>=1,\"Lê com muita correção.\",)","v":0}]
[null,null,null,null,null,{"$f":"IF('2ºPeríodo'!N21>=1,\"Apresenta  erros de leitura na intensidade\",)","v":0}]
[null,null,null,null,null,{"$f":"IF('2ºPeríodo'!X21>=1,\"Lê com ritmo adequado.\",)","v":0}]
[null,null,null,null,null,{"$f":"IF('2ºPeríodo'!AD21>=1,\"Lê com expressividade os textos.\",)","v":0}]
[null,null,null,null,null,{"$f":"IF('2ºPeríodo'!AA21>=1,\"Lê sem expressividade.\",)","v":0}]
[null,null,null,null,null,{"$f":"IF('2ºPeríodo'!AH21>=1,\"Não articula e é pouco clara.\",)","v":0}]
[null,null,null,null,null,{"$f":"IF('2ºPeríodo'!AK21>=1,\"Lê com boa articulação os textos.\",)","v":0}]
[null,null,null,null,null,{"$f":"IF('2ºPeríodo'!U21>=1,\"Não lê com ritmo adequado.\",)","v":0}]
[null,null,null,null,null,{"$f":"IF('2ºPeríodo'!Q21>=1,\"Realiza uma leitura com boa intensidade.\",)","v":0}]
[12,{"$f":"Lista_alunos!H27","v":"M125"},null,null,null,{"$f":"IF('2ºPeríodo'!G22>=1,\"A leitura é insuficiente: soletra,troca letras, faz omissões\",)","v":0}]
[null,null,null,null,null,{"$f":"IF('2ºPeríodo'!J22>=1,\"Lê com muita correção.\",)","v":0}]
[null,null,null,null,null,{"$f":"IF('2ºPeríodo'!N22>=1,\"Apresenta  erros de leitura na intensidade\",)","v":0}]
[null,null,null,null,null,{"$f":"IF('2ºPeríodo'!X22>=1,\"Lê com ritmo adequado.\",)","v":0}]
[null,null,null,null,null,{"$f":"IF('2ºPeríodo'!AD22>=1,\"Lê com expressividade os textos.\",)","v":0}]
[null,null,null,null,null,{"$f":"IF('2ºPeríodo'!AA22>=1,\"Lê sem expressividade.\",)","v":0}]
[null,null,null,null,null,{"$f":"IF('2ºPeríodo'!AH22>=1,\"Não articula e é pouco clara.\",)","v":0}]
[null,null,null,null,null,{"$f":"IF('2ºPeríodo'!AK22>=1,\"Lê com boa articulação os textos.\",)","v":0}]
[null,null,null,null,null,{"$f":"IF('2ºPeríodo'!U22>=1,\"Não lê com ritmo adequado.\",)","v":0}]
[null,null,null,null,null,{"$f":"IF('2ºPeríodo'!Q22>=1,\"Realiza uma leitura com boa intensidade.\",)","v":0}]
[13,{"$f":"Lista_alunos!H28","v":"Rm124"},null,null,null,{"$f":"IF('2ºPeríodo'!G23>=1,\"A leitura é insuficiente: soletra,troca letras, faz omissões\",)","v":0}]
[null,null,null,null,null,{"$f":"IF('2ºPeríodo'!J23>=1,\"Lê com muita correção.\",)","v":0}]
[null,null,null,null,null,{"$f":"IF('2ºPeríodo'!N23>=1,\"Apresenta  erros de leitura na intensidade\",)","v":0}]
[null,null,null,null,null,{"$f":"IF('2ºPeríodo'!X23>=1,\"Lê com ritmo adequado.\",)","v":0}]
[null,null,null,null,null,{"$f":"IF('2ºPeríodo'!AD23>=1,\"Lê com expressividade os textos.\",)","v":0}]
[null,null,null,null,null,{"$f":"IF('2ºPeríodo'!AA23>=1,\"Lê sem expressividade.\",)","v":0}]
[null,null,null,null,null,{"$f":"IF('2ºPeríodo'!AH23>=1,\"Não articula e é pouco clara.\",)","v":0}]
[null,null,null,null,null,{"$f":"IF('2ºPeríodo'!AK23>=1,\"Lê com boa articulação os textos.\",)","v":0}]
[null,null,null,null,null,{"$f":"IF('2ºPeríodo'!U23>=1,\"Não lê com ritmo adequado.\",)","v":0}]
[null,null,null,null,null,{"$f":"IF('2ºPeríodo'!Q23>=1,\"Realiza uma leitura com boa intensidade.\",)","v":0}]
[14,{"$f":"Lista_alunos!H29","v":"Ree"},null,null,null,{"$f":"IF('2ºPeríodo'!G24>=1,\"A leitura é insuficiente: soletra,troca letras, faz omissões\",)","v":0}]
[null,null,null,null,null,{"$f":"IF('2ºPeríodo'!J24>=1,\"Lê com muita correção.\",)","v":0}]
[null,null,null,null,null,{"$f":"IF('2ºPeríodo'!N24>=1,\"Apresenta  erros de leitura na intensidade\",)","v":0}]
[null,null,null,null,null,{"$f":"IF('2ºPeríodo'!X24>=1,\"Lê com ritmo adequado.\",)","v":0}]
[null,null,null,null,null,{"$f":"IF('2ºPeríodo'!AD24>=1,\"Lê com expressividade os textos.\",)","v":0}]
[null,null,null,null,null,{"$f":"IF('2ºPeríodo'!AA24>=1,\"Lê sem expressividade.\",)","v":0}]
[null,null,null,null,null,{"$f":"IF('2ºPeríodo'!AH24>=1,\"Não articula e é pouco clara.\",)","v":0}]
[null,null,null,null,null,{"$f":"IF('2ºPeríodo'!AK24>=1,\"Lê com boa articulação os textos.\",)","v":0}]
[null,null,null,null,null,{"$f":"IF('2ºPeríodo'!U24>=1,\"Não lê com ritmo adequado.\",)","v":0}]
[null,null,null,null,null,{"$f":"IF('2ºPeríodo'!Q24>=1,\"Realiza uma leitura com boa intensidade.\",)","v":0}]
[15,{"$f":"Lista_alunos!H30","v":"Sm"},null,null,null,{"$f":"IF('2ºPeríodo'!G25>=1,\"A leitura é insuficiente: soletra,troca letras, faz omissões\",)","v":0}]
[null,null,null,null,null,{"$f":"IF('2ºPeríodo'!J25>=1,\"Lê com muita correção.\",)","v":0}]
[null,null,null,null,null,{"$f":"IF('2ºPeríodo'!N25>=1,\"Apresenta  erros de leitura na intensidade\",)","v":0}]
[null,null,null,null,null,{"$f":"IF('2ºPeríodo'!X25>=1,\"Lê com ritmo adequado.\",)","v":0}]
[null,null,null,null,null,{"$f":"IF('2ºPeríodo'!AD25>=1,\"Lê com expressividade os textos.\",)","v":0}]
[null,null,null,null,null,{"$f":"IF('2ºPeríodo'!AA25>=1,\"Lê sem expressividade.\",)","v":0}]
[null,null,null,null,null,{"$f":"IF('2ºPeríodo'!AH25>=1,\"Não articula e é pouco clara.\",)","v":0}]
[null,null,null,null,null,{"$f":"IF('2ºPeríodo'!AK25>=1,\"Lê com boa articulação os textos.\",)","v":0}]
[null,null,null,null,null,{"$f":"IF('2ºPeríodo'!U25>=1,\"Não lê com ritmo adequado.\",)","v":0}]
[null,null,null,null,null,{"$f":"IF('2ºPeríodo'!Q25>=1,\"Realiza uma leitura com boa intensidade.\",)","v":0}]
[16,{"$f":"Lista_alunos!H31","v":0},null,null,null,{"$f":"IF('2ºPeríodo'!G26>=1,\"A leitura é insuficiente: soletra,troca letras, faz omissões\",)","v":0}]
[null,null,null,null,null,{"$f":"IF('2ºPeríodo'!J26>=1,\"Lê com muita correção.\",)","v":0}]
[null,null,null,null,null,{"$f":"IF('2ºPeríodo'!N26>=1,\"Apresenta  erros de leitura na intensidade\",)","v":0}]
[null,null,null,null,null,{"$f":"IF('2ºPeríodo'!X26>=1,\"Lê com ritmo adequado.\",)","v":0}]
[null,null,null,null,null,{"$f":"IF('2ºPeríodo'!AD26>=1,\"Lê com expressividade os textos.\",)","v":0}]
[null,null,null,null,null,{"$f":"IF('2ºPeríodo'!AA26>=1,\"Lê sem expressividade.\",)","v":0}]
[null,null,null,null,null,{"$f":"IF('2ºPeríodo'!AH26>=1,\"Não articula e é pouco clara.\",)","v":0}]
[null,null,null,null,null,{"$f":"IF('2ºPeríodo'!AK26>=1,\"Lê com boa articulação os textos.\",)","v":0}]
[null,null,null,null,null,{"$f":"IF('2ºPeríodo'!U26>=1,\"Não lê com ritmo adequado.\",)","v":0}]
[null,null,null,null,null,{"$f":"IF('2ºPeríodo'!Q26>=1,\"Realiza uma leitura com boa intensidade.\",)","v":0}]
[17,{"$f":"Lista_alunos!H32","v":0},null,null,null,{"$f":"IF('2ºPeríodo'!G27>=1,\"A leitura é insuficiente: soletra,troca letras, faz omissões\",)","v":0}]
[null,null,null,null,null,{"$f":"IF('2ºPeríodo'!J27>=1,\"Lê com muita correção.\",)","v":0}]
[null,null,null,null,null,{"$f":"IF('2ºPeríodo'!N27>=1,\"Apresenta  erros de leitura na intensidade\",)","v":0}]
[null,null,null,null,null,{"$f":"IF('2ºPeríodo'!X27>=1,\"Lê com ritmo adequado.\",)","v":0}]
[null,null,null,null,null,{"$f":"IF('2ºPeríodo'!AD27>=1,\"Lê com expressividade os textos.\",)","v":0}]
[null,null,null,null,null,{"$f":"IF('2ºPeríodo'!AA27>=1,\"Lê sem expressividade.\",)","v":0}]
[null,null,null,null,null,{"$f":"IF('2ºPeríodo'!AH27>=1,\"Não articula e é pouco clara.\",)","v":0}]
[null,null,null,null,null,{"$f":"IF('2ºPeríodo'!AK27>=1,\"Lê com boa articulação os textos.\",)","v":0}]
[null,null,null,null,null,{"$f":"IF('2ºPeríodo'!U27>=1,\"Não lê com ritmo adequado.\",)","v":0}]
[null,null,null,null,null,{"$f":"IF('2ºPeríodo'!Q27>=1,\"Realiza uma leitura com boa intensidade.\",)","v":0}]
[18,{"$f":"Lista_alunos!H33","v":0},null,null,null,{"$f":"IF('2ºPeríodo'!G28>=1,\"A leitura é insuficiente: soletra,troca letras, faz omissões\",)","v":0}]
[null,null,null,null,null,{"$f":"IF('2ºPeríodo'!J28>=1,\"Lê com muita correção.\",)","v":0}]
[null,null,null,null,null,{"$f":"IF('2ºPeríodo'!N28>=1,\"Apresenta  erros de leitura na intensidade\",)","v":0}]
[null,null,null,null,null,{"$f":"IF('2ºPeríodo'!X28>=1,\"Lê com ritmo adequado.\",)","v":0}]
[null,null,null,null,null,{"$f":"IF('2ºPeríodo'!AD28>=1,\"Lê com expressividade os textos.\",)","v":0}]
[null,null,null,null,null,{"$f":"IF('2ºPeríodo'!AA28>=1,\"Lê sem expressividade.\",)","v":0}]
[null,null,null,null,null,{"$f":"IF('2ºPeríodo'!AH28>=1,\"Não articula e é pouco clara.\",)","v":0}]
[null,null,null,null,null,{"$f":"IF('2ºPeríodo'!AK28>=1,\"Lê com boa articulação os textos.\",)","v":0}]
[null,null,null,null,null,{"$f":"IF('2ºPeríodo'!U28>=1,\"Não lê com ritmo adequado.\",)","v":0}]
[null,null,null,null,null,{"$f":"IF('2ºPeríodo'!Q28>=1,\"Realiza uma leitura com boa intensidade.\",)","v":0}]
[19,{"$f":"Lista_alunos!H34","v":0},null,null,null,{"$f":"IF('2ºPeríodo'!G29>=1,\"A leitura é insuficiente: soletra,troca letras, faz omissões\",)","v":0}]
[null,null,null,null,null,{"$f":"IF('2ºPeríodo'!J29>=1,\"Lê com muita correção.\",)","v":0}]
[null,null,null,null,null,{"$f":"IF('2ºPeríodo'!N29>=1,\"Apresenta  erros de leitura na intensidade\",)","v":0}]
[null,null,null,null,null,{"$f":"IF('2ºPeríodo'!X29>=1,\"Lê com ritmo adequado.\",)","v":0}]
[null,null,null,null,null,{"$f":"IF('2ºPeríodo'!AD29>=1,\"Lê com expressividade os textos.\",)","v":0}]
[null,null,null,null,null,{"$f":"IF('2ºPeríodo'!AA29>=1,\"Lê sem expressividade.\",)","v":0}]
[null,null,null,null,null,{"$f":"IF('2ºPeríodo'!AH29>=1,\"Não articula e é pouco clara.\",)","v":0}]
[null,null,null,null,null,{"$f":"IF('2ºPeríodo'!AK29>=1,\"Lê com boa articulação os textos.\",)","v":0}]
[null,null,null,null,null,{"$f":"IF('2ºPeríodo'!U29>=1,\"Não lê com ritmo adequado.\",)","v":0}]
[null,null,null,null,null,{"$f":"IF('2ºPeríodo'!Q29>=1,\"Realiza uma leitura com boa intensidade.\",)","v":0}]
[20,{"$f":"Lista_alunos!H35","v":0},null,null,null,{"$f":"IF('2ºPeríodo'!G30>=1,\"A leitura é insuficiente: soletra,troca letras, faz omissões\",)","v":0}]
[null,null,null,null,null,{"$f":"IF('2ºPeríodo'!J30>=1,\"Lê com muita correção.\",)","v":0}]
[null,null,null,null,null,{"$f":"IF('2ºPeríodo'!N30>=1,\"Apresenta  erros de leitura na intensidade\",)","v":0}]
[null,null,null,null,null,{"$f":"IF('2ºPeríodo'!X30>=1,\"Lê com ritmo adequado.\",)","v":0}]
[null,null,null,null,null,{"$f":"IF('2ºPeríodo'!AD30>=1,\"Lê com expressividade os textos.\",)","v":0}]
[null,null,null,null,null,{"$f":"IF('2ºPeríodo'!AA30>=1,\"Lê sem expressividade.\",)","v":0}]
[null,null,null,null,null,{"$f":"IF('2ºPeríodo'!AH30>=1,\"Não articula e é pouco clara.\",)","v":0}]
[null,null,null,null,null,{"$f":"IF('2ºPeríodo'!AK30>=1,\"Lê com boa articulação os textos.\",)","v":0}]
[null,null,null,null,null,{"$f":"IF('2ºPeríodo'!U30>=1,\"Não lê com ritmo adequado.\",)","v":0}]
[null,null,null,null,null,{"$f":"IF('2ºPeríodo'!Q30>=1,\"Realiza uma leitura com boa intensidade.\",)","v":0}]
[21,{"$f":"Lista_alunos!H36","v":0},null,null,null,{"$f":"IF('2ºPeríodo'!G31>=1,\"A leitura é insuficiente: soletra,troca letras, faz omissões\",)","v":0}]
[null,null,null,null,null,{"$f":"IF('2ºPeríodo'!J31>=1,\"Lê com muita correção.\",)","v":0}]
[null,null,null,null,null,{"$f":"IF('2ºPeríodo'!N31>=1,\"Apresenta  erros de leitura na intensidade\",)","v":0}]
[null,null,null,null,null,{"$f":"IF('2ºPeríodo'!X31>=1,\"Lê com ritmo adequado.\",)","v":0}]
[null,null,null,null,null,{"$f":"IF('2ºPeríodo'!AD31>=1,\"Lê com expressividade os textos.\",)","v":0}]
[null,null,null,null,null,{"$f":"IF('2ºPeríodo'!AA31>=1,\"Lê sem expressividade.\",)","v":0}]
[null,null,null,null,null,{"$f":"IF('2ºPeríodo'!AH31>=1,\"Não articula e é pouco clara.\",)","v":0}]
[null,null,null,null,null,{"$f":"IF('2ºPeríodo'!AK31>=1,\"Lê com boa articulação os textos.\",)","v":0}]
[null,null,null,null,null,{"$f":"IF('2ºPeríodo'!U31>=1,\"Não lê com ritmo adequado.\",)","v":0}]
[null,null,null,null,null,{"$f":"IF('2ºPeríodo'!Q31>=1,\"Realiza uma leitura com boa intensidade.\",)","v":0}]
[22,{"$f":"Lista_alunos!H37","v":0},null,null,null,{"$f":"IF('2ºPeríodo'!G32>=1,\"A leitura é insuficiente: soletra,troca letras, faz omissões\",)","v":0}]
[null,null,null,null,null,{"$f":"IF('2ºPeríodo'!J32>=1,\"Lê com muita correção.\",)","v":0}]
[null,null,null,null,null,{"$f":"IF('2ºPeríodo'!N32>=1,\"Apresenta  erros de leitura na intensidade\",)","v":0}]
[null,null,null,null,null,{"$f":"IF('2ºPeríodo'!X32>=1,\"Lê com ritmo adequado.\",)","v":0}]
[null,null,null,null,null,{"$f":"IF('2ºPeríodo'!AD32>=1,\"Lê com expressividade os textos.\",)","v":0}]
[null,null,null,null,null,{"$f":"IF('2ºPeríodo'!AA32>=1,\"Lê sem expressividade.\",)","v":0}]
[null,null,null,null,null,{"$f":"IF('2ºPeríodo'!AH32>=1,\"Não articula e é pouco clara.\",)","v":0}]
[null,null,null,null,null,{"$f":"IF('2ºPeríodo'!AK32>=1,\"Lê com boa articulação os textos.\",)","v":0}]
[null,null,null,null,null,{"$f":"IF('2ºPeríodo'!U32>=1,\"Não lê com ritmo adequado.\",)","v":0}]
[null,null,null,null,null,{"$f":"IF('2ºPeríodo'!Q32>=1,\"Realiza uma leitura com boa intensidade.\",)","v":0}]
[23,{"$f":"Lista_alunos!H38","v":0},null,null,null,{"$f":"IF('2ºPeríodo'!G33>=1,\"A leitura é insuficiente: soletra,troca letras, faz omissões\",)","v":0}]
[null,null,null,null,null,{"$f":"IF('2ºPeríodo'!J33>=1,\"Lê com muita correção.\",)","v":0}]
[null,null,null,null,null,{"$f":"IF('2ºPeríodo'!N33>=1,\"Apresenta  erros de leitura na intensidade\",)","v":0}]
[null,null,null,null,null,{"$f":"IF('2ºPeríodo'!X33>=1,\"Lê com ritmo adequado.\",)","v":0}]
[null,null,null,null,null,{"$f":"IF('2ºPeríodo'!AD33>=1,\"Lê com expressividade os textos.\",)","v":0}]
[null,null,null,null,null,{"$f":"IF('2ºPeríodo'!AA33>=1,\"Lê sem expressividade.\",)","v":0}]
[null,null,null,null,null,{"$f":"IF('2ºPeríodo'!AH33>=1,\"Não articula e é pouco clara.\",)","v":0}]
[null,null,null,null,null,{"$f":"IF('2ºPeríodo'!AK33>=1,\"Lê com boa articulação os textos.\",)","v":0}]
[null,null,null,null,null,{"$f":"IF('2ºPeríodo'!U33>=1,\"Não lê com ritmo adequado.\",)","v":0}]
[null,null,null,null,null,{"$f":"IF('2ºPeríodo'!Q33>=1,\"Realiza uma leitura com boa intensidade.\",)","v":0}]
[24,{"$f":"Lista_alunos!H39","v":0},null,null,null,{"$f":"IF('2ºPeríodo'!G34>=1,\"A leitura é insuficiente: soletra,troca letras, faz omissões\",)","v":0}]
[null,null,null,null,null,{"$f":"IF('2ºPeríodo'!J34>=1,\"Lê com muita correção.\",)","v":0}]
[null,null,null,null,null,{"$f":"IF('2ºPeríodo'!N34>=1,\"Apresenta  erros de leitura na intensidade\",)","v":0}]
[null,null,null,null,null,{"$f":"IF('2ºPeríodo'!X34>=1,\"Lê com ritmo adequado.\",)","v":0}]
[null,null,null,null,null,{"$f":"IF('2ºPeríodo'!AD34>=1,\"Lê com expressividade os textos.\",)","v":0}]
[null,null,null,null,null,{"$f":"IF('2ºPeríodo'!AA34>=1,\"Lê sem expressividade.\",)","v":0}]
[null,null,null,null,null,{"$f":"IF('2ºPeríodo'!AH34>=1,\"Não articula e é pouco clara.\",)","v":0}]
[null,null,null,null,null,{"$f":"IF('2ºPeríodo'!AK34>=1,\"Lê com boa articulação os textos.\",)","v":0}]
[null,null,null,null,null,{"$f":"IF('2ºPeríodo'!U34>=1,\"Não lê com ritmo adequado.\",)","v":0}]
[null,null,null,null,null,{"$f":"IF('2ºPeríodo'!Q34>=1,\"Realiza uma leitura com boa intensidade.\",)","v":0}]
[25,{"$f":"Lista_alunos!H40","v":0},null,null,null,{"$f":"IF('2ºPeríodo'!G35>=1,\"A leitura é insuficiente: soletra,troca letras, faz omissões\",)","v":0}]
[null,null,null,null,null,{"$f":"IF('2ºPeríodo'!J35>=1,\"Lê com muita correção.\",)","v":0}]
[null,null,null,null,null,{"$f":"IF('2ºPeríodo'!N35>=1,\"Apresenta  erros de leitura na intensidade\",)","v":0}]
[null,null,null,null,null,{"$f":"IF('2ºPeríodo'!X35>=1,\"Lê com ritmo adequado.\",)","v":0}]
[null,null,null,null,null,{"$f":"IF('2ºPeríodo'!AD35>=1,\"Lê com expressividade os textos.\",)","v":0}]
[null,null,null,null,null,{"$f":"IF('2ºPeríodo'!AA35>=1,\"Lê sem expressividade.\",)","v":0}]
[null,null,null,null,null,{"$f":"IF('2ºPeríodo'!AH35>=1,\"Não articula e é pouco clara.\",)","v":0}]
[null,null,null,null,null,{"$f":"IF('2ºPeríodo'!AK35>=1,\"Lê com boa articulação os textos.\",)","v":0}]
[null,null,null,null,null,{"$f":"IF('2ºPeríodo'!U35>=1,\"Não lê com ritmo adequado.\",)","v":0}]
[null,null,null,null,null,{"$f":"IF('2ºPeríodo'!Q35>=1,\"Realiza uma leitura com boa intensidade.\",)","v":0}]
[26,{"$f":"Lista_alunos!H41","v":0},null,null,null,{"$f":"IF('2ºPeríodo'!G36>=1,\"A leitura é insuficiente: soletra,troca letras, faz omissões\",)","v":0}]
[null,null,null,null,null,{"$f":"IF('2ºPeríodo'!J36>=1,\"Lê com muita correção.\",)","v":0}]
[null,null,null,null,null,{"$f":"IF('2ºPeríodo'!N36>=1,\"Apresenta  erros de leitura na intensidade\",)","v":0}]
[null,null,null,null,null,{"$f":"IF('2ºPeríodo'!X36>=1,\"Lê com ritmo adequado.\",)","v":0}]
[null,null,null,null,null,{"$f":"IF('2ºPeríodo'!AD36>=1,\"Lê com expressividade os textos.\",)","v":0}]
[null,null,null,null,null,{"$f":"IF('2ºPeríodo'!AA36>=1,\"Lê sem expressividade.\",)","v":0}]
[null,null,null,null,null,{"$f":"IF('2ºPeríodo'!AH36>=1,\"Não articula e é pouco clara.\",)","v":0}]
[null,null,null,null,null,{"$f":"IF('2ºPeríodo'!AK36>=1,\"Lê com boa articulação os textos.\",)","v":0}]
[null,null,null,null,null,{"$f":"IF('2ºPeríodo'!U36>=1,\"Não lê com ritmo adequado.\",)","v":0}]
[null,null,null,null,null,{"$f":"IF('2ºPeríodo'!Q36>=1,\"Realiza uma leitura com boa intensidade.\",)","v":0}]
[27,{"$f":"Lista_alunos!H42","v":0},null,null,null,{"$f":"IF('2ºPeríodo'!G37>=1,\"A leitura é insuficiente: soletra,troca letras, faz omissões\",)","v":0}]
[null,null,null,null,null,{"$f":"IF('2ºPeríodo'!J37>=1,\"Lê com muita correção.\",)","v":0}]
[null,null,null,null,null,{"$f":"IF('2ºPeríodo'!N37>=1,\"Apresenta  erros de leitura na intensidade\",)","v":0}]
[null,null,null,null,null,{"$f":"IF('2ºPeríodo'!X37>=1,\"Lê com ritmo adequado.\",)","v":0}]
[null,null,null,null,null,{"$f":"IF('2ºPeríodo'!AD37>=1,\"Lê com expressividade os textos.\",)","v":0}]
[null,null,null,null,null,{"$f":"IF('2ºPeríodo'!AA37>=1,\"Lê sem expressividade.\",)","v":0}]
[null,null,null,null,null,{"$f":"IF('2ºPeríodo'!AH37>=1,\"Não articula e é pouco clara.\",)","v":0}]
[null,null,null,null,null,{"$f":"IF('2ºPeríodo'!AK37>=1,\"Lê com boa articulação os textos.\",)","v":0}]
[null,null,null,null,null,{"$f":"IF('2ºPeríodo'!U37>=1,\"Não lê com ritmo adequado.\",)","v":0}]
[null,null,null,null,null,{"$f":"IF('2ºPeríodo'!Q37>=1,\"Realiza uma leitura com boa intensidade.\",)","v":0}]

{"sheet":"3ºPeríodo","index":6,"n_rows":44,"n_cols":45,"rows_kept":44,"cut":false,"hidden":false,"merged":[[8,37,8,44],[1,1,1,34],[3,2,3,7],[3,10,3,14],[3,17,3,21],[3,24,3,27],[3,30,3,34],[8,2,8,7],[8,10,8,14],[8,17,8,21],[8,24,8,27],[8,30,8,34],[32,0,32,1],[21,0,21,1],[10,0,10,1],[11,0,11,1],[12,0,12,1],[13,0,13,1],[14,0,14,1],[15,0,15,1],[16,0,16,1],[17,0,17,1],[18,0,18,1],[19,0,19,1],[20,0,20,1],[27,0,27,1],[28,0,28,1],[29,0,29,1],[30,0,30,1],[31,0,31,1],[22,0,22,1],[23,0,23,1],[24,0,24,1],[25,0,25,1],[26,0,26,1],[34,0,34,1],[35,0,35,1],[36,0,36,1],[39,3,39,17],[33,0,33,1],[42,21,42,24],[41,1,41,2],[41,3,41,4],[41,7,41,10],[41,11,41,14],[41,17,41,18],[41,21,41,24],[42,1,42,2],[42,3,42,4],[42,7,42,10],[42,11,42,14],[42,17,42,18],[43,21,43,24],[43,1,43,2],[43,3,43,4],[43,7,43,10],[43,11,43,14],[43,17,43,18]]}
[]
[null,"GRELHA DE OBSERVAÇÃO DE LEITURA - 3º Período"]
[]
[null,null,"CORREÇÃO",null,null,null,null,null,null,null,"INTENSIDADE",null,null,null,null,null,null,"RITMO",null,null,null,null,null,null,"EXPRESSIVIDADE",null,null,null,null,null,"ARTICULAÇÃO"]
[null,null,"Soletra","Troca Letras","Faz Omissões",null,null,"Correta",null,null,"Alta","Baixa",null,null,"Certa",null,null,"Rápido","Lento",null,null,"Adequado",null,null,"Monótoma",null,null,"Expressiva",null,null,"Não Articula","Pouco Clara",null,null,"Boa",null,null,null,null,"s"]
[null,"Total 1 - SIM",{"$f":"COUNTIF(C11:C37,\"s\")","v":2},2,1,null,null,1,null,null,1,1,null,null,2,null,null,1,1,null,null,{"$f":"COUNTIF(V11:V37,\"s\")","v":2},null,null,1,null,null,2,null,null,1,1,null,null,4,null,null,null,null,"n"]
[null,"Total 2 - Não",{"$f":"COUNTIF(C11:C37,\"n\")","v":0},0,1,"Total(n)","Total(s)",1,"Total(N)","Total(s)",0,0,"Total(n)","Total(n)",0,"Total(n)","Total(s)",0,0,"Total(n)","Total(n)",1,"Total(n)","Total(s)",0,"Total(n)","Total(n)",0,"Total(n)","Total(s)",0,0,"Total(n)","Total(n)",0,"Total(n)","Total(s)"]
[]
[null,null,"CORREÇÃO",null,null,null,null,null,null,null,"INTENSIDADE",null,null,null,null,null,null,"RITMO",null,null,null,null,null,null,"EXPRESSIVIDADE",null,null,null,null,null,"ARTICULAÇÃO",null,null,null,null,null,null,"AVALIAÇÃO DA LEITURA"]
[null,null,"Soletra","Troca Letras","Faz Omissões","n","s","Correta","N","S","Alta","Baixa","n","s","Certa","N","S","Rápido","Lento","n","s","Adequado","N","S","Monótoma","n","s","Expressiva","N","S","Não Articula","Pouco Clara","n","s","Boa","N","S","POSITIVOS  (s)","NEGATIVOS (s)","POSITIVOS ","NEGATIVOS ","Total (n)","Total (s)","Avaliação","Avaliação"]
[{"$f":"Lista_alunos!H16","v":"Is"},null,"s","s","s",{"$f":"COUNTIF(C11:E11,\"n\")","v":0},{"$f":"COUNTIF(C11:E11,\"s\")","v":3},null,{"$f":"COUNTIF(H11,\"n\")","v":0},{"$f":"COUNTIF(H11,\"s\")","v":0},null,null,{"$f":"COUNTIF(K11:L11,\"n\")","v":0},{"$f":"COUNTIF(K11:L11,\"s\")","v":0},"s",{"$f":"COUNTIF(O11,\"N\")","v":0},{"$f":"COUNTIF(O11,\"s\")","v":1},null,null,{"$f":"COUNTIF(R11:S11,\"n\")","v":0},{"$f":"COUNTIF(R11:S11,\"s\")","v":0},"s",{"$f":"COUNTIF(V11,\"n\")","v":0},{"$f":"COUNTIF(V11,\"s\")","v":1},null,{"$f":"COUNTIF(Y11,\"n\")","v":0},{"$f":"COUNTIF(Y11,\"s\")","v":0},"s",{"$f":"COUNTIF(AB11,\"n\")","v":0},{"$f":"COUNTIF(AB11,\"s\")","v":1},null,null,{"$f":"COUNTIF(AE11:AF11,\"n\")","v":0},{"$f":"COUNTIF(AE11:AF11,\"s\")","v":0},"s",{"$f":"COUNTIF(AI11,\"n\")","v":0},{"$f":"COUNTIF(AI11,\"s\")","v":1},{"$f":"SUM(G11,N11,U11,AA11,AH11)","v":3},{"$f":"SUM(F11,M11,T11,Z11,AG11)","v":0},{"$f":"SUM(J11,Q11,X11,AD11,AK11)","v":4},{"$f":"SUM(I11,P11,W11,AC11,AJ11)","v":0},{"$f":"SUM(AL11,AM11,AO11)","v":3},{"$f":"SUM(AN11)","v":4},{"$f":"IF(AQ11<2,\"Insuficiente\",IF(AQ11<=3,\"Suficiente\",IF(AQ11<=4,\"Bom\",IF(AQ11<=5,\"Muito Bom\"))))","v":"Bom"},{"$f":"IF(AP11<=0,\"sem erros\",IF(AP11<=2,\"PERTO POSITIVA\",IF(AP11<=4,\"ALGUNS ERROS\",IF(AP11<=6,\"MUITOS ERROS\",IF(AP11<=10,\"ELEVADOS ERROS\",IF(AP11<=12,\"ERRO TOTAL\"))))))","v":"ALGUNS ERROS"}]
[{"$f":"Lista_alunos!H17","v":"Ca"},null,"s","s","n",{"$f":"COUNTIF(C12:E12,\"n\")","v":1},{"$f":"COUNTIF(C12:E12,\"s\")","v":2},"n",{"$f":"COUNTIF(H12,\"n\")","v":1},{"$f":"COUNTIF(H12,\"s\")","v":0},"s","s",{"$f":"COUNTIF(K12:L12,\"n\")","v":0},{"$f":"COUNTIF(K12:L12,\"s\")","v":2},null,{"$f":"COUNTIF(O12,\"N\")","v":0},{"$f":"COUNTIF(O12,\"s\")","v":0},"s","s",{"$f":"COUNTIF(R12:S12,\"n\")","v":0},{"$f":"COUNTIF(R12:S12,\"s\")","v":2},"n",{"$f":"COUNTIF(V12,\"n\")","v":1},{"$f":"COUNTIF(V12,\"s\")","v":0},"s",{"$f":"COUNTIF(Y12,\"n\")","v":0},{"$f":"COUNTIF(Y12,\"s\")","v":1},null,{"$f":"COUNTIF(AB12,\"n\")","v":0},{"$f":"COUNTIF(AB12,\"s\")","v":0},"s","s",{"$f":"COUNTIF(AE12:AF12,\"n\")","v":0},{"$f":"COUNTIF(AE12:AF12,\"s\")","v":2},"s",{"$f":"COUNTIF(AI12,\"n\")","v":0},{"$f":"COUNTIF(AI12,\"s\")","v":1},{"$f":"SUM(G12,N12,U12,AA12,AH12)","v":9},{"$f":"SUM(F12,M12,T12,Z12,AG12)","v":1},{"$f":"SUM(J12,Q12,X12,AD12,AK12)","v":1},{"$f":"SUM(I12,P12,W12,AC12,AJ12)","v":2},{"$f":"SUM(AL12,AM12,AO12)","v":12},{"$f":"SUM(AN12)","v":1},{"$f":"IF(AQ12<2,\"Insuficiente\",IF(AQ12<=3,\"Suficiente\",IF(AQ12<=4,\"Bom\",IF(AQ12<=5,\"Muito Bom\"))))","v":"Insuficiente"},{"$f":"IF(AP12<=0,\"sem erros\",IF(AP12<=2,\"PERTO POSITIVA\",IF(AP12<=4,\"ALGUNS ERROS\",IF(AP12<=6,\"MUITOS ERROS\",IF(AP12<=10,\"ELEVADOS ERROS\",IF(AP12<=12,\"ERRO TOTAL\"))))))","v":"ERRO TOTAL"}]
[{"$f":"Lista_alunos!H18","v":"f"},null,null,null,null,0,0,"s",0,1,null,null,0,0,"s",0,1,null,null,0,0,"s",0,1,null,0,0,"s",0,1,null,null,0,0,"s",0,1,0,0,5,0,0,5,"Muito Bom","sem erros"]
[{"$f":"Lista_alunos!H19","v":"g"},null,null,null,null,0,0,null,0,0,null,null,0,0,null,0,0,null,null,0,0,null,0,0,null,0,0,null,0,0,null,null,0,0,"s",0,1,0,0,1,0,0,1,"Insuficiente","sem erros"]
[{"$f":"Lista_alunos!H20","v":"Fe"},null,null,null,null,0,0,null,0,0,null,null,0,0,null,0,0,null,null,0,0,null,0,0,null,0,0,null,0,0,null,null,0,0,null,0,0,0,0,0,0,0,0,"Insuficiente","sem erros"]
[{"$f":"Lista_alunos!H21","v":"F3"},null,null,null,null,0,0,null,0,0,null,null,0,0,null,0,0,null,null,0,0,null,0,0,null,0,0,null,0,0,null,null,0,0,null,0,0,0,0,0,0,0,0,"Insuficiente","sem erros"]
[{"$f":"Lista_alunos!H22","v":"Je"},null,null,null,null,0,0,null,0,0,null,null,0,0,null,0,0,null,null,0,0,null,0,0,null,0,0,null,0,0,null,null,0,0,null,0,0,0,0,0,0,0,0,"Insuficiente","sem erros"]
[{"$f":"Lista_alunos!H23","v":"M11"},null,null,null,null,0,0,null,0,0,null,null,0,0,null,0,0,null,null,0,0,null,0,0,null,0,0,null,0,0,null,null,0,0,null,0,0,0,0,0,0,0,0,"Insuficiente","sem erros"]
[{"$f":"Lista_alunos!H24","v":"M"},null,null,null,null,0,0,null,0,0,null,null,0,0,null,0,0,null,null,0,0,null,0,0,null,0,0,null,0,0,null,null,0,0,null,0,0,0,0,0,0,0,0,"Insuficiente","sem erros"]
[{"$f":"Lista_alunos!H25","v":"M123"},null,null,null,null,0,0,null,0,0,null,null,0,0,null,0,0,null,null,0,0,null,0,0,null,0,0,null,0,0,null,null,0,0,null,0,0,0,0,0,0,0,0,"Insuficiente","sem erros"]
[{"$f":"Lista_alunos!H26","v":"M124"},null,null,null,null,0,0,null,0,0,null,null,0,0,null,0,0,null,null,0,0,null,0,0,null,0,0,null,0,0,null,null,0,0,null,0,0,0,0,0,0,0,0,"Insuficiente","sem erros"]
[{"$f":"Lista_alunos!H27","v":"M125"},null,null,null,null,0,0,null,0,0,null,null,0,0,null,0,0,null,null,0,0,null,0,0,null,0,0,null,0,0,null,null,0,0,null,0,0,0,0,0,0,0,0,"Insuficiente","sem erros"]
[{"$f":"Lista_alunos!H28","v":"Rm124"},null,null,null,null,0,0,null,0,0,null,null,0,0,null,0,0,null,null,0,0,null,0,0,null,0,0,null,0,0,null,null,0,0,null,0,0,0,0,0,0,0,0,"Insuficiente","sem erros"]
[{"$f":"Lista_alunos!H29","v":"Ree"},null,null,null,null,0,0,null,0,0,null,null,0,0,null,0,0,null,null,0,0,null,0,0,null,0,0,null,0,0,null,null,0,0,null,0,0,0,0,0,0,0,0,"Insuficiente","sem erros"]
[{"$f":"Lista_alunos!H30","v":"Sm"},null,null,null,null,0,0,null,0,0,null,null,0,0,null,0,0,null,null,0,0,null,0,0,null,0,0,null,0,0,null,null,0,0,null,0,0,0,0,0,0,0,0,"Insuficiente","sem erros"]
[{"$f":"Lista_alunos!H31","v":0},null,null,null,null,0,0,null,0,0,null,null,0,0,null,0,0,null,null,0,0,null,0,0,null,0,0,null,0,0,null,null,0,0,null,0,0,0,0,0,0,0,0,"Insuficiente","sem erros"]
[{"$f":"Lista_alunos!H32","v":0},null,null,null,null,0,0,null,0,0,null,null,0,0,null,0,0,null,null,0,0,null,0,0,null,0,0,null,0,0,null,null,0,0,null,0,0,0,0,0,0,0,0,"Insuficiente","sem erros"]
[{"$f":"Lista_alunos!H33","v":0},null,null,null,null,0,0,null,0,0,null,null,0,0,null,0,0,null,null,0,0,null,0,0,null,0,0,null,0,0,null,null,0,0,null,0,0,0,0,0,0,0,0,"Insuficiente","sem erros"]
[{"$f":"Lista_alunos!H34","v":0},null,null,null,null,0,0,null,0,0,null,null,0,0,null,0,0,null,null,0,0,null,0,0,null,0,0,null,0,0,null,null,0,0,null,0,0,0,0,0,0,0,0,"Insuficiente","sem erros"]
[{"$f":"Lista_alunos!H35","v":0},null,null,null,null,0,0,null,0,0,null,null,0,0,null,0,0,null,null,0,0,null,0,0,null,0,0,null,0,0,null,null,0,0,null,0,0,0,0,0,0,0,0,"Insuficiente","sem erros"]
[{"$f":"Lista_alunos!H36","v":0},null,null,null,null,0,0,null,0,0,null,null,0,0,null,0,0,null,null,0,0,null,0,0,null,0,0,null,0,0,null,null,0,0,null,0,0,0,0,0,0,0,0,"Insuficiente","sem erros"]
[{"$f":"Lista_alunos!H37","v":0},null,null,null,null,0,0,null,0,0,null,null,0,0,null,0,0,null,null,0,0,null,0,0,null,0,0,null,0,0,null,null,0,0,null,0,0,0,0,0,0,0,0,"Insuficiente","sem erros"]
[{"$f":"Lista_alunos!H38","v":0},null,null,null,null,0,0,null,0,0,null,null,0,0,null,0,0,null,null,0,0,null,0,0,null,0,0,null,0,0,null,null,0,0,null,0,0,0,0,0,0,0,0,"Insuficiente","sem erros"]
[{"$f":"Lista_alunos!H39","v":0},null,null,null,null,0,0,null,0,0,null,null,0,0,null,0,0,null,null,0,0,null,0,0,null,0,0,null,0,0,null,null,0,0,null,0,0,0,0,0,0,0,0,"Insuficiente","sem erros"]
[{"$f":"Lista_alunos!H40","v":0},null,null,null,null,0,0,null,0,0,null,null,0,0,null,0,0,null,null,0,0,null,0,0,null,0,0,null,0,0,null,null,0,0,null,0,0,0,0,0,0,0,0,"Insuficiente","sem erros"]
[{"$f":"Lista_alunos!H41","v":0},null,null,null,null,0,0,null,0,0,null,null,0,0,null,0,0,null,null,0,0,null,0,0,null,0,0,null,0,0,null,null,0,0,null,0,0,0,0,0,0,0,0,"Insuficiente","sem erros"]
[{"$f":"Lista_alunos!H42","v":0},null,null,null,null,0,0,null,0,0,null,null,0,0,null,0,0,null,null,0,0,null,0,0,null,0,0,null,0,0,null,null,0,0,null,0,0,0,0,0,0,0,0,"Insuficiente","sem erros"]
[null,"TOTAL",null,null,null,{"$f":"SUM(F11:F37)","v":1},{"$f":"SUM(G11:G37)","v":5},null,{"$f":"SUM(I11:I37)","v":1},1,null,null,0,2,null,0,2,null,null,0,2,null,1,2,null,0,1,null,0,2,null,null,0,2,null,0,4,{"$f":"SUM(AL11:AL37)","v":12},{"$f":"SUM(AM11:AM37)","v":1},{"$f":"SUM(AN11:AN37)","v":11},{"$f":"SUM(AO11:AO37)","v":2},15,11]
[]
[null,null,null,"TOTAL DE AVALIAÇÃO DOS ALUNOS"]
[]
[null,"CORREÇÃO",null,"INTENSIDADE",null,null,null,"RÍTMO",null,null,null,"EXPRESSIVIDADE",null,null,null,null,null,"ARTICULAÇÃO",null,null,null,"TOTAL"]
["POSITIVO",{"$f":"H6","v":1},null,{"$f":"O6","v":2},null,null,null,{"$f":"V6","v":2},null,null,null,{"$f":"AB6","v":2},null,null,null,null,null,{"$f":"AI6","v":4},null,null,null,{"$f":"SUM(B43:R43)","v":11}]
["NEGATIVO",{"$f":"H7","v":1},null,{"$f":"O7","v":0},null,null,null,{"$f":"V7","v":1},null,null,null,{"$f":"AB7","v":0},null,null,null,null,null,{"$f":"AE7","v":0},null,null,null,{"$f":"SUM(B44:R44)","v":2}]

{"sheet":"Planilha3","index":7,"n_rows":276,"n_cols":6,"rows_kept":276,"cut":false,"hidden":false,"merged":[[273,5,273,12],[274,5,274,12],[275,5,275,12],[2,9,3,11],[265,5,265,12],[266,0,275,0],[266,1,275,4],[266,5,266,12],[267,5,267,12],[268,5,268,12],[269,5,269,12],[270,5,270,12],[271,5,271,12],[272,5,272,12],[259,5,259,12],[260,5,260,12],[261,5,261,12],[262,5,262,12],[263,5,263,12],[264,5,264,12],[251,5,251,12],[252,5,252,12],[253,5,253,12],[254,5,254,12],[255,5,255,12],[256,0,265,0],[256,1,265,4],[256,5,256,12],[257,5,257,12],[258,5,258,12],[243,5,243,12],[244,5,244,12],[245,5,245,12],[246,0,255,0],[246,1,255,4],[246,5,246,12],[247,5,247,12],[248,5,248,12],[249,5,249,12],[250,5,250,12],[235,5,235,12],[236,0,245,0],[236,1,245,4],[236,5,236,12],[237,5,237,12],[238,5,238,12],[239,5,239,12],[240,5,240,12],[241,5,241,12],[242,5,242,12],[226,0,235,0],[226,1,235,4],[231,5,231,12],[232,5,232,12],[233,5,233,12],[234,5,234,12],[229,5,229,12],[230,5,230,12],[221,5,221,12],[222,5,222,12],[223,5,223,12],[224,5,224,12],[225,5,225,12],[226,5,226,12],[227,5,227,12],[228,5,228,12],[216,0,225,0],[216,1,225,4],[216,5,216,12],[217,5,217,12],[218,5,218,12],[219,5,219,12],[220,5,220,12],[205,5,205,12],[206,0,215,0],[206,1,215,4],[206,5,206,12],[207,5,207,12],[208,5,208,12],[209,5,209,12],[210,5,210,12],[211,5,211,12],[212,5,212,12],[196,0,205,0],[196,1,205,4],[213,5,213,12],[214,5,214,12],[215,5,215,12],[201,5,201,12],[202,5,202,12],[203,5,203,12],[204,5,204,12],[199,5,199,12],[200,5,200,12],[191,5,191,12],[192,5,192,12],[193,5,193,12],[194,5,194,12],[195,5,195,12],[196,5,196,12],[197,5,197,12],[198,5,198,12],[186,0,195,0],[186,1,195,4],[186,5,186,12],[187,5,187,12],[188,5,188,12],[189,5,189,12],[190,5,190,12],[175,5,175,12],[176,0,185,0],[176,1,185,4],[176,5,176,12],[177,5,177,12],[178,5,178,12],[179,5,179,12],[180,5,180,12],[181,5,181,12],[182,5,182,12],[166,0,175,0],[166,1,175,4],[183,5,183,12],[184,5,184,12],[185,5,185,12],[171,5,171,12],[172,5,172,12],[173,5,173,12],[174,5,174,12],[169,5,169,12],[170,5,170,12],[161,5,161,12],[162,5,162,12],[163,5,163,12],[164,5,164,12],[165,5,165,12],[166,5,166,12],[167,5,167,12],[168,5,168,12],[156,0,165,0],[156,1,165,4],[156,5,156,12],[157,5,157,12],[158,5,158,12],[159,5,159,12],[160,5,160,12],[145,5,145,12],[146,0,155,0],[146,1,155,4],[146,5,146,12],[147,5,147,12],[148,5,148,12],[149,5,149,12],[150,5,150,12],[151,5,151,12],[152,5,152,12],[136,0,145,0],[136,1,145,4],[153,5,153,12],[154,5,154,12],[155,5,155,12],[141,5,141,12],[142,5,142,12],[143,5,143,12],[144,5,144,12],[139,5,139,12],[140,5,140,12],[131,5,131,12],[132,5,132,12],[133,5,133,12],[134,5,134,12],[135,5,135,12],[136,5,136,12],[137,5,137,12],[138,5,138,12],[126,0,135,0],[126,1,135,4],[126,5,126,12],[127,5,127,12],[128,5,128,12],[129,5,129,12],[130,5,130,12],[115,5,115,12],[116,0,125,0],[116,1,125,4],[116,5,116,12],[117,5,117,12],[118,5,118,12],[119,5,119,12],[120,5,120,12],[121,5,121,12],[122,5,122,12],[106,0,115,0],[106,1,115,4],[123,5,123,12],[124,5,124,12],[125,5,125,12],[111,5,111,12],[112,5,112,12],[113,5,113,12],[114,5,114,12],[109,5,109,12],[110,5,110,12],[101,5,101,12],[102,5,102,12],[103,5,103,12],[104,5,104,12],[105,5,105,12],[106,5,106,12],[107,5,107,12],[108,5,108,12],[96,0,105,0],[96,1,105,4],[96,5,96,12],[97,5,97,12],[98,5,98,12],[99,5,99,12],[100,5,100,12],[85,5,85,12],[86,0,95,0],[86,1,95,4],[86,5,86,12],[87,5,87,12],[88,5,88,12],[89,5,89,12],[90,5,90,12],[91,5,91,12],[92,5,92,12],[76,0,85,0],[76,1,85,4],[93,5,93,12],[94,5,94,12],[95,5,95,12],[81,5,81,12],[82,5,82,12],[83,5,83,12],[84,5,84,12],[79,5,79,12],[80,5,80,12],[71,5,71,12],[72,5,72,12],[73,5,73,12],[74,5,74,12],[75,5,75,12],[76,5,76,12],[77,5,77,12],[78,5,78,12],[66,0,75,0],[66,1,75,4],[66,5,66,12],[67,5,67,12],[68,5,68,12],[69,5,69,12],[70,5,70,12],[55,5,55,12],[56,0,65,0],[56,1,65,4],[56,5,56,12],[57,5,57,12],[58,5,58,12],[59,5,59,12],[60,5,60,12],[61,5,61,12],[62,5,62,12],[46,0,55,0],[46,1,55,4],[63,5,63,12],[64,5,64,12],[65,5,65,12],[51,5,51,12],[52,5,52,12],[53,5,53,12],[54,5,54,12],[49,5,49,12],[50,5,50,12],[47,5,47,12],[48,5,48,12],[46,5,46,12],[36,0,45,0],[36,1,45,4],[36,5,36,12],[37,5,37,12],[38,5,38,12],[39,5,39,12],[40,5,40,12],[22,5,22,12],[23,5,23,12],[24,5,24,12],[41,5,41,12],[42,5,42,12],[43,5,43,12],[44,5,44,12],[45,5,45,12],[16,5,16,12],[17,5,17,12],[18,5,18,12],[1,2,2,8],[5,1,5,4],[5,5,5,12],[25,5,25,12],[26,0,35,0],[26,1,35,4],[26,5,26,12],[27,5,27,12],[28,5,28,12],[29,5,29,12],[30,5,30,12],[31,5,31,12],[32,5,32,12],[16,0,25,0],[16,1,25,4],[33,5,33,12],[34,5,34,12],[35,5,35,12],[19,5,19,12],[20,5,20,12],[21,5,21,12],[6,0,15,0],[6,1,15,4],[6,5,6,12],[7,5,7,12],[8,5,8,12],[9,5,9,12],[10,5,10,12],[11,5,11,12],[12,5,12,12],[13,5,13,12],[14,5,14,12],[15,5,15,12]]}
[]
[null,null,"RESUMOS DOS RESULTADOS POR ALUNO DO 3º PERÍODO"]
[]
[]
[]
[null,"NOME DO ALUNO",null,null,null,"RELATÓRIO DE AVALIAÇÃO DA LEITURA"]
[1,{"$f":"Lista_alunos!H16","v":"Is"},null,null,null,{"$f":"IF('3ºPeríodo'!G11>=1,\"A leitura é insuficiente: soletra,troca letras, faz omissões.\",)","v":"A leitura é insuficiente: soletra,troca letras, faz omissões."}]
[null,null,null,null,null,{"$f":"IF('3ºPeríodo'!J11>=1,\"Lê com muita correção.\",)","v":0}]
[null,null,null,null,null,{"$f":"IF('3ºPeríodo'!N11>=1,\"Apresenta  erros de leitura na intensidade\",)","v":0}]
[null,null,null,null,null,{"$f":"IF('3ºPeríodo'!X11>=1,\"Lê com ritmo adequado.\",)","v":"Lê com ritmo adequado."}]
[null,null,null,null,null,{"$f":"IF('3ºPeríodo'!AD11>=1,\"Lê com expressividade os textos.\",)","v":"Lê com expressividade os textos."}]
[null,null,null,null,null,{"$f":"IF('3ºPeríodo'!AA11>=1,\"Lê sem expressividade.\",)","v":0}]
[null,null,null,null,null,{"$f":"IF('3ºPeríodo'!AH11>=1,\"Não articula e é pouco clara.\",)","v":0}]
[null,null,null,null,null,{"$f":"IF('3ºPeríodo'!AK11>=1,\"Lê com boa articulação os textos.\",)","v":"Lê com boa articulação os textos."}]
[null,null,null,null,null,{"$f":"IF('3ºPeríodo'!U11>=1,\"Não lê com ritmo adequado.\",)","v":0}]
[null,null,null,null,null,{"$f":"IF('3ºPeríodo'!Q11>=1,\"Realiza uma leitura com boa intensidade.\",)","v":"Realiza uma leitura com boa intensidade."}]
[2,{"$f":"Lista_alunos!H17","v":"Ca"},null,null,null,{"$f":"IF('3ºPeríodo'!G12>=1,\"A leitura é insuficiente: soletra,troca letras, faz omissões.\",)","v":"A leitura é insuficiente: soletra,troca letras, faz omissões."}]
[null,null,null,null,null,{"$f":"IF('3ºPeríodo'!J12>=1,\"Lê com muita correção.\",)","v":0}]
[null,null,null,null,null,{"$f":"IF('3ºPeríodo'!N12>=1,\"Apresenta  erros de leitura na intensidade\",)","v":"Apresenta  erros de leitura na intensidade"}]
[null,null,null,null,null,{"$f":"IF('3ºPeríodo'!X12>=1,\"Lê com ritmo adequado.\",)","v":0}]
[null,null,null,null,null,{"$f":"IF('3ºPeríodo'!AD12>=1,\"Lê com expressividade os textos.\",)","v":0}]
[null,null,null,null,null,{"$f":"IF('3ºPeríodo'!AA12>=1,\"Lê sem expressividade.\",)","v":"Lê sem expressividade."}]
[null,null,null,null,null,{"$f":"IF('3ºPeríodo'!AH12>=1,\"Não articula e é pouco clara.\",)","v":"Não articula e é pouco clara."}]
[null,null,null,null,null,{"$f":"IF('3ºPeríodo'!AK12>=1,\"Lê com boa articulação os textos.\",)","v":"Lê com boa articulação os textos."}]
[null,null,null,null,null,{"$f":"IF('3ºPeríodo'!U12>=1,\"Não lê com ritmo adequado.\",)","v":"Não lê com ritmo adequado."}]
[null,null,null,null,null,{"$f":"IF('3ºPeríodo'!Q12>=1,\"Realiza uma leitura com boa intensidade.\",)","v":0}]
[3,{"$f":"Lista_alunos!H18","v":"f"},null,null,null,{"$f":"IF('3ºPeríodo'!G13>=1,\"A leitura é insuficiente: soletra,troca letras, faz omissões\",)","v":0}]
[null,null,null,null,null,{"$f":"IF('3ºPeríodo'!J13>=1,\"Lê com muita correção.\",)","v":"Lê com muita correção."}]
[null,null,null,null,null,{"$f":"IF('3ºPeríodo'!N13>=1,\"Apresenta  erros de leitura na intensidade\",)","v":0}]
[null,null,null,null,null,{"$f":"IF('3ºPeríodo'!X13>=1,\"Lê com ritmo adequado.\",)","v":"Lê com ritmo adequado."}]
[null,null,null,null,null,{"$f":"IF('3ºPeríodo'!AD13>=1,\"Lê com expressividade os textos.\",)","v":"Lê com expressividade os textos."}]
[null,null,null,null,null,{"$f":"IF('3ºPeríodo'!AA13>=1,\"Lê sem expressividade.\",)","v":0}]
[null,null,null,null,null,{"$f":"IF('3ºPeríodo'!AH13>=1,\"Não articula e é pouco clara.\",)","v":0}]
[null,null,null,null,null,{"$f":"IF('3ºPeríodo'!AK13>=1,\"Lê com boa articulação os textos.\",)","v":"Lê com boa articulação os textos."}]
[null,null,null,null,null,{"$f":"IF('3ºPeríodo'!U13>=1,\"Não lê com ritmo adequado.\",)","v":0}]
[null,null,null,null,null,{"$f":"IF('3ºPeríodo'!Q13>=1,\"Realiza uma leitura com boa intensidade.\",)","v":"Realiza uma leitura com boa intensidade."}]
[4,{"$f":"Lista_alunos!H19","v":"g"},null,null,null,{"$f":"IF('3ºPeríodo'!G14>=1,\"A leitura é insuficiente: soletra,troca letras, faz omissões\",)","v":0}]
[null,null,null,null,null,{"$f":"IF('3ºPeríodo'!J14>=1,\"Lê com muita correção.\",)","v":0}]
[null,null,null,null,null,{"$f":"IF('3ºPeríodo'!N14>=1,\"Apresenta  erros de leitura na intensidade\",)","v":0}]
[null,null,null,null,null,{"$f":"IF('3ºPeríodo'!X14>=1,\"Lê com ritmo adequado.\",)","v":0}]
[null,null,null,null,null,{"$f":"IF('3ºPeríodo'!AD14>=1,\"Lê com expressividade os textos.\",)","v":0}]
[null,null,null,null,null,{"$f":"IF('3ºPeríodo'!AA14>=1,\"Lê sem expressividade.\",)","v":0}]
[null,null,null,null,null,{"$f":"IF('3ºPeríodo'!AH14>=1,\"Não articula e é pouco clara.\",)","v":0}]
[null,null,null,null,null,{"$f":"IF('2ºPeríodo'!AK14>=1,\"Lê com boa articulação os textos.\",)","v":"Lê com boa articulação os textos."}]
[null,null,null,null,null,{"$f":"IF('3ºPeríodo'!U14>=1,\"Não lê com ritmo adequado.\",)","v":0}]
[null,null,null,null,null,{"$f":"IF('3ºPeríodo'!Q14>=1,\"Realiza uma leitura com boa intensidade.\",)","v":0}]
[5,{"$f":"Lista_alunos!H20","v":"Fe"},null,null,null,{"$f":"IF('3ºPeríodo'!G15>=1,\"A leitura é insuficiente: soletra,troca letras, faz omissões\",)","v":0}]
[null,null,null,null,null,{"$f":"IF('3ºPeríodo'!J15>=1,\"Lê com muita correção.\",)","v":0}]
[null,null,null,null,null,{"$f":"IF('3ºPeríodo'!N15>=1,\"Apresenta  erros de leitura na intensidade\",)","v":0}]
[null,null,null,null,null,{"$f":"IF('3ºPeríodo'!X15>=1,\"Lê com ritmo adequado.\",)","v":0}]
[null,null,null,null,null,{"$f":"IF('3ºPeríodo'!AD15>=1,\"Lê com expressividade os textos.\",)","v":0}]
[null,null,null,null,null,{"$f":"IF('3ºPeríodo'!AA15>=1,\"Lê sem expressividade.\",)","v":0}]
[null,null,null,null,null,{"$f":"IF('3ºPeríodo'!AH15>=1,\"Não articula e é pouco clara.\",)","v":0}]
[null,null,null,null,null,{"$f":"IF('3ºPeríodo'!AK15>=1,\"Lê com boa articulação os textos.\",)","v":0}]
[null,null,null,null,null,{"$f":"IF('3ºPeríodo'!U15>=1,\"Não lê com ritmo adequado.\",)","v":0}]
[null,null,null,null,null,{"$f":"IF('3ºPeríodo'!Q15>=1,\"Realiza uma leitura com boa intensidade.\",)","v":0}]
[6,{"$f":"Lista_alunos!H21","v":"F3"},null,null,null,{"$f":"IF('3ºPeríodo'!G16>=1,\"A leitura é insuficiente: soletra,troca letras, faz omissões\",)","v":0}]
[null,null,null,null,null,{"$f":"IF('3ºPeríodo'!J16>=1,\"Lê com muita correção.\",)","v":0}]
[null,null,null,null,null,{"$f":"IF('3ºPeríodo'!N16>=1,\"Apresenta  erros de leitura na intensidade\",)","v":0}]
[null,null,null,null,null,{"$f":"IF('3ºPeríodo'!X16>=1,\"Lê com ritmo adequado.\",)","v":0}]
[null,null,null,null,null,{"$f":"IF('3ºPeríodo'!AD16>=1,\"Lê com expressividade os textos.\",)","v":0}]
[null,null,null,null,null,{"$f":"IF('3ºPeríodo'!AA16>=1,\"Lê sem expressividade.\",)","v":0}]
[null,null,null,null,null,{"$f":"IF('3ºPeríodo'!AH16>=1,\"Não articula e é pouco clara.\",)","v":0}]
[null,null,null,null,null,{"$f":"IF('3ºPeríodo'!AK16>=1,\"Lê com boa articulação os textos.\",)","v":0}]
[null,null,null,null,null,{"$f":"IF('3ºPeríodo'!U16>=1,\"Não lê com ritmo adequado.\",)","v":0}]
[null,null,null,null,null,{"$f":"IF('3ºPeríodo'!Q16>=1,\"Realiza uma leitura com boa intensidade.\",)","v":0}]
[7,{"$f":"Lista_alunos!H22","v":"Je"},null,null,null,{"$f":"IF('3ºPeríodo'!G17>=1,\"A leitura é insuficiente: soletra,troca letras, faz omissões\",)","v":0}]
[null,null,null,null,null,{"$f":"IF('3ºPeríodo'!J17>=1,\"Lê com muita correção.\",)","v":0}]
[null,null,null,null,null,{"$f":"IF('3ºPeríodo'!N17>=1,\"Apresenta  erros de leitura na intensidade\",)","v":0}]
[null,null,null,null,null,{"$f":"IF('3ºPeríodo'!X17>=1,\"Lê com ritmo adequado.\",)","v":0}]
[null,null,null,null,null,{"$f":"IF('3ºPeríodo'!AD17>=1,\"Lê com expressividade os textos.\",)","v":0}]
[null,null,null,null,null,{"$f":"IF('3ºPeríodo'!AA17>=1,\"Lê sem expressividade.\",)","v":0}]
[null,null,null,null,null,{"$f":"IF('3ºPeríodo'!AH17>=1,\"Não articula e é pouco clara.\",)","v":0}]
[null,null,null,null,null,{"$f":"IF('3ºPeríodo'!AK17>=1,\"Lê com boa articulação os textos.\",)","v":0}]
[null,null,null,null,null,{"$f":"IF('3ºPeríodo'!U17>=1,\"Não lê com ritmo adequado.\",)","v":0}]
[null,null,null,null,null,{"$f":"IF('3ºPeríodo'!Q17>=1,\"Realiza uma leitura com boa intensidade.\",)","v":0}]
[8,{"$f":"Lista_alunos!H23","v":"M11"},null,null,null,{"$f":"IF('3ºPeríodo'!G18>=1,\"A leitura é insuficiente: soletra,troca letras, faz omissões\",)","v":0}]
[null,null,null,null,null,{"$f":"IF('3ºPeríodo'!J18>=1,\"Lê com muita correção.\",)","v":0}]
[null,null,null,null,null,{"$f":"IF('3ºPeríodo'!N18>=1,\"Apresenta  erros de leitura na intensidade\",)","v":0}]
[null,null,null,null,null,{"$f":"IF('3ºPeríodo'!X18>=1,\"Lê com ritmo adequado.\",)","v":0}]
[null,null,null,null,null,{"$f":"IF('3ºPeríodo'!AD18>=1,\"Lê com expressividade os textos.\",)","v":0}]
[null,null,null,null,null,{"$f":"IF('3ºPeríodo'!AA18>=1,\"Lê sem expressividade.\",)","v":0}]
[null,null,null,null,null,{"$f":"IF('3ºPeríodo'!AH18>=1,\"Não articula e é pouco clara.\",)","v":0}]
[null,null,null,null,null,{"$f":"IF('3ºPeríodo'!AK18>=1,\"Lê com boa articulação os textos.\",)","v":0}]
[null,null,null,null,null,{"$f":"IF('3ºPeríodo'!U18>=1,\"Não lê com ritmo adequado.\",)","v":0}]
[null,null,null,null,null,{"$f":"IF('3ºPeríodo'!Q18>=1,\"Realiza uma leitura com boa intensidade.\",)","v":0}]
[9,{"$f":"Lista_alunos!H24","v":"M"},null,null,null,{"$f":"IF('3ºPeríodo'!G19>=1,\"A leitura é insuficiente: soletra,troca letras, faz omissões\",)","v":0}]
[null,null,null,null,null,{"$f":"IF('3ºPeríodo'!J19>=1,\"Lê com muita correção.\",)","v":0}]
[null,null,null,null,null,{"$f":"IF('3ºPeríodo'!N19>=1,\"Apresenta  erros de leitura na intensidade\",)","v":0}]
[null,null,null,null,null,{"$f":"IF('3ºPeríodo'!X19>=1,\"Lê com ritmo adequado.\",)","v":0}]
[null,null,null,null,null,{"$f":"IF('3ºPeríodo'!AD19>=1,\"Lê com expressividade os textos.\",)","v":0}]
[null,null,null,null,null,{"$f":"IF('3ºPeríodo'!AA19>=1,\"Lê sem expressividade.\",)","v":0}]
[null,null,null,null,null,{"$f":"IF('3ºPeríodo'!AH19>=1,\"Não articula e é pouco clara.\",)","v":0}]
[null,null,null,null,null,{"$f":"IF('3ºPeríodo'!AK19>=1,\"Lê com boa articulação os textos.\",)","v":0}]
[null,null,null,null,null,{"$f":"IF('3ºPeríodo'!U19>=1,\"Não lê com ritmo adequado.\",)","v":0}]
[null,null,null,null,null,{"$f":"IF('3ºPeríodo'!Q19>=1,\"Realiza uma leitura com boa intensidade.\",)","v":0}]
[10,{"$f":"Lista_alunos!H25","v":"M123"},null,null,null,{"$f":"IF('3ºPeríodo'!G20>=1,\"A leitura é insuficiente: soletra,troca letras, faz omissões\",)","v":0}]
[null,null,null,null,null,{"$f":"IF('3ºPeríodo'!J20>=1,\"Lê com muita correção.\",)","v":0}]
[null,null,null,null,null,{"$f":"IF('3ºPeríodo'!N20>=1,\"Apresenta  erros de leitura na intensidade\",)","v":0}]
[null,null,null,null,null,{"$f":"IF('3ºPeríodo'!X20>=1,\"Lê com ritmo adequado.\",)","v":0}]
[null,null,null,null,null,{"$f":"IF('3ºPeríodo'!AD20>=1,\"Lê com expressividade os textos.\",)","v":0}]
[null,null,null,null,null,{"$f":"IF('3ºPeríodo'!AA20>=1,\"Lê sem expressividade.\",)","v":0}]
[null,null,null,null,null,{"$f":"IF('3ºPeríodo'!AH20>=1,\"Não articula e é pouco clara.\",)","v":0}]
[null,null,null,null,null,{"$f":"IF('3ºPeríodo'!AK20>=1,\"Lê com boa articulação os textos.\",)","v":0}]
[null,null,null,null,null,{"$f":"IF('3ºPeríodo'!U20>=1,\"Não lê com ritmo adequado.\",)","v":0}]
[null,null,null,null,null,{"$f":"IF('3ºPeríodo'!Q20>=1,\"Realiza uma leitura com boa intensidade.\",)","v":0}]
[11,{"$f":"Lista_alunos!H26","v":"M124"},null,null,null,{"$f":"IF('3ºPeríodo'!G21>=1,\"A leitura é insuficiente: soletra,troca letras, faz omissões\",)","v":0}]
[null,null,null,null,null,{"$f":"IF('3ºPeríodo'!J21>=1,\"Lê com muita correção.\",)","v":0}]
[null,null,null,null,null,{"$f":"IF('3ºPeríodo'!N21>=1,\"Apresenta  erros de leitura na intensidade\",)","v":0}]
[null,null,null,null,null,{"$f":"IF('3ºPeríodo'!X21>=1,\"Lê com ritmo adequado.\",)","v":0}]
[null,null,null,null,null,{"$f":"IF('3ºPeríodo'!AD21>=1,\"Lê com expressividade os textos.\",)","v":0}]
[null,null,null,null,null,{"$f":"IF('3ºPeríodo'!AA21>=1,\"Lê sem expressividade.\",)","v":0}]
[null,null,null,null,null,{"$f":"IF('3ºPeríodo'!AH21>=1,\"Não articula e é pouco clara.\",)","v":0}]
[null,null,null,null,null,{"$f":"IF('3ºPeríodo'!AK21>=1,\"Lê com boa articulação os textos.\",)","v":0}]
[null,null,null,null,null,{"$f":"IF('3ºPeríodo'!U21>=1,\"Não lê com ritmo adequado.\",)","v":0}]
[null,null,null,null,null,{"$f":"IF('3ºPeríodo'!Q21>=1,\"Realiza uma leitura com boa intensidade.\",)","v":0}]
[12,{"$f":"Lista_alunos!H27","v":"M125"},null,null,null,{"$f":"IF('3ºPeríodo'!G22>=1,\"A leitura é insuficiente: soletra,troca letras, faz omissões\",)","v":0}]
[null,null,null,null,null,{"$f":"IF('3ºPeríodo'!J22>=1,\"Lê com muita correção.\",)","v":0}]
[null,null,null,null,null,{"$f":"IF('3ºPeríodo'!N22>=1,\"Apresenta  erros de leitura na intensidade\",)","v":0}]
[null,null,null,null,null,{"$f":"IF('3ºPeríodo'!X22>=1,\"Lê com ritmo adequado.\",)","v":0}]
[null,null,null,null,null,{"$f":"IF('3ºPeríodo'!AD22>=1,\"Lê com expressividade os textos.\",)","v":0}]
[null,null,null,null,null,{"$f":"IF('3ºPeríodo'!AA22>=1,\"Lê sem expressividade.\",)","v":0}]
[null,null,null,null,null,{"$f":"IF('3ºPeríodo'!AH22>=1,\"Não articula e é pouco clara.\",)","v":0}]
[null,null,null,null,null,{"$f":"IF('3ºPeríodo'!AK22>=1,\"Lê com boa articulação os textos.\",)","v":0}]
[null,null,null,null,null,{"$f":"IF('3ºPeríodo'!U22>=1,\"Não lê com ritmo adequado.\",)","v":0}]
[null,null,null,null,null,{"$f":"IF('3ºPeríodo'!Q22>=1,\"Realiza uma leitura com boa intensidade.\",)","v":0}]
[13,{"$f":"Lista_alunos!H28","v":"Rm124"},null,null,null,{"$f":"IF('3ºPeríodo'!G23>=1,\"A leitura é insuficiente: soletra,troca letras, faz omissões\",)","v":0}]
[null,null,null,null,null,{"$f":"IF('3ºPeríodo'!J23>=1,\"Lê com muita correção.\",)","v":0}]
[null,null,null,null,null,{"$f":"IF('3ºPeríodo'!N23>=1,\"Apresenta  erros de leitura na intensidade\",)","v":0}]
[null,null,null,null,null,{"$f":"IF('3ºPeríodo'!X23>=1,\"Lê com ritmo adequado.\",)","v":0}]
[null,null,null,null,null,{"$f":"IF('3ºPeríodo'!AD23>=1,\"Lê com expressividade os textos.\",)","v":0}]
[null,null,null,null,null,{"$f":"IF('3ºPeríodo'!AA23>=1,\"Lê sem expressividade.\",)","v":0}]
[null,null,null,null,null,{"$f":"IF('3ºPeríodo'!AH23>=1,\"Não articula e é pouco clara.\",)","v":0}]
[null,null,null,null,null,{"$f":"IF('3ºPeríodo'!AK23>=1,\"Lê com boa articulação os textos.\",)","v":0}]
[null,null,null,null,null,{"$f":"IF('3ºPeríodo'!U23>=1,\"Não lê com ritmo adequado.\",)","v":0}]
[null,null,null,null,null,{"$f":"IF('3ºPeríodo'!Q23>=1,\"Realiza uma leitura com boa intensidade.\",)","v":0}]
[14,{"$f":"Lista_alunos!H29","v":"Ree"},null,null,null,{"$f":"IF('3ºPeríodo'!G24>=1,\"A leitura é insuficiente: soletra,troca letras, faz omissões\",)","v":0}]
[null,null,null,null,null,{"$f":"IF('3ºPeríodo'!J24>=1,\"Lê com muita correção.\",)","v":0}]
[null,null,null,null,null,{"$f":"IF('3ºPeríodo'!N24>=1,\"Apresenta  erros de leitura na intensidade\",)","v":0}]
[null,null,null,null,null,{"$f":"IF('3ºPeríodo'!X24>=1,\"Lê com ritmo adequado.\",)","v":0}]
[null,null,null,null,null,{"$f":"IF('3ºPeríodo'!AD24>=1,\"Lê com expressividade os textos.\",)","v":0}]
[null,null,null,null,null,{"$f":"IF('3ºPeríodo'!AA24>=1,\"Lê sem expressividade.\",)","v":0}]
[null,null,null,null,null,{"$f":"IF('3ºPeríodo'!AH24>=1,\"Não articula e é pouco clara.\",)","v":0}]
[null,null,null,null,null,{"$f":"IF('3ºPeríodo'!AK24>=1,\"Lê com boa articulação os textos.\",)","v":0}]
[null,null,null,null,null,{"$f":"IF('3ºPeríodo'!U24>=1,\"Não lê com ritmo adequado.\",)","v":0}]
[null,null,null,null,null,{"$f":"IF('3ºPeríodo'!Q24>=1,\"Realiza uma leitura com boa intensidade.\",)","v":0}]
[15,{"$f":"Lista_alunos!H30","v":"Sm"},null,null,null,{"$f":"IF('3ºPeríodo'!G25>=1,\"A leitura é insuficiente: soletra,troca letras, faz omissões\",)","v":0}]
[null,null,null,null,null,{"$f":"IF('3ºPeríodo'!J25>=1,\"Lê com muita correção.\",)","v":0}]
[null,null,null,null,null,{"$f":"IF('3ºPeríodo'!N25>=1,\"Apresenta  erros de leitura na intensidade\",)","v":0}]
[null,null,null,null,null,{"$f":"IF('3ºPeríodo'!X25>=1,\"Lê com ritmo adequado.\",)","v":0}]
[null,null,null,null,null,{"$f":"IF('3ºPeríodo'!AD25>=1,\"Lê com expressividade os textos.\",)","v":0}]
[null,null,null,null,null,{"$f":"IF('3ºPeríodo'!AA25>=1,\"Lê sem expressividade.\",)","v":0}]
[null,null,null,null,null,{"$f":"IF('3ºPeríodo'!AH25>=1,\"Não articula e é pouco clara.\",)","v":0}]
[null,null,null,null,null,{"$f":"IF('3ºPeríodo'!AK25>=1,\"Lê com boa articulação os textos.\",)","v":0}]
[null,null,null,null,null,{"$f":"IF('3ºPeríodo'!U25>=1,\"Não lê com ritmo adequado.\",)","v":0}]
[null,null,null,null,null,{"$f":"IF('3ºPeríodo'!Q25>=1,\"Realiza uma leitura com boa intensidade.\",)","v":0}]
[16,{"$f":"Lista_alunos!H31","v":0},null,null,null,{"$f":"IF('3ºPeríodo'!G26>=1,\"A leitura é insuficiente: soletra,troca letras, faz omissões\",)","v":0}]
[null,null,null,null,null,{"$f":"IF('3ºPeríodo'!J26>=1,\"Lê com muita correção.\",)","v":0}]
[null,null,null,null,null,{"$f":"IF('3ºPeríodo'!N26>=1,\"Apresenta  erros de leitura na intensidade\",)","v":0}]
[null,null,null,null,null,{"$f":"IF('3ºPeríodo'!X26>=1,\"Lê com ritmo adequado.\",)","v":0}]
[null,null,null,null,null,{"$f":"IF('3ºPeríodo'!AD26>=1,\"Lê com expressividade os textos.\",)","v":0}]
[null,null,null,null,null,{"$f":"IF('3ºPeríodo'!AA26>=1,\"Lê sem expressividade.\",)","v":0}]
[null,null,null,null,null,{"$f":"IF('3ºPeríodo'!AH26>=1,\"Não articula e é pouco clara.\",)","v":0}]
[null,null,null,null,null,{"$f":"IF('3ºPeríodo'!AK26>=1,\"Lê com boa articulação os textos.\",)","v":0}]
[null,null,null,null,null,{"$f":"IF('3ºPeríodo'!U26>=1,\"Não lê com ritmo adequado.\",)","v":0}]
[null,null,null,null,null,{"$f":"IF('3ºPeríodo'!Q26>=1,\"Realiza uma leitura com boa intensidade.\",)","v":0}]
[17,{"$f":"Lista_alunos!H32","v":0},null,null,null,{"$f":"IF('3ºPeríodo'!G27>=1,\"A leitura é insuficiente: soletra,troca letras, faz omissões\",)","v":0}]
[null,null,null,null,null,{"$f":"IF('3ºPeríodo'!J27>=1,\"Lê com muita correção.\",)","v":0}]
[null,null,null,null,null,{"$f":"IF('3ºPeríodo'!N27>=1,\"Apresenta  erros de leitura na intensidade\",)","v":0}]
[null,null,null,null,null,{"$f":"IF('3ºPeríodo'!X27>=1,\"Lê com ritmo adequado.\",)","v":0}]
[null,null,null,null,null,{"$f":"IF('3ºPeríodo'!AD27>=1,\"Lê com expressividade os textos.\",)","v":0}]
[null,null,null,null,null,{"$f":"IF('3ºPeríodo'!AA27>=1,\"Lê sem expressividade.\",)","v":0}]
[null,null,null,null,null,{"$f":"IF('3ºPeríodo'!AH27>=1,\"Não articula e é pouco clara.\",)","v":0}]
[null,null,null,null,null,{"$f":"IF('3ºPeríodo'!AK27>=1,\"Lê com boa articulação os textos.\",)","v":0}]
[null,null,null,null,null,{"$f":"IF('3ºPeríodo'!U27>=1,\"Não lê com ritmo adequado.\",)","v":0}]
[null,null,null,null,null,{"$f":"IF('3ºPeríodo'!Q27>=1,\"Realiza uma leitura com boa intensidade.\",)","v":0}]
[18,{"$f":"Lista_alunos!H33","v":0},null,null,null,{"$f":"IF('3ºPeríodo'!G28>=1,\"A leitura é insuficiente: soletra,troca letras, faz omissões\",)","v":0}]
[null,null,null,null,null,{"$f":"IF('3ºPeríodo'!J28>=1,\"Lê com muita correção.\",)","v":0}]
[null,null,null,null,null,{"$f":"IF('3ºPeríodo'!N28>=1,\"Apresenta  erros de leitura na intensidade\",)","v":0}]
[null,null,null,null,null,{"$f":"IF('3ºPeríodo'!X28>=1,\"Lê com ritmo adequado.\",)","v":0}]
[null,null,null,null,null,{"$f":"IF('3ºPeríodo'!AD28>=1,\"Lê com expressividade os textos.\",)","v":0}]
[null,null,null,null,null,{"$f":"IF('3ºPeríodo'!AA28>=1,\"Lê sem expressividade.\",)","v":0}]
[null,null,null,null,null,{"$f":"IF('3ºPeríodo'!AH28>=1,\"Não articula e é pouco clara.\",)","v":0}]
[null,null,null,null,null,{"$f":"IF('3ºPeríodo'!AK28>=1,\"Lê com boa articulação os textos.\",)","v":0}]
[null,null,null,null,null,{"$f":"IF('3ºPeríodo'!U28>=1,\"Não lê com ritmo adequado.\",)","v":0}]
[null,null,null,null,null,{"$f":"IF('3ºPeríodo'!Q28>=1,\"Realiza uma leitura com boa intensidade.\",)","v":0}]
[19,{"$f":"Lista_alunos!H34","v":0},null,null,null,{"$f":"IF('3ºPeríodo'!G29>=1,\"A leitura é insuficiente: soletra,troca letras, faz omissões\",)","v":0}]
[null,null,null,null,null,{"$f":"IF('3ºPeríodo'!J29>=1,\"Lê com muita correção.\",)","v":0}]
[null,null,null,null,null,{"$f":"IF('3ºPeríodo'!N29>=1,\"Apresenta  erros de leitura na intensidade\",)","v":0}]
[null,null,null,null,null,{"$f":"IF('3ºPeríodo'!X29>=1,\"Lê com ritmo adequado.\",)","v":0}]
[null,null,null,null,null,{"$f":"IF('3ºPeríodo'!AD29>=1,\"Lê com expressividade os textos.\",)","v":0}]
[null,null,null,null,null,{"$f":"IF('3ºPeríodo'!AA29>=1,\"Lê sem expressividade.\",)","v":0}]
[null,null,null,null,null,{"$f":"IF('3ºPeríodo'!AH29>=1,\"Não articula e é pouco clara.\",)","v":0}]
[null,null,null,null,null,{"$f":"IF('3ºPeríodo'!AK29>=1,\"Lê com boa articulação os textos.\",)","v":0}]
[null,null,null,null,null,{"$f":"IF('3ºPeríodo'!U29>=1,\"Não lê com ritmo adequado.\",)","v":0}]
[null,null,null,null,null,{"$f":"IF('3ºPeríodo'!Q29>=1,\"Realiza uma leitura com boa intensidade.\",)","v":0}]
[20,{"$f":"Lista_alunos!H35","v":0},null,null,null,{"$f":"IF('3ºPeríodo'!G30>=1,\"A leitura é insuficiente: soletra,troca letras, faz omissões\",)","v":0}]
[null,null,null,null,null,{"$f":"IF('3ºPeríodo'!J30>=1,\"Lê com muita correção.\",)","v":0}]
[null,null,null,null,null,{"$f":"IF('3ºPeríodo'!N30>=1,\"Apresenta  erros de leitura na intensidade\",)","v":0}]
[null,null,null,null,null,{"$f":"IF('3ºPeríodo'!X30>=1,\"Lê com ritmo adequado.\",)","v":0}]
[null,null,null,null,null,{"$f":"IF('3ºPeríodo'!AD30>=1,\"Lê com expressividade os textos.\",)","v":0}]
[null,null,null,null,null,{"$f":"IF('3ºPeríodo'!AA30>=1,\"Lê sem expressividade.\",)","v":0}]
[null,null,null,null,null,{"$f":"IF('3ºPeríodo'!AH30>=1,\"Não articula e é pouco clara.\",)","v":0}]
[null,null,null,null,null,{"$f":"IF('3ºPeríodo'!AK30>=1,\"Lê com boa articulação os textos.\",)","v":0}]
[null,null,null,null,null,{"$f":"IF('3ºPeríodo'!U30>=1,\"Não lê com ritmo adequado.\",)","v":0}]
[null,null,null,null,null,{"$f":"IF('3ºPeríodo'!Q30>=1,\"Realiza uma leitura com boa intensidade.\",)","v":0}]
[21,{"$f":"Lista_alunos!H36","v":0},null,null,null,{"$f":"IF('3ºPeríodo'!G31>=1,\"A leitura é insuficiente: soletra,troca letras, faz omissões\",)","v":0}]
[null,null,null,null,null,{"$f":"IF('3ºPeríodo'!J31>=1,\"Lê com muita correção.\",)","v":0}]
[null,null,null,null,null,{"$f":"IF('3ºPeríodo'!N31>=1,\"Apresenta  erros de leitura na intensidade\",)","v":0}]
[null,null,null,null,null,{"$f":"IF('3ºPeríodo'!X31>=1,\"Lê com ritmo adequado.\",)","v":0}]
[null,null,null,null,null,{"$f":"IF('3ºPeríodo'!AD31>=1,\"Lê com expressividade os textos.\",)","v":0}]
[null,null,null,null,null,{"$f":"IF('3ºPeríodo'!AA31>=1,\"Lê sem expressividade.\",)","v":0}]
[null,null,null,null,null,{"$f":"IF('3ºPeríodo'!AH31>=1,\"Não articula e é pouco clara.\",)","v":0}]
[null,null,null,null,null,{"$f":"IF('3ºPeríodo'!AK31>=1,\"Lê com boa articulação os textos.\",)","v":0}]
[null,null,null,null,null,{"$f":"IF('3ºPeríodo'!U31>=1,\"Não lê com ritmo adequado.\",)","v":0}]
[null,null,null,null,null,{"$f":"IF('3ºPeríodo'!Q31>=1,\"Realiza uma leitura com boa intensidade.\",)","v":0}]
[22,{"$f":"Lista_alunos!H37","v":0},null,null,null,{"$f":"IF('3ºPeríodo'!G32>=1,\"A leitura é insuficiente: soletra,troca letras, faz omissões\",)","v":0}]
[null,null,null,null,null,{"$f":"IF('3ºPeríodo'!J32>=1,\"Lê com muita correção.\",)","v":0}]
[null,null,null,null,null,{"$f":"IF('3ºPeríodo'!N32>=1,\"Apresenta  erros de leitura na intensidade\",)","v":0}]
[null,null,null,null,null,{"$f":"IF('3ºPeríodo'!X32>=1,\"Lê com ritmo adequado.\",)","v":0}]
[null,null,null,null,null,{"$f":"IF('3ºPeríodo'!AD32>=1,\"Lê com expressividade os textos.\",)","v":0}]
[null,null,null,null,null,{"$f":"IF('3ºPeríodo'!AA32>=1,\"Lê sem expressividade.\",)","v":0}]
[null,null,null,null,null,{"$f":"IF('3ºPeríodo'!AH32>=1,\"Não articula e é pouco clara.\",)","v":0}]
[null,null,null,null,null,{"$f":"IF('3ºPeríodo'!AK32>=1,\"Lê com boa articulação os textos.\",)","v":0}]
[null,null,null,null,null,{"$f":"IF('3ºPeríodo'!U32>=1,\"Não lê com ritmo adequado.\",)","v":0}]
[null,null,null,null,null,{"$f":"IF('3ºPeríodo'!Q32>=1,\"Realiza uma leitura com boa intensidade.\",)","v":0}]
[23,{"$f":"Lista_alunos!H38","v":0},null,null,null,{"$f":"IF('3ºPeríodo'!G33>=1,\"A leitura é insuficiente: soletra,troca letras, faz omissões\",)","v":0}]
[null,null,null,null,null,{"$f":"IF('3ºPeríodo'!J33>=1,\"Lê com muita correção.\",)","v":0}]
[null,null,null,null,null,{"$f":"IF('3ºPeríodo'!N33>=1,\"Apresenta  erros de leitura na intensidade\",)","v":0}]
[null,null,null,null,null,{"$f":"IF('3ºPeríodo'!X33>=1,\"Lê com ritmo adequado.\",)","v":0}]
[null,null,null,null,null,{"$f":"IF('3ºPeríodo'!AD33>=1,\"Lê com expressividade os textos.\",)","v":0}]
[null,null,null,null,null,{"$f":"IF('3ºPeríodo'!AA33>=1,\"Lê sem expressividade.\",)","v":0}]
[null,null,null,null,null,{"$f":"IF('3ºPeríodo'!AH33>=1,\"Não articula e é pouco clara.\",)","v":0}]
[null,null,null,null,null,{"$f":"IF('3ºPeríodo'!AK33>=1,\"Lê com boa articulação os textos.\",)","v":0}]
[null,null,null,null,null,{"$f":"IF('3ºPeríodo'!U33>=1,\"Não lê com ritmo adequado.\",)","v":0}]
[null,null,null,null,null,{"$f":"IF('3ºPeríodo'!Q33>=1,\"Realiza uma leitura com boa intensidade.\",)","v":0}]
[24,{"$f":"Lista_alunos!H39","v":0},null,null,null,{"$f":"IF('3ºPeríodo'!G34>=1,\"A leitura é insuficiente: soletra,troca letras, faz omissões\",)","v":0}]
[null,null,null,null,null,{"$f":"IF('3ºPeríodo'!J34>=1,\"Lê com muita correção.\",)","v":0}]
[null,null,null,null,null,{"$f":"IF('3ºPeríodo'!N34>=1,\"Apresenta  erros de leitura na intensidade\",)","v":0}]
[null,null,null,null,null,{"$f":"IF('3ºPeríodo'!X34>=1,\"Lê com ritmo adequado.\",)","v":0}]
[null,null,null,null,null,{"$f":"IF('3ºPeríodo'!AD34>=1,\"Lê com expressividade os textos.\",)","v":0}]
[null,null,null,null,null,{"$f":"IF('3ºPeríodo'!AA34>=1,\"Lê sem expressividade.\",)","v":0}]
[null,null,null,null,null,{"$f":"IF('3ºPeríodo'!AH34>=1,\"Não articula e é pouco clara.\",)","v":0}]
[null,null,null,null,null,{"$f":"IF('3ºPeríodo'!AK34>=1,\"Lê com boa articulação os textos.\",)","v":0}]
[null,null,null,null,null,{"$f":"IF('3ºPeríodo'!U34>=1,\"Não lê com ritmo adequado.\",)","v":0}]
[null,null,null,null,null,{"$f":"IF('3ºPeríodo'!Q34>=1,\"Realiza uma leitura com boa intensidade.\",)","v":0}]
[25,{"$f":"Lista_alunos!H40","v":0},null,null,null,{"$f":"IF('3ºPeríodo'!G35>=1,\"A leitura é insuficiente: soletra,troca letras, faz omissões\",)","v":0}]
[null,null,null,null,null,{"$f":"IF('3ºPeríodo'!J35>=1,\"Lê com muita correção.\",)","v":0}]
[null,null,null,null,null,{"$f":"IF('3ºPeríodo'!N35>=1,\"Apresenta  erros de leitura na intensidade\",)","v":0}]
[null,null,null,null,null,{"$f":"IF('3ºPeríodo'!X35>=1,\"Lê com ritmo adequado.\",)","v":0}]
[null,null,null,null,null,{"$f":"IF('3ºPeríodo'!AD35>=1,\"Lê com expressividade os textos.\",)","v":0}]
[null,null,null,null,null,{"$f":"IF('3ºPeríodo'!AA35>=1,\"Lê sem expressividade.\",)","v":0}]
[null,null,null,null,null,{"$f":"IF('3ºPeríodo'!AH35>=1,\"Não articula e é pouco clara.\",)","v":0}]
[null,null,null,null,null,{"$f":"IF('3ºPeríodo'!AK35>=1,\"Lê com boa articulação os textos.\",)","v":0}]
[null,null,null,null,null,{"$f":"IF('3ºPeríodo'!U35>=1,\"Não lê com ritmo adequado.\",)","v":0}]
[null,null,null,null,null,{"$f":"IF('3ºPeríodo'!Q35>=1,\"Realiza uma leitura com boa intensidade.\",)","v":0}]
[26,{"$f":"Lista_alunos!H41","v":0},null,null,null,{"$f":"IF('3ºPeríodo'!G36>=1,\"A leitura é insuficiente: soletra,troca letras, faz omissões\",)","v":0}]
[null,null,null,null,null,{"$f":"IF('3ºPeríodo'!J36>=1,\"Lê com muita correção.\",)","v":0}]
[null,null,null,null,null,{"$f":"IF('3ºPeríodo'!N36>=1,\"Apresenta  erros de leitura na intensidade\",)","v":0}]
[null,null,null,null,null,{"$f":"IF('3ºPeríodo'!X36>=1,\"Lê com ritmo adequado.\",)","v":0}]
[null,null,null,null,null,{"$f":"IF('3ºPeríodo'!AD36>=1,\"Lê com expressividade os textos.\",)","v":0}]
[null,null,null,null,null,{"$f":"IF('3ºPeríodo'!AA36>=1,\"Lê sem expressividade.\",)","v":0}]
[null,null,null,null,null,{"$f":"IF('3ºPeríodo'!AH36>=1,\"Não articula e é pouco clara.\",)","v":0}]
[null,null,null,null,null,{"$f":"IF('3ºPeríodo'!AK36>=1,\"Lê com boa articulação os textos.\",)","v":0}]
[null,null,null,null,null,{"$f":"IF('3ºPeríodo'!U36>=1,\"Não lê com ritmo adequado.\",)","v":0}]
[null,null,null,null,null,{"$f":"IF('3ºPeríodo'!Q36>=1,\"Realiza uma leitura com boa intensidade.\",)","v":0}]
[27,{"$f":"Lista_alunos!H42","v":0},null,null,null,{"$f":"IF('3ºPeríodo'!G37>=1,\"A leitura é insuficiente: soletra,troca letras, faz omissões\",)","v":0}]
[null,null,null,null,null,{"$f":"IF('3ºPeríodo'!J37>=1,\"Lê com muita correção.\",)","v":0}]
[null,null,null,null,null,{"$f":"IF('3ºPeríodo'!N37>=1,\"Apresenta  erros de leitura na intensidade\",)","v":0}]
[null,null,null,null,null,{"$f":"IF('3ºPeríodo'!X37>=1,\"Lê com ritmo adequado.\",)","v":0}]
[null,null,null,null,null,{"$f":"IF('3ºPeríodo'!AD37>=1,\"Lê com expressividade os textos.\",)","v":0}]
[null,null,null,null,null,{"$f":"IF('3ºPeríodo'!AA37>=1,\"Lê sem expressividade.\",)","v":0}]
[null,null,null,null,null,{"$f":"IF('3ºPeríodo'!AH37>=1,\"Não articula e é pouco clara.\",)","v":0}]
[null,null,null,null,null,{"$f":"IF('3ºPeríodo'!AK37>=1,\"Lê com boa articulação os textos.\",)","v":0}]
[null,null,null,null,null,{"$f":"IF('3ºPeríodo'!U37>=1,\"Não lê com ritmo adequado.\",)","v":0}]
[null,null,null,null,null,{"$f":"IF('3ºPeríodo'!Q37>=1,\"Realiza uma leitura com boa intensidade.\",)","v":0}]